Workbook

Sheet Notes
A1: WeeklyDailyMACD.xlsm; Traders Tip spreadsheet created for the December 2017 Issue
A2: Coded beginning 2017-October-06 by Ronald McAllister (rpmac_xltt@sprynet.com)
A4: This Workbook demonstrates an EXCEL version of the ideas presented
A5: by Vitali Apirine in an article titled "Weekly & Daily MACD"
A6: which originally appeared in the December 2017 issue of
A7: "Technical Analysis of Stocks and Commodities" magazine.
A9: CalculationsAndCharts construction Notes:
B10: Various charts from the article can be approximated by downloading the appropriate symbol and selecting an appropriate data range.
B11: From there it is just a matter of working the chart clutter controls. (All of the symbols used in this article are available for double click loading on the "Follow" tab)
B12: Example:
B13: Fig 4 from the article can be approximated by downloading data for symbol ^GSPC and setting the I would like to chart dates to 12/22/2003 and 12/27/2005.
C14: Then Clict the "I Would Like to Chart These Dates" button.
A16: Development Notes:
C17: This workbook contains and uses VBA macros and may use VBA Class structures.
C18: Input Data
C19: The data in this workbook is sorted date descending (most recent date at the top). All formulas and
C20: VBA routines are built accordingly.
A22: This spreadsheet incorporates my first cut at retrieving historical data from the "New", and not necessarily "Improved", Yahoo Finance History Download interface.
B24: My sincere apologies to our Macintosh based readers: MSXML is not supported in your environment. So as it stands this version of the spreadsheet will not work for you.
B25: See "Why this approach does not work for Macintosh" below.
B26: I am investigating cURL as a non-Querytable based approach for the Macintosh environment.
B27: I may have a cURL based approach ready for the January or February 2018 Traders tip. Please stay tuned.
A29: The new Yahoo Finance history download interface has changed rather radically. The biggest hurdle being a pseudo-security requirement of adding a
B30: crumb character string to any URL requesting any type of history download. That crumb must match up (by way of some sort of hash algorithm) with
B31: the Yahoo Finance cookie that must also be sent with any request to the new Yahoo History down load interface.
B33: A crumb value is returned, buried in the HTML for any of what I call the "entry level" Yahoo Finance web pages (no crumb security requirement for entry level pages).
B34: A crumb may come with other Yahoo Finance pages. A crumb may even accompany some of the secured pages as well. I have not checked.
B36: Entry level pages are the top level pages of the various Yahoo Finance dialogs and include: Quote Lookup, Stock Summary Quote, and any of the pages
B37: with links in the horizontal row with the "Summary" link on the quote summary page such as Options, Historical Data, and the rest.
B39: To date I have found no way to get at this crumb value using any native EXCEL capabilities.
B41: So this crumb requirement effectively shuts out any solution that attempts to exclusively use built-in facilities of EXCEL, which is to say a purely Querytables solution.
B43: The approach built for this Traders Tip spreadsheet uses a combination of MSXML and EXCEL QueryTable calls to Load the InputPriceData worksheet.
B45: First I call MSXML to get the HTML text for the Yahoo Summary Quote page using the requested symbol. From this HTML text I extract the full company name,
B46: the market it trades, the market status and time stamp, and finally the associated crumb string. There is a bunch of other useful bits buried in this HTML
B47: text that do not necessarily appear on the web page your browser presents. Perhaps some day I will go after and build a worksheet with these other bits.
B49: Next I add the freshly extracted crumb string to the URLs I use in three separate Querytable calls to retrieve Price history, Split history, and Dividend history respectively.
B51: From there VBA code proceeds as in the past to fill in the cell formulas and formatting that make the "prettied up" InputPriceData sheet.
A53: Why this approach works for Windows:
B54: First, MSXML shares the permanent Internet Explorer web cache where cookies are maintained. Both IE and MSXML automatically
B55: update this cache when a "set cookie" header accompanies a web response. And they both automatically search this shared cache for
B56: cookies and add any "appropriate" cookies to the headers of any web requests they send out.
B57: This cookie handling automation means that even if the response to our MSXML call for the Summary web page includes a new version of
B58: the Yahoo Finance cookie, the imbedded Crumb value will always match the cookie newly installed in the cache!
B60: Second, in the Windows environment the EXCEL Querytable mechanism leans heavily on bits from Internet Explorer. This means that cookie
B61: handling is also automated from the shared cache for Querytable calls. We can count on any appropriate cookies being added to any Querytable call.
B62: We only need to do our part by adding the corresponding Crumb value to complete the security for the Querytable to access Yahoo History downloads.
A64: Why this approach does not work for Macintosh:
B65: For what it is worth, the Macintosh version of the MS Office suite of products do in fact maintain a special, shared amongst themselves only, cookie cache.
B66: They automate cookie handling into and from this cache JUST for the Office products and any Querytable activity they might originate.
B68: This cache is not tied to, nor shared with, any browser that might be installed on the MAC. And I have not found anything with HTTP capabilities similar to
B69: MSXML that can work with that Office product cookie cache.
B71: When working in the MAC EXCEL environment, without that MSXML like capability against the office shared cache, l have no mechanism
B72: to obtain a crumb value that would be a valid match to the Yahoo Finance cookie that will be automatically attached to a Querytable call.
B73: This missing facility pretty much eliminates the use of Mac environment Querytables to access the new Yahoo Finance history download interface.
A75: One very low probability potential "Gottcha" for any Querytables approach.
B76: Yahoo Finance cookies typically have an assigned expiration that is a year out (to the second) from the time they are issued.
B77: Further, these cookies are unique. Yours will not match mine.
B79: If for testing purposes, instead of MSXML, you use a fresh instance of Winhttp (Fresh instance = empty cache = no cookie to automatically send)
B80: every time you call an entry level page, the Yahoo server says "What? Entry level page? With no inbound cookie? Get them a cookie!!"
B81: and will send you a new, unique cookie and will imbed the matching crumb value in the response text for each of these "no cookie attached" calls.
B83: The Gottcha: Lets say that the Yahoo Finance cookie presently in the IE cache has an expiration date and time that just happens
B84: to fall between our MSXML call to the summary page to fetch our crumb and our first (or second, or third) Querytable call.
B85: The Querytable call after the cookie expiration may fail with a cookie and crumb validation error.
B87: Querytable error reporting is atrocious. So we will not get any sort of helpful message here. Just a very generalized message like "failed to connect".
B89: The workaround is to simply go to the InputPriceData tab and click the download button.
B90: This second time through the retrieval process should not fail on a mismatch.
B91: After all, you now have a year before the new cookie that just got put into the cache expires!
A93: Calculation and Chart Worksheet Usage Comments:
C94: In General, Items in Bolded BLUE are items you may freely change to play what-if games.
C95: Be sure to have a backup copy of the spreadsheet before you alter anything else.
A97: Features carried forward from the June 2016 version of my T-Tips Template
A98: Added a pair of buttons near cell F12 that will allow the user to step the charting window forward or backward one bar for each click.
A99: I find this to be a good way to test my understanding of the author's ideas as I step through the evolution of the price behavior and the indicators.
B101: First: In the "Help! I would like to plot data" area.
B102: Added button to resolve #NA problems by locating the bar in the input data with a slightly more recent date than what the user actually requested.
B103: I find this particularly useful when I have a general idea of where I want to be date wise. Now I can pick a set of dates "out of the air".
B104: If either (or both) of my date specifications fall between dates that are available in the price history,
B105: this button will resolve them to the dates of the nearest, slightly more recent input bars.
B106: I can then refine my data interval search as necessary from there.
B107: Really great when working with Weekly or Monthly studies!
C108: 2016Jun11 - added logic to the "I would like to chart.." button to detect #N/A values and terminate
C109: gracefully with a message instead of blowing up in the charting logic.
B111: Second: In the "Price Chart Windowing Controls" area. (A11 and A12)
B112: When retrieving data for a new symbol or when changing from daily to weekly or monthly data, there was the possibility that the
B113: residual settings in A11 and A12 would fall outside of the number bars available on the input data tab after the new data retrieval.
B114: In certain combinations, this could create a serious error in the chart sizing logic and crash the spreadsheet.
B115: I have taken this opportunity to update the validity checking logic used in the chart sizing macros
B116: to adjust these values as necessary so that they fall within the boundaries of the newly retrieved input data.
A117: Features carried forward from the October 2015 Traders Tips Template
B118: Improved automation: changes to any of the following will automatically initiate calculations appropriate to reflect a change.
C119: Changing either of cells A11 (pan) or A12 (zoom) will automatically initiate the same chart sizing macros that the manual
C120: "Set Chart" button uses.

Sheet InputPriceData
A1: S&P 500 (^GSPC) -SNP (Daily)
F2: Market State == > | G2: At close: | H2: 16:55:00 | I2: EDT | IJ2: 241.79
A3: Request Online Yahoo History for:
A4: Symbol | B4: ^GSPC | D4: Valid | I4: =OFFSET(I4,-2,0,1,1) -> EDT
A5: From | B5: 1950-01-01 | D5: Data | AF5: Trailing 12 Div return (Cur Close)
A6: To | B6: =NOW() -> 2017-10-15T23:02:45.010 | D6: Types | E6: =VLOOKUP(B7,D7:E10,2,FALSE) -> d
A7: Data Type | B7: Daily | D7: Daily | E7: d
B8: dbtX2VDkalH | D8: Weekly | E8: w
A9: Available Data | D9: Monthly | E9: m
A10: Bar Count: | B10: 17057 | AF10: =OFFSET(AC15,1,0,1,1)/OFFSET(N15,1,0,1,1) -> 0
A11: From: | B11: =IF(B10<=0,"",OFFSET(B15,B10,IF(HistReqDataType="v",1,0),1,1)) -> 1950-01-03 | W11: Trailing 12 Month Dividend Returns
A12: To: | B12: =IF(B10<=0,"",IF(HistReqDataType="v",OFFSET(B15,2,1,1,1),OFFSET(B15,1,0,1,1))) -> 2017-10-13 | W12: Raw Close price on Dividend date | X12: Div Year and Month | Y12: Looking for year ago Div Year and Month | Z12: Year ago Div Date we found | AA12: row offset to year ago div Date | AB12: Same month flag | AC12: Trailing 12 Div Total | AD12: Trailing 12 Div return
Q13: Split History | S13: 0 | T13: Running | U13: Dividend History
B14: Raw Data Values | H14: Adjusted | I14: Price Adjust | J14: Vol Adjust | K14: Adjusted Values | P14: Last | Q14: Effective | R14: Shares | T14: Vol Adjust | V14: 0
A15: RelRow | B15: Date | C15: Open | D15: High | E15: Low | F15: Close | G15: Volume | H15: Close | I15: Factor | J15: Factor | K15: Open | L15: High | M15: Low | N15: Close | O15: Volume | P15: Trade | Q15: 43024 | R15: New | S15: Old | T15: 1 | U15: Date | V15: $ / Share
A16: 1 | B16: 2017-10-13 | C16: 2555.659912 | D16: 2557.649902 | E16: 2552.090088 | F16: 2553.169922 | G16: 3149440000 | H16: 2553.169922 | I16: =IF(F16=0,1,H16/F16) -> 1 | J16: =INDEX(OFFSET($T$15,0,0,$S$13+1,1),MATCH(B16,OFFSET($Q$15,0,0,$S$13+1,1),-1)) -> 1 | K16: =ROUND($I16*C16,2) -> 2555.66 | L16: =ROUND($I16*D16,2) -> 2557.65 | M16: 2552.09 | N16: 2553.17 | O16: =G16*J16 -> 3149440000
A17: 2 | B17: 2017-10-12 | C17: 2552.879883 | D17: 2555.330078 | E17: 2548.310059 | F17: 2550.929932 | G17: 3151510000 | H17: 2550.929932 | I17: =IF(F17=0,1,H17/F17) -> 1 | J17: =INDEX(OFFSET($T$15,0,0,$S$13+1,1),MATCH(B17,OFFSET($Q$15,0,0,$S$13+1,1),-1)) -> 1 | K17: =ROUND($I17*C17,2) -> 2552.88 | L17: =ROUND($I17*D17,2) -> 2555.33 | M17: =ROUND($I17*E17,2) -> 2548.31 | N17: =ROUND($I17*F17,2) -> 2550.93 | O17: =G17*J17 -> 3151510000
A18: 3 | B18: 2017-10-11 | C18: 2550.620117 | D18: 2555.23999 | E18: 2547.949951 | F18: 2555.23999 | G18: 2976090000 | H18: 2555.23999 | I18: 1 | J18: 1 | K18: 2550.62 | L18: 2555.24 | M18: 2547.95 | N18: 2555.24 | O18: 2976090000
A19: 4 | B19: 2017-10-10 | C19: 2549.98999 | D19: 2555.22998 | E19: 2544.860107 | F19: 2550.639893 | G19: 2960500000 | H19: 2550.639893 | I19: 1 | J19: 1 | K19: 2549.99 | L19: 2555.23 | M19: 2544.86 | N19: 2550.64 | O19: 2960500000
A20: 5 | B20: 2017-10-09 | C20: 2551.389893 | D20: 2551.820068 | E20: 2541.600098 | F20: 2544.72998 | G20: 2483970000 | H20: 2544.72998 | I20: 1 | J20: 1 | K20: 2551.39 | L20: 2551.82 | M20: 2541.6 | N20: 2544.73 | O20: 2483970000
A21: 6 | B21: 2017-10-06 | C21: 2547.439941 | D21: 2549.409912 | E21: 2543.790039 | F21: 2549.330078 | G21: 2884570000 | H21: 2549.330078 | I21: 1 | J21: 1 | K21: 2547.44 | L21: 2549.41 | M21: 2543.79 | N21: 2549.33 | O21: 2884570000
A22: 7 | B22: 2017-10-05 | C22: 2540.860107 | D22: 2552.51001 | E22: 2540.02002 | F22: 2552.070068 | G22: 3045120000 | H22: 2552.070068 | I22: 1 | J22: 1 | K22: 2540.86 | L22: 2552.51 | M22: 2540.02 | N22: 2552.07 | O22: 3045120000
A23: 8 | B23: 2017-10-04 | C23: 2533.47998 | D23: 2540.530029 | E23: 2531.800049 | F23: 2537.73999 | G23: 3017120000 | H23: 2537.73999 | I23: 1 | J23: 1 | K23: 2533.48 | L23: 2540.53 | M23: 2531.8 | N23: 2537.74 | O23: 3017120000
A24: 9 | B24: 2017-10-03 | C24: 2530.340088 | D24: 2535.129883 | E24: 2528.850098 | F24: 2534.580078 | G24: 3068850000 | H24: 2534.580078 | I24: 1 | J24: 1 | K24: 2530.34 | L24: 2535.13 | M24: 2528.85 | N24: 2534.58 | O24: 3068850000
A25: 10 | B25: 2017-10-02 | C25: 2521.199951 | D25: 2529.22998 | E25: 2520.399902 | F25: 2529.120117 | G25: 3199730000 | H25: 2529.120117 | I25: 1 | J25: 1 | K25: 2521.2 | L25: 2529.23 | M25: 2520.4 | N25: 2529.12 | O25: 3199730000
A26: 11 | B26: 2017-09-29 | C26: 2509.959961 | D26: 2519.439941 | E26: 2507.98999 | F26: 2519.360107 | G26: 3211920000 | H26: 2519.360107 | I26: 1 | J26: 1 | K26: 2509.96 | L26: 2519.44 | M26: 2507.99 | N26: 2519.36 | O26: 3211920000
A27: 12 | B27: 2017-09-28 | C27: 2503.409912 | D27: 2510.810059 | E27: 2502.929932 | F27: 2510.060059 | G27: 3168620000 | H27: 2510.060059 | I27: 1 | J27: 1 | K27: 2503.41 | L27: 2510.81 | M27: 2502.93 | N27: 2510.06 | O27: 3168620000
A28: 13 | B28: 2017-09-27 | C28: 2503.300049 | D28: 2511.75 | E28: 2495.909912 | F28: 2507.040039 | G28: 3456030000 | H28: 2507.040039 | I28: 1 | J28: 1 | K28: 2503.3 | L28: 2511.75 | M28: 2495.91 | N28: 2507.04 | O28: 3456030000
A29: 14 | B29: 2017-09-26 | C29: 2501.040039 | D29: 2503.51001 | E29: 2495.120117 | F29: 2496.840088 | G29: 3043110000 | H29: 2496.840088 | I29: 1 | J29: 1 | K29: 2501.04 | L29: 2503.51 | M29: 2495.12 | N29: 2496.84 | O29: 3043110000
A30: 15 | B30: 2017-09-25 | C30: 2499.389893 | D30: 2502.540039 | E30: 2488.030029 | F30: 2496.659912 | G30: 3297890000 | H30: 2496.659912 | I30: 1 | J30: 1 | K30: 2499.39 | L30: 2502.54 | M30: 2488.03 | N30: 2496.66 | O30: 3297890000
A31: 16 | B31: 2017-09-22 | C31: 2497.26001 | D31: 2503.469971 | E31: 2496.540039 | F31: 2502.219971 | G31: 2865960000 | H31: 2502.219971 | I31: 1 | J31: 1 | K31: 2497.26 | L31: 2503.47 | M31: 2496.54 | N31: 2502.22 | O31: 2865960000
A32: 17 | B32: 2017-09-21 | C32: 2507.159912 | D32: 2507.159912 | E32: 2499 | F32: 2500.600098 | G32: 2930860000 | H32: 2500.600098 | I32: 1 | J32: 1 | K32: 2507.16 | L32: 2507.16 | M32: 2499 | N32: 2500.6 | O32: 2930860000
A33: 18 | B33: 2017-09-20 | C33: 2506.840088 | D33: 2508.850098 | E33: 2496.669922 | F33: 2508.23999 | G33: 3530010000 | H33: 2508.23999 | I33: 1 | J33: 1 | K33: 2506.84 | L33: 2508.85 | M33: 2496.67 | N33: 2508.24 | O33: 3530010000
A34: 19 | B34: 2017-09-19 | C34: 2506.290039 | D34: 2507.840088 | E34: 2503.189941 | F34: 2506.649902 | G34: 3249100000 | H34: 2506.649902 | I34: 1 | J34: 1 | K34: 2506.29 | L34: 2507.84 | M34: 2503.19 | N34: 2506.65 | O34: 3249100000
A35: 20 | B35: 2017-09-18 | C35: 2502.51001 | D35: 2508.320068 | E35: 2499.919922 | F35: 2503.870117 | G35: 3194300000 | H35: 2503.870117 | I35: 1 | J35: 1 | K35: 2502.51 | L35: 2508.32 | M35: 2499.92 | N35: 2503.87 | O35: 3194300000
A36: 21 | B36: 2017-09-15 | C36: 2495.669922 | D36: 2500.22998 | E36: 2493.159912 | F36: 2500.22998 | G36: 4853170000 | H36: 2500.22998 | I36: 1 | J36: 1 | K36: 2495.67 | L36: 2500.23 | M36: 2493.16 | N36: 2500.23 | O36: 4853170000
A37: 22 | B37: 2017-09-14 | C37: 2494.560059 | D37: 2498.429932 | E37: 2491.350098 | F37: 2495.620117 | G37: 3414460000 | H37: 2495.620117 | I37: 1 | J37: 1 | K37: 2494.56 | L37: 2498.43 | M37: 2491.35 | N37: 2495.62 | O37: 3414460000
A38: 23 | B38: 2017-09-13 | C38: 2493.889893 | D38: 2498.370117 | E38: 2492.139893 | F38: 2498.370117 | G38: 3368050000 | H38: 2498.370117 | I38: 1 | J38: 1 | K38: 2493.89 | L38: 2498.37 | M38: 2492.14 | N38: 2498.37 | O38: 3368050000
A39: 24 | B39: 2017-09-12 | C39: 2491.939941 | D39: 2496.77002 | E39: 2490.370117 | F39: 2496.47998 | G39: 3230920000 | H39: 2496.47998 | I39: 1 | J39: 1 | K39: 2491.94 | L39: 2496.77 | M39: 2490.37 | N39: 2496.48 | O39: 3230920000
A40: 25 | B40: 2017-09-11 | C40: 2474.52002 | D40: 2488.949951 | E40: 2474.52002 | F40: 2488.110107 | G40: 0 | H40: 2488.110107 | I40: 1 | J40: 1 | K40: 2474.52 | L40: 2488.95 | M40: 2474.52 | N40: 2488.11 | O40: 0
A41: 26 | B41: 2017-09-08 | C41: 2462.25 | D41: 2467.110107 | E41: 2459.399902 | F41: 2461.429932 | G41: 3302490000 | H41: 2461.429932 | I41: 1 | J41: 1 | K41: 2462.25 | L41: 2467.11 | M41: 2459.4 | N41: 2461.43 | O41: 3302490000
A42: 27 | B42: 2017-09-07 | C42: 2468.060059 | D42: 2468.620117 | E42: 2460.290039 | F42: 2465.100098 | G42: 3353930000 | H42: 2465.100098 | I42: 1 | J42: 1 | K42: 2468.06 | L42: 2468.62 | M42: 2460.29 | N42: 2465.1 | O42: 3353930000
A43: 28 | B43: 2017-09-06 | C43: 2463.830078 | D43: 2469.639893 | E43: 2459.199951 | F43: 2465.540039 | G43: 3374410000 | H43: 2465.540039 | I43: 1 | J43: 1 | K43: 2463.83 | L43: 2469.64 | M43: 2459.2 | N43: 2465.54 | O43: 3374410000
A44: 29 | B44: 2017-09-05 | C44: 2470.350098 | D44: 2471.969971 | E44: 2446.550049 | F44: 2457.850098 | G44: 3490260000 | H44: 2457.850098 | I44: 1 | J44: 1 | K44: 2470.35 | L44: 2471.97 | M44: 2446.55 | N44: 2457.85 | O44: 3490260000
A45: 30 | B45: 2017-09-01 | C45: 2474.419922 | D45: 2480.379883 | E45: 2473.850098 | F45: 2476.550049 | G45: 2710730000 | H45: 2476.550049 | I45: 1 | J45: 1 | K45: 2474.42 | L45: 2480.38 | M45: 2473.85 | N45: 2476.55 | O45: 2710730000
A46: 31 | B46: 2017-08-31 | C46: 2462.649902 | D46: 2475.01001 | E46: 2462.649902 | F46: 2471.649902 | G46: 3348110000 | H46: 2471.649902 | I46: 1 | J46: 1 | K46: 2462.65 | L46: 2475.01 | M46: 2462.65 | N46: 2471.65 | O46: 3348110000
A47: 32 | B47: 2017-08-30 | C47: 2446.060059 | D47: 2460.310059 | E47: 2443.77002 | F47: 2457.590088 | G47: 2633660000 | H47: 2457.590088 | I47: 1 | J47: 1 | K47: 2446.06 | L47: 2460.31 | M47: 2443.77 | N47: 2457.59 | O47: 2633660000
A48: 33 | B48: 2017-08-29 | C48: 2431.939941 | D48: 2449.189941 | E48: 2428.199951 | F48: 2446.300049 | G48: 2737580000 | H48: 2446.300049 | I48: 1 | J48: 1 | K48: 2431.94 | L48: 2449.19 | M48: 2428.2 | N48: 2446.3 | O48: 2737580000
A49: 34 | B49: 2017-08-28 | C49: 2447.350098 | D49: 2449.120117 | E49: 2439.030029 | F49: 2444.23999 | G49: 2677700000 | H49: 2444.23999 | I49: 1 | J49: 1 | K49: 2447.35 | L49: 2449.12 | M49: 2439.03 | N49: 2444.24 | O49: 2677700000
A50: 35 | B50: 2017-08-25 | C50: 2444.719971 | D50: 2453.959961 | E50: 2442.219971 | F50: 2443.050049 | G50: 2588780000 | H50: 2443.050049 | I50: 1 | J50: 1 | K50: 2444.72 | L50: 2453.96 | M50: 2442.22 | N50: 2443.05 | O50: 2588780000
A51: 36 | B51: 2017-08-24 | C51: 2447.909912 | D51: 2450.389893 | E51: 2436.189941 | F51: 2438.969971 | G51: 2846590000 | H51: 2438.969971 | I51: 1 | J51: 1 | K51: 2447.91 | L51: 2450.39 | M51: 2436.19 | N51: 2438.97 | O51: 2846590000
A52: 37 | B52: 2017-08-23 | C52: 2444.879883 | D52: 2448.909912 | E52: 2441.419922 | F52: 2444.040039 | G52: 2785290000 | H52: 2444.040039 | I52: 1 | J52: 1 | K52: 2444.88 | L52: 2448.91 | M52: 2441.42 | N52: 2444.04 | O52: 2785290000
A53: 38 | B53: 2017-08-22 | C53: 2433.75 | D53: 2454.77002 | E53: 2433.669922 | F53: 2452.51001 | G53: 2777490000 | H53: 2452.51001 | I53: 1 | J53: 1 | K53: 2433.75 | L53: 2454.77 | M53: 2433.67 | N53: 2452.51 | O53: 2777490000
A54: 39 | B54: 2017-08-21 | C54: 2425.5 | D54: 2430.580078 | E54: 2417.350098 | F54: 2428.370117 | G54: 2788150000 | H54: 2428.370117 | I54: 1 | J54: 1 | K54: 2425.5 | L54: 2430.58 | M54: 2417.35 | N54: 2428.37 | O54: 2788150000
A55: 40 | B55: 2017-08-18 | C55: 2427.639893 | D55: 2440.27002 | E55: 2420.689941 | F55: 2425.550049 | G55: 3415680000 | H55: 2425.550049 | I55: 1 | J55: 1 | K55: 2427.64 | L55: 2440.27 | M55: 2420.69 | N55: 2425.55 | O55: 3415680000
A56: 41 | B56: 2017-08-17 | C56: 2462.949951 | D56: 2465.02002 | E56: 2430.01001 | F56: 2430.01001 | G56: 3142620000 | H56: 2430.01001 | I56: 1 | J56: 1 | K56: 2462.95 | L56: 2465.02 | M56: 2430.01 | N56: 2430.01 | O56: 3142620000
A57: 42 | B57: 2017-08-16 | C57: 2468.629883 | D57: 2474.929932 | E57: 2463.860107 | F57: 2468.110107 | G57: 2953650000 | H57: 2468.110107 | I57: 1 | J57: 1 | K57: 2468.63 | L57: 2474.93 | M57: 2463.86 | N57: 2468.11 | O57: 2953650000
A58: 43 | B58: 2017-08-15 | C58: 2468.659912 | D58: 2468.899902 | E58: 2461.610107 | F58: 2464.610107 | G58: 2913100000 | H58: 2464.610107 | I58: 1 | J58: 1 | K58: 2468.66 | L58: 2468.9 | M58: 2461.61 | N58: 2464.61 | O58: 2913100000
A59: 44 | B59: 2017-08-14 | C59: 2454.959961 | D59: 2468.219971 | E59: 2454.959961 | F59: 2465.840088 | G59: 2822550000 | H59: 2465.840088 | I59: 1 | J59: 1 | K59: 2454.96 | L59: 2468.22 | M59: 2454.96 | N59: 2465.84 | O59: 2822550000
A60: 45 | B60: 2017-08-11 | C60: 2441.040039 | D60: 2448.090088 | E60: 2437.850098 | F60: 2441.320068 | G60: 3159930000 | H60: 2441.320068 | I60: 1 | J60: 1 | K60: 2441.04 | L60: 2448.09 | M60: 2437.85 | N60: 2441.32 | O60: 3159930000
A61: 46 | B61: 2017-08-10 | C61: 2465.379883 | D61: 2465.379883 | E61: 2437.75 | F61: 2438.209961 | G61: 3621070000 | H61: 2438.209961 | I61: 1 | J61: 1 | K61: 2465.38 | L61: 2465.38 | M61: 2437.75 | N61: 2438.21 | O61: 3621070000
A62: 47 | B62: 2017-08-09 | C62: 2465.350098 | D62: 2474.409912 | E62: 2462.080078 | F62: 2474.02002 | G62: 3308060000 | H62: 2474.02002 | I62: 1 | J62: 1 | K62: 2465.35 | L62: 2474.41 | M62: 2462.08 | N62: 2474.02 | O62: 3308060000
A63: 48 | B63: 2017-08-08 | C63: 2478.350098 | D63: 2490.870117 | E63: 2470.320068 | F63: 2474.919922 | G63: 3344640000 | H63: 2474.919922 | I63: 1 | J63: 1 | K63: 2478.35 | L63: 2490.87 | M63: 2470.32 | N63: 2474.92 | O63: 3344640000
A64: 49 | B64: 2017-08-07 | C64: 2477.139893 | D64: 2480.949951 | E64: 2475.879883 | F64: 2480.909912 | G64: 2931780000 | H64: 2480.909912 | I64: 1 | J64: 1 | K64: 2477.14 | L64: 2480.95 | M64: 2475.88 | N64: 2480.91 | O64: 2931780000
A65: 50 | B65: 2017-08-04 | C65: 2476.879883 | D65: 2480 | E65: 2472.080078 | F65: 2476.830078 | G65: 3235140000 | H65: 2476.830078 | I65: 1 | J65: 1 | K65: 2476.88 | L65: 2480 | M65: 2472.08 | N65: 2476.83 | O65: 3235140000
A66: 51 | B66: 2017-08-03 | C66: 2476.030029 | D66: 2476.030029 | E66: 2468.850098 | F66: 2472.159912 | G66: 3645020000 | H66: 2472.159912 | I66: 1 | J66: 1 | K66: 2476.03 | L66: 2476.03 | M66: 2468.85 | N66: 2472.16 | O66: 3645020000
A67: 52 | B67: 2017-08-02 | C67: 2480.379883 | D67: 2480.379883 | E67: 2466.47998 | F67: 2477.570068 | G67: 3478580000 | H67: 2477.570068 | I67: 1 | J67: 1 | K67: 2480.38 | L67: 2480.38 | M67: 2466.48 | N67: 2477.57 | O67: 3478580000
A68: 53 | B68: 2017-08-01 | C68: 2477.100098 | D68: 2478.51001 | E68: 2471.139893 | F68: 2476.350098 | G68: 3460860000 | H68: 2476.350098 | I68: 1 | J68: 1 | K68: 2477.1 | L68: 2478.51 | M68: 2471.14 | N68: 2476.35 | O68: 3460860000
A69: 54 | B69: 2017-07-31 | C69: 2475.939941 | D69: 2477.959961 | E69: 2468.530029 | F69: 2470.300049 | G69: 3469210000 | H69: 2470.300049 | I69: 1 | J69: 1 | K69: 2475.94 | L69: 2477.96 | M69: 2468.53 | N69: 2470.3 | O69: 3469210000
A70: 55 | B70: 2017-07-28 | C70: 2469.120117 | D70: 2473.530029 | E70: 2464.659912 | F70: 2472.100098 | G70: 3294770000 | H70: 2472.100098 | I70: 1 | J70: 1 | K70: 2469.12 | L70: 2473.53 | M70: 2464.66 | N70: 2472.1 | O70: 3294770000
A71: 56 | B71: 2017-07-27 | C71: 2482.76001 | D71: 2484.040039 | E71: 2459.929932 | F71: 2475.419922 | G71: 3995520000 | H71: 2475.419922 | I71: 1 | J71: 1 | K71: 2482.76 | L71: 2484.04 | M71: 2459.93 | N71: 2475.42 | O71: 3995520000
A72: 57 | B72: 2017-07-26 | C72: 2479.969971 | D72: 2481.689941 | E72: 2474.939941 | F72: 2477.830078 | G72: 3557020000 | H72: 2477.830078 | I72: 1 | J72: 1 | K72: 2479.97 | L72: 2481.69 | M72: 2474.94 | N72: 2477.83 | O72: 3557020000
A73: 58 | B73: 2017-07-25 | C73: 2477.879883 | D73: 2481.23999 | E73: 2474.909912 | F73: 2477.129883 | G73: 4108060000 | H73: 2477.129883 | I73: 1 | J73: 1 | K73: 2477.88 | L73: 2481.24 | M73: 2474.91 | N73: 2477.13 | O73: 4108060000
A74: 59 | B74: 2017-07-24 | C74: 2472.040039 | D74: 2473.100098 | E74: 2466.320068 | F74: 2469.909912 | G74: 3010240000 | H74: 2469.909912 | I74: 1 | J74: 1 | K74: 2472.04 | L74: 2473.1 | M74: 2466.32 | N74: 2469.91 | O74: 3010240000
A75: 60 | B75: 2017-07-21 | C75: 2467.399902 | D75: 2472.540039 | E75: 2465.060059 | F75: 2472.540039 | G75: 3059570000 | H75: 2472.540039 | I75: 1 | J75: 1 | K75: 2467.4 | L75: 2472.54 | M75: 2465.06 | N75: 2472.54 | O75: 3059570000
A76: 61 | B76: 2017-07-20 | C76: 2475.560059 | D76: 2477.620117 | E76: 2468.429932 | F76: 2473.449951 | G76: 3182780000 | H76: 2473.449951 | I76: 1 | J76: 1 | K76: 2475.56 | L76: 2477.62 | M76: 2468.43 | N76: 2473.45 | O76: 3182780000
A77: 62 | B77: 2017-07-19 | C77: 2463.850098 | D77: 2473.830078 | E77: 2463.850098 | F77: 2473.830078 | G77: 3059760000 | H77: 2473.830078 | I77: 1 | J77: 1 | K77: 2463.85 | L77: 2473.83 | M77: 2463.85 | N77: 2473.83 | O77: 3059760000
A78: 63 | B78: 2017-07-18 | C78: 2455.879883 | D78: 2460.919922 | E78: 2450.340088 | F78: 2460.610107 | G78: 2962130000 | H78: 2460.610107 | I78: 1 | J78: 1 | K78: 2455.88 | L78: 2460.92 | M78: 2450.34 | N78: 2460.61 | O78: 2962130000
A79: 64 | B79: 2017-07-17 | C79: 2459.5 | D79: 2462.820068 | E79: 2457.159912 | F79: 2459.139893 | G79: 2793170000 | H79: 2459.139893 | I79: 1 | J79: 1 | K79: 2459.5 | L79: 2462.82 | M79: 2457.16 | N79: 2459.14 | O79: 2793170000
A80: 65 | B80: 2017-07-14 | C80: 2449.159912 | D80: 2463.540039 | E80: 2446.689941 | F80: 2459.27002 | G80: 2736640000 | H80: 2459.27002 | I80: 1 | J80: 1 | K80: 2449.16 | L80: 2463.54 | M80: 2446.69 | N80: 2459.27 | O80: 2736640000
A81: 66 | B81: 2017-07-13 | C81: 2444.98999 | D81: 2449.320068 | E81: 2441.689941 | F81: 2447.830078 | G81: 3067670000 | H81: 2447.830078 | I81: =IF(F81=0,1,H81/F81) -> 1 | J81: =INDEX(OFFSET($T$15,0,0,$S$13+1,1),MATCH(B81,OFFSET($Q$15,0,0,$S$13+1,1),-1)) -> 1 | K81: =ROUND($I81*C81,2) -> 2444.99 | L81: =ROUND($I81*D81,2) -> 2449.32 | M81: =ROUND($I81*E81,2) -> 2441.69 | N81: =ROUND($I81*F81,2) -> 2447.83 | O81: =G81*J81 -> 3067670000
A82: 67 | B82: 2017-07-12 | C82: 2435.75 | D82: 2445.76001 | E82: 2435.75 | F82: 2443.25 | G82: 3171620000 | H82: 2443.25 | I82: 1 | J82: 1 | K82: 2435.75 | L82: 2445.76 | M82: 2435.75 | N82: 2443.25 | O82: 3171620000
A83: 68 | B83: 2017-07-11 | C83: 2427.350098 | D83: 2429.300049 | E83: 2412.790039 | F83: 2425.530029 | G83: 3106750000 | H83: 2425.530029 | I83: 1 | J83: 1 | K83: 2427.35 | L83: 2429.3 | M83: 2412.79 | N83: 2425.53 | O83: 3106750000
A84: 69 | B84: 2017-07-10 | C84: 2424.51001 | D84: 2432 | E84: 2422.27002 | F84: 2427.429932 | G84: 2999130000 | H84: 2427.429932 | I84: 1 | J84: 1 | K84: 2424.51 | L84: 2432 | M84: 2422.27 | N84: 2427.43 | O84: 2999130000
A85: 70 | B85: 2017-07-07 | C85: 2413.52002 | D85: 2426.919922 | E85: 2413.52002 | F85: 2425.179932 | G85: 2901330000 | H85: 2425.179932 | I85: 1 | J85: 1 | K85: 2413.52 | L85: 2426.92 | M85: 2413.52 | N85: 2425.18 | O85: 2901330000
A86: 71 | B86: 2017-07-06 | C86: 2423.439941 | D86: 2424.280029 | E86: 2407.699951 | F86: 2409.75 | G86: 3364520000 | H86: 2409.75 | I86: 1 | J86: 1 | K86: 2423.44 | L86: 2424.28 | M86: 2407.7 | N86: 2409.75 | O86: 3364520000
A87: 72 | B87: 2017-07-05 | C87: 2430.780029 | D87: 2434.899902 | E87: 2422.050049 | F87: 2432.540039 | G87: 3367220000 | H87: 2432.540039 | I87: 1 | J87: 1 | K87: 2430.78 | L87: 2434.9 | M87: 2422.05 | N87: 2432.54 | O87: 3367220000
A88: 73 | B88: 2017-07-03 | C88: 2431.389893 | D88: 2439.169922 | E88: 2428.689941 | F88: 2429.01001 | G88: 1962290000 | H88: 2429.01001 | I88: 1 | J88: 1 | K88: 2431.39 | L88: 2439.17 | M88: 2428.69 | N88: 2429.01 | O88: 1962290000
A89: 74 | B89: 2017-06-30 | C89: 2429.199951 | D89: 2432.709961 | E89: 2421.649902 | F89: 2423.409912 | G89: 3361590000 | H89: 2423.409912 | I89: 1 | J89: 1 | K89: 2429.2 | L89: 2432.71 | M89: 2421.65 | N89: 2423.41 | O89: 3361590000
A90: 75 | B90: 2017-06-29 | C90: 2442.379883 | D90: 2442.72998 | E90: 2405.699951 | F90: 2419.699951 | G90: 3900280000 | H90: 2419.699951 | I90: 1 | J90: 1 | K90: 2442.38 | L90: 2442.73 | M90: 2405.7 | N90: 2419.7 | O90: 3900280000
A91: 76 | B91: 2017-06-28 | C91: 2428.699951 | D91: 2442.969971 | E91: 2428.02002 | F91: 2440.689941 | G91: 3500800000 | H91: 2440.689941 | I91: 1 | J91: 1 | K91: 2428.7 | L91: 2442.97 | M91: 2428.02 | N91: 2440.69 | O91: 3500800000
A92: 77 | B92: 2017-06-27 | C92: 2436.340088 | D92: 2440.149902 | E92: 2419.379883 | F92: 2419.379883 | G92: 3563910000 | H92: 2419.379883 | I92: 1 | J92: 1 | K92: 2436.34 | L92: 2440.15 | M92: 2419.38 | N92: 2419.38 | O92: 3563910000
A93: 78 | B93: 2017-06-26 | C93: 2443.320068 | D93: 2450.419922 | E93: 2437.030029 | F93: 2439.070068 | G93: 3238970000 | H93: 2439.070068 | I93: 1 | J93: 1 | K93: 2443.32 | L93: 2450.42 | M93: 2437.03 | N93: 2439.07 | O93: 3238970000
A94: 79 | B94: 2017-06-23 | C94: 2434.649902 | D94: 2441.399902 | E94: 2431.110107 | F94: 2438.300049 | G94: 5278330000 | H94: 2438.300049 | I94: 1 | J94: 1 | K94: 2434.65 | L94: 2441.4 | M94: 2431.11 | N94: 2438.3 | O94: 5278330000
A95: 80 | B95: 2017-06-22 | C95: 2437.399902 | D95: 2441.620117 | E95: 2433.27002 | F95: 2434.5 | G95: 3468210000 | H95: 2434.5 | I95: 1 | J95: 1 | K95: 2437.4 | L95: 2441.62 | M95: 2433.27 | N95: 2434.5 | O95: 3468210000
A96: 81 | B96: 2017-06-21 | C96: 2439.310059 | D96: 2442.22998 | E96: 2430.73999 | F96: 2435.610107 | G96: 3594820000 | H96: 2435.610107 | I96: 1 | J96: 1 | K96: 2439.31 | L96: 2442.23 | M96: 2430.74 | N96: 2435.61 | O96: 3594820000
A97: 82 | B97: 2017-06-20 | C97: 2450.659912 | D97: 2450.659912 | E97: 2436.600098 | F97: 2437.030029 | G97: 3416510000 | H97: 2437.030029 | I97: 1 | J97: 1 | K97: 2450.66 | L97: 2450.66 | M97: 2436.6 | N97: 2437.03 | O97: 3416510000
A98: 83 | B98: 2017-06-19 | C98: 2442.550049 | D98: 2453.820068 | E98: 2441.790039 | F98: 2453.459961 | G98: 3264700000 | H98: 2453.459961 | I98: 1 | J98: 1 | K98: 2442.55 | L98: 2453.82 | M98: 2441.79 | N98: 2453.46 | O98: 3264700000
A99: 84 | B99: 2017-06-16 | C99: 2431.23999 | D99: 2433.149902 | E99: 2422.879883 | F99: 2433.149902 | G99: 5284720000 | H99: 2433.149902 | I99: 1 | J99: 1 | K99: 2431.24 | L99: 2433.15 | M99: 2422.88 | N99: 2433.15 | O99: 5284720000
A100: 85 | B100: 2017-06-15 | C100: 2424.139893 | D100: 2433.949951 | E100: 2418.530029 | F100: 2432.459961 | G100: 3353050000 | H100: 2432.459961 | I100: 1 | J100: 1 | K100: 2424.14 | L100: 2433.95 | M100: 2418.53 | N100: 2432.46 | O100: 3353050000
A101: 86 | B101: 2017-06-14 | C101: 2443.75 | D101: 2443.75 | E101: 2428.340088 | F101: 2437.919922 | G101: 3555590000 | H101: 2437.919922 | I101: 1 | J101: 1 | K101: 2443.75 | L101: 2443.75 | M101: 2428.34 | N101: 2437.92 | O101: 3555590000
A102: 87 | B102: 2017-06-13 | C102: 2434.149902 | D102: 2441.48999 | E102: 2431.280029 | F102: 2440.350098 | G102: 3275500000 | H102: 2440.350098 | I102: 1 | J102: 1 | K102: 2434.15 | L102: 2441.49 | M102: 2431.28 | N102: 2440.35 | O102: 3275500000
A103: 88 | B103: 2017-06-12 | C103: 2425.879883 | D103: 2430.379883 | E103: 2419.969971 | F103: 2429.389893 | G103: 4027750000 | H103: 2429.389893 | I103: 1 | J103: 1 | K103: 2425.88 | L103: 2430.38 | M103: 2419.97 | N103: 2429.39 | O103: 4027750000
A104: 89 | B104: 2017-06-09 | C104: 2436.389893 | D104: 2446.199951 | E104: 2415.699951 | F104: 2431.77002 | G104: 4027340000 | H104: 2431.77002 | I104: 1 | J104: 1 | K104: 2436.39 | L104: 2446.2 | M104: 2415.7 | N104: 2431.77 | O104: 4027340000
A105: 90 | B105: 2017-06-08 | C105: 2434.27002 | D105: 2439.27002 | E105: 2427.939941 | F105: 2433.790039 | G105: 3728860000 | H105: 2433.790039 | I105: 1 | J105: 1 | K105: 2434.27 | L105: 2439.27 | M105: 2427.94 | N105: 2433.79 | O105: 3728860000
A106: 91 | B106: 2017-06-07 | C106: 2432.030029 | D106: 2435.280029 | E106: 2424.75 | F106: 2433.139893 | G106: 3572300000 | H106: 2433.139893 | I106: 1 | J106: 1 | K106: 2432.03 | L106: 2435.28 | M106: 2424.75 | N106: 2433.14 | O106: 3572300000
A107: 92 | B107: 2017-06-06 | C107: 2431.919922 | D107: 2436.209961 | E107: 2428.120117 | F107: 2429.330078 | G107: 3357840000 | H107: 2429.330078 | I107: 1 | J107: 1 | K107: 2431.92 | L107: 2436.21 | M107: 2428.12 | N107: 2429.33 | O107: 3357840000
A108: 93 | B108: 2017-06-05 | C108: 2437.830078 | D108: 2439.550049 | E108: 2434.320068 | F108: 2436.100098 | G108: 2912600000 | H108: 2436.100098 | I108: 1 | J108: 1 | K108: 2437.83 | L108: 2439.55 | M108: 2434.32 | N108: 2436.1 | O108: 2912600000
A109: 94 | B109: 2017-06-02 | C109: 2431.280029 | D109: 2440.22998 | E109: 2427.709961 | F109: 2439.070068 | G109: 3461680000 | H109: 2439.070068 | I109: 1 | J109: 1 | K109: 2431.28 | L109: 2440.23 | M109: 2427.71 | N109: 2439.07 | O109: 3461680000
A110: 95 | B110: 2017-06-01 | C110: 2415.649902 | D110: 2430.060059 | E110: 2413.540039 | F110: 2430.060059 | G110: 3857140000 | H110: 2430.060059 | I110: 1 | J110: 1 | K110: 2415.65 | L110: 2430.06 | M110: 2413.54 | N110: 2430.06 | O110: 3857140000
A111: 96 | B111: 2017-05-31 | C111: 2415.629883 | D111: 2415.98999 | E111: 2403.590088 | F111: 2411.800049 | G111: 4516110000 | H111: 2411.800049 | I111: 1 | J111: 1 | K111: 2415.63 | L111: 2415.99 | M111: 2403.59 | N111: 2411.8 | O111: 4516110000
A112: 97 | B112: 2017-05-30 | C112: 2411.669922 | D112: 2415.26001 | E112: 2409.429932 | F112: 2412.909912 | G112: 3203160000 | H112: 2412.909912 | I112: 1 | J112: 1 | K112: 2411.67 | L112: 2415.26 | M112: 2409.43 | N112: 2412.91 | O112: 3203160000
A113: 98 | B113: 2017-05-26 | C113: 2414.5 | D113: 2416.679932 | E113: 2412.199951 | F113: 2415.820068 | G113: 2805040000 | H113: 2415.820068 | I113: 1 | J113: 1 | K113: 2414.5 | L113: 2416.68 | M113: 2412.2 | N113: 2415.82 | O113: 2805040000
A114: 99 | B114: 2017-05-25 | C114: 2409.540039 | D114: 2418.709961 | E114: 2408.01001 | F114: 2415.070068 | G114: 3535390000 | H114: 2415.070068 | I114: 1 | J114: 1 | K114: 2409.54 | L114: 2418.71 | M114: 2408.01 | N114: 2415.07 | O114: 3535390000
A115: 100 | B115: 2017-05-24 | C115: 2401.409912 | D115: 2405.580078 | E115: 2397.98999 | F115: 2404.389893 | G115: 3389900000 | H115: 2404.389893 | I115: 1 | J115: 1 | K115: 2401.41 | L115: 2405.58 | M115: 2397.99 | N115: 2404.39 | O115: 3389900000
A116: 101 | B116: 2017-05-23 | C116: 2397.040039 | D116: 2400.850098 | E116: 2393.879883 | F116: 2398.419922 | G116: 3213570000 | H116: 2398.419922 | I116: 1 | J116: 1 | K116: 2397.04 | L116: 2400.85 | M116: 2393.88 | N116: 2398.42 | O116: 3213570000
A117: 102 | B117: 2017-05-22 | C117: 2387.209961 | D117: 2395.459961 | E117: 2386.919922 | F117: 2394.02002 | G117: 3172830000 | H117: 2394.02002 | I117: 1 | J117: 1 | K117: 2387.21 | L117: 2395.46 | M117: 2386.92 | N117: 2394.02 | O117: 3172830000
A118: 103 | B118: 2017-05-19 | C118: 2371.370117 | D118: 2389.060059 | E118: 2370.429932 | F118: 2381.72998 | G118: 3825160000 | H118: 2381.72998 | I118: 1 | J118: 1 | K118: 2371.37 | L118: 2389.06 | M118: 2370.43 | N118: 2381.73 | O118: 3825160000
A119: 104 | B119: 2017-05-18 | C119: 2354.689941 | D119: 2375.73999 | E119: 2352.719971 | F119: 2365.719971 | G119: 4319420000 | H119: 2365.719971 | I119: 1 | J119: 1 | K119: 2354.69 | L119: 2375.74 | M119: 2352.72 | N119: 2365.72 | O119: 4319420000
A120: 105 | B120: 2017-05-17 | C120: 2382.949951 | D120: 2384.870117 | E120: 2356.209961 | F120: 2357.030029 | G120: 4163000000 | H120: 2357.030029 | I120: 1 | J120: 1 | K120: 2382.95 | L120: 2384.87 | M120: 2356.21 | N120: 2357.03 | O120: 4163000000
A121: 106 | B121: 2017-05-16 | C121: 2404.550049 | D121: 2405.77002 | E121: 2396.050049 | F121: 2400.669922 | G121: 3420790000 | H121: 2400.669922 | I121: 1 | J121: 1 | K121: 2404.55 | L121: 2405.77 | M121: 2396.05 | N121: 2400.67 | O121: 3420790000
A122: 107 | B122: 2017-05-15 | C122: 2393.97998 | D122: 2404.050049 | E122: 2393.939941 | F122: 2402.320068 | G122: 3473600000 | H122: 2402.320068 | I122: 1 | J122: 1 | K122: 2393.98 | L122: 2404.05 | M122: 2393.94 | N122: 2402.32 | O122: 3473600000
A123: 108 | B123: 2017-05-12 | C123: 2392.439941 | D123: 2392.439941 | E123: 2387.189941 | F123: 2390.899902 | G123: 3305630000 | H123: 2390.899902 | I123: 1 | J123: 1 | K123: 2392.44 | L123: 2392.44 | M123: 2387.19 | N123: 2390.9 | O123: 3305630000
A124: 109 | B124: 2017-05-11 | C124: 2394.840088 | D124: 2395.719971 | E124: 2381.73999 | F124: 2394.439941 | G124: 3727420000 | H124: 2394.439941 | I124: 1 | J124: 1 | K124: 2394.84 | L124: 2395.72 | M124: 2381.74 | N124: 2394.44 | O124: 3727420000
A125: 110 | B125: 2017-05-10 | C125: 2396.790039 | D125: 2399.73999 | E125: 2392.790039 | F125: 2399.629883 | G125: 3643530000 | H125: 2399.629883 | I125: 1 | J125: 1 | K125: 2396.79 | L125: 2399.74 | M125: 2392.79 | N125: 2399.63 | O125: 3643530000
A126: 111 | B126: 2017-05-09 | C126: 2401.580078 | D126: 2403.870117 | E126: 2392.439941 | F126: 2396.919922 | G126: 3653590000 | H126: 2396.919922 | I126: 1 | J126: 1 | K126: 2401.58 | L126: 2403.87 | M126: 2392.44 | N126: 2396.92 | O126: 3653590000
A127: 112 | B127: 2017-05-08 | C127: 2399.939941 | D127: 2401.360107 | E127: 2393.919922 | F127: 2399.379883 | G127: 3429440000 | H127: 2399.379883 | I127: 1 | J127: 1 | K127: 2399.94 | L127: 2401.36 | M127: 2393.92 | N127: 2399.38 | O127: 3429440000
A128: 113 | B128: 2017-05-05 | C128: 2392.370117 | D128: 2399.290039 | E128: 2389.379883 | F128: 2399.290039 | G128: 3540140000 | H128: 2399.290039 | I128: 1 | J128: 1 | K128: 2392.37 | L128: 2399.29 | M128: 2389.38 | N128: 2399.29 | O128: 3540140000
A129: 114 | B129: 2017-05-04 | C129: 2389.790039 | D129: 2391.429932 | E129: 2380.350098 | F129: 2389.52002 | G129: 4362540000 | H129: 2389.52002 | I129: 1 | J129: 1 | K129: 2389.79 | L129: 2391.43 | M129: 2380.35 | N129: 2389.52 | O129: 4362540000
A130: 115 | B130: 2017-05-03 | C130: 2386.5 | D130: 2389.820068 | E130: 2379.75 | F130: 2388.129883 | G130: 3893990000 | H130: 2388.129883 | I130: 1 | J130: 1 | K130: 2386.5 | L130: 2389.82 | M130: 2379.75 | N130: 2388.13 | O130: 3893990000
A131: 116 | B131: 2017-05-02 | C131: 2391.050049 | D131: 2392.929932 | E131: 2385.820068 | F131: 2391.169922 | G131: 3813680000 | H131: 2391.169922 | I131: 1 | J131: 1 | K131: 2391.05 | L131: 2392.93 | M131: 2385.82 | N131: 2391.17 | O131: 3813680000
A132: 117 | B132: 2017-05-01 | C132: 2388.5 | D132: 2394.48999 | E132: 2384.830078 | F132: 2388.330078 | G132: 3199240000 | H132: 2388.330078 | I132: 1 | J132: 1 | K132: 2388.5 | L132: 2394.49 | M132: 2384.83 | N132: 2388.33 | O132: 3199240000
A133: 118 | B133: 2017-04-28 | C133: 2393.679932 | D133: 2393.679932 | E133: 2382.360107 | F133: 2384.199951 | G133: 3718270000 | H133: 2384.199951 | I133: 1 | J133: 1 | K133: 2393.68 | L133: 2393.68 | M133: 2382.36 | N133: 2384.2 | O133: 3718270000
A134: 119 | B134: 2017-04-27 | C134: 2389.699951 | D134: 2392.100098 | E134: 2382.679932 | F134: 2388.77002 | G134: 4098460000 | H134: 2388.77002 | I134: 1 | J134: 1 | K134: 2389.7 | L134: 2392.1 | M134: 2382.68 | N134: 2388.77 | O134: 4098460000
A135: 120 | B135: 2017-04-26 | C135: 2388.97998 | D135: 2398.159912 | E135: 2386.780029 | F135: 2387.449951 | G135: 4105920000 | H135: 2387.449951 | I135: 1 | J135: 1 | K135: 2388.98 | L135: 2398.16 | M135: 2386.78 | N135: 2387.45 | O135: 4105920000
A136: 121 | B136: 2017-04-25 | C136: 2381.51001 | D136: 2392.47998 | E136: 2381.149902 | F136: 2388.610107 | G136: 3995240000 | H136: 2388.610107 | I136: 1 | J136: 1 | K136: 2381.51 | L136: 2392.48 | M136: 2381.15 | N136: 2388.61 | O136: 3995240000
A137: 122 | B137: 2017-04-24 | C137: 2370.330078 | D137: 2376.97998 | E137: 2369.189941 | F137: 2374.149902 | G137: 3690650000 | H137: 2374.149902 | I137: 1 | J137: 1 | K137: 2370.33 | L137: 2376.98 | M137: 2369.19 | N137: 2374.15 | O137: 3690650000
A138: 123 | B138: 2017-04-21 | C138: 2354.73999 | D138: 2356.179932 | E138: 2344.51001 | F138: 2348.689941 | G138: 3503360000 | H138: 2348.689941 | I138: 1 | J138: 1 | K138: 2354.74 | L138: 2356.18 | M138: 2344.51 | N138: 2348.69 | O138: 3503360000
A139: 124 | B139: 2017-04-20 | C139: 2342.689941 | D139: 2361.370117 | E139: 2340.909912 | F139: 2355.840088 | G139: 3647420000 | H139: 2355.840088 | I139: 1 | J139: 1 | K139: 2342.69 | L139: 2361.37 | M139: 2340.91 | N139: 2355.84 | O139: 3647420000
A140: 125 | B140: 2017-04-19 | C140: 2346.790039 | D140: 2352.629883 | E140: 2335.050049 | F140: 2338.169922 | G140: 3519900000 | H140: 2338.169922 | I140: 1 | J140: 1 | K140: 2346.79 | L140: 2352.63 | M140: 2335.05 | N140: 2338.17 | O140: 3519900000
A141: 126 | B141: 2017-04-18 | C141: 2342.530029 | D141: 2348.350098 | E141: 2334.540039 | F141: 2342.189941 | G141: 3269840000 | H141: 2342.189941 | I141: 1 | J141: 1 | K141: 2342.53 | L141: 2348.35 | M141: 2334.54 | N141: 2342.19 | O141: 3269840000
A142: 127 | B142: 2017-04-17 | C142: 2332.620117 | D142: 2349.139893 | E142: 2332.51001 | F142: 2349.01001 | G142: 2824710000 | H142: 2349.01001 | I142: 1 | J142: 1 | K142: 2332.62 | L142: 2349.14 | M142: 2332.51 | N142: 2349.01 | O142: 2824710000
A143: 128 | B143: 2017-04-13 | C143: 2341.97998 | D143: 2348.26001 | E143: 2328.949951 | F143: 2328.949951 | G143: 3143890000 | H143: 2328.949951 | I143: 1 | J143: 1 | K143: 2341.98 | L143: 2348.26 | M143: 2328.95 | N143: 2328.95 | O143: 3143890000
A144: 129 | B144: 2017-04-12 | C144: 2352.149902 | D144: 2352.719971 | E144: 2341.179932 | F144: 2344.929932 | G144: 3196950000 | H144: 2344.929932 | I144: 1 | J144: 1 | K144: 2352.15 | L144: 2352.72 | M144: 2341.18 | N144: 2344.93 | O144: 3196950000
A145: 130 | B145: 2017-04-11 | C145: 2353.919922 | D145: 2355.219971 | E145: 2337.25 | F145: 2353.780029 | G145: 3117420000 | H145: 2353.780029 | I145: =IF(F145=0,1,H145/F145) -> 1 | J145: =INDEX(OFFSET($T$15,0,0,$S$13+1,1),MATCH(B145,OFFSET($Q$15,0,0,$S$13+1,1),-1)) -> 1 | K145: =ROUND($I145*C145,2) -> 2353.92 | L145: =ROUND($I145*D145,2) -> 2355.22 | M145: =ROUND($I145*E145,2) -> 2337.25 | N145: =ROUND($I145*F145,2) -> 2353.78 | O145: =G145*J145 -> 3117420000
A146: 131 | B146: 2017-04-10 | C146: 2357.159912 | D146: 2366.370117 | E146: 2351.5 | F146: 2357.159912 | G146: 2785410000 | H146: 2357.159912 | I146: 1 | J146: 1 | K146: 2357.16 | L146: 2366.37 | M146: 2351.5 | N146: 2357.16 | O146: 2785410000
A147: 132 | B147: 2017-04-07 | C147: 2356.590088 | D147: 2363.76001 | E147: 2350.73999 | F147: 2355.540039 | G147: 3053150000 | H147: 2355.540039 | I147: 1 | J147: 1 | K147: 2356.59 | L147: 2363.76 | M147: 2350.74 | N147: 2355.54 | O147: 3053150000
A148: 133 | B148: 2017-04-06 | C148: 2353.790039 | D148: 2364.159912 | E148: 2348.899902 | F148: 2357.48999 | G148: 3201920000 | H148: 2357.48999 | I148: 1 | J148: 1 | K148: 2353.79 | L148: 2364.16 | M148: 2348.9 | N148: 2357.49 | O148: 3201920000
A149: 134 | B149: 2017-04-05 | C149: 2366.590088 | D149: 2378.360107 | E149: 2350.52002 | F149: 2352.949951 | G149: 3770520000 | H149: 2352.949951 | I149: 1 | J149: 1 | K149: 2366.59 | L149: 2378.36 | M149: 2350.52 | N149: 2352.95 | O149: 3770520000
A150: 135 | B150: 2017-04-04 | C150: 2354.76001 | D150: 2360.530029 | E150: 2350.719971 | F150: 2360.159912 | G150: 3206240000 | H150: 2360.159912 | I150: 1 | J150: 1 | K150: 2354.76 | L150: 2360.53 | M150: 2350.72 | N150: 2360.16 | O150: 3206240000
A151: 136 | B151: 2017-04-03 | C151: 2362.340088 | D151: 2365.870117 | E151: 2344.72998 | F151: 2358.840088 | G151: 3416400000 | H151: 2358.840088 | I151: 1 | J151: 1 | K151: 2362.34 | L151: 2365.87 | M151: 2344.73 | N151: 2358.84 | O151: 3416400000
A152: 137 | B152: 2017-03-31 | C152: 2364.820068 | D152: 2370.350098 | E152: 2362.600098 | F152: 2362.719971 | G152: 3354110000 | H152: 2362.719971 | I152: 1 | J152: 1 | K152: 2364.82 | L152: 2370.35 | M152: 2362.6 | N152: 2362.72 | O152: 3354110000
A153: 138 | B153: 2017-03-30 | C153: 2361.310059 | D153: 2370.419922 | E153: 2358.580078 | F153: 2368.060059 | G153: 3158420000 | H153: 2368.060059 | I153: 1 | J153: 1 | K153: 2361.31 | L153: 2370.42 | M153: 2358.58 | N153: 2368.06 | O153: 3158420000
A154: 139 | B154: 2017-03-29 | C154: 2356.540039 | D154: 2363.360107 | E154: 2352.939941 | F154: 2361.129883 | G154: 3106940000 | H154: 2361.129883 | I154: 1 | J154: 1 | K154: 2356.54 | L154: 2363.36 | M154: 2352.94 | N154: 2361.13 | O154: 3106940000
A155: 140 | B155: 2017-03-28 | C155: 2339.790039 | D155: 2363.780029 | E155: 2337.629883 | F155: 2358.570068 | G155: 3367780000 | H155: 2358.570068 | I155: 1 | J155: 1 | K155: 2339.79 | L155: 2363.78 | M155: 2337.63 | N155: 2358.57 | O155: 3367780000
A156: 141 | B156: 2017-03-27 | C156: 2329.110107 | D156: 2344.899902 | E156: 2322.25 | F156: 2341.590088 | G156: 3240230000 | H156: 2341.590088 | I156: 1 | J156: 1 | K156: 2329.11 | L156: 2344.9 | M156: 2322.25 | N156: 2341.59 | O156: 3240230000
A157: 142 | B157: 2017-03-24 | C157: 2350.419922 | D157: 2356.219971 | E157: 2335.73999 | F157: 2343.97998 | G157: 2975130000 | H157: 2343.97998 | I157: 1 | J157: 1 | K157: 2350.42 | L157: 2356.22 | M157: 2335.74 | N157: 2343.98 | O157: 2975130000
A158: 143 | B158: 2017-03-23 | C158: 2345.969971 | D158: 2358.919922 | E158: 2342.129883 | F158: 2345.959961 | G158: 3260600000 | H158: 2345.959961 | I158: 1 | J158: 1 | K158: 2345.97 | L158: 2358.92 | M158: 2342.13 | N158: 2345.96 | O158: 3260600000
A159: 144 | B159: 2017-03-22 | C159: 2343 | D159: 2351.810059 | E159: 2336.449951 | F159: 2348.449951 | G159: 3572730000 | H159: 2348.449951 | I159: 1 | J159: 1 | K159: 2343 | L159: 2351.81 | M159: 2336.45 | N159: 2348.45 | O159: 3572730000
A160: 145 | B160: 2017-03-21 | C160: 2379.320068 | D160: 2381.929932 | E160: 2341.899902 | F160: 2344.02002 | G160: 4265590000 | H160: 2344.02002 | I160: 1 | J160: 1 | K160: 2379.32 | L160: 2381.93 | M160: 2341.9 | N160: 2344.02 | O160: 4265590000
A161: 146 | B161: 2017-03-20 | C161: 2378.23999 | D161: 2379.550049 | E161: 2369.659912 | F161: 2373.469971 | G161: 3054930000 | H161: 2373.469971 | I161: 1 | J161: 1 | K161: 2378.24 | L161: 2379.55 | M161: 2369.66 | N161: 2373.47 | O161: 3054930000
A162: 147 | B162: 2017-03-17 | C162: 2383.709961 | D162: 2385.709961 | E162: 2377.639893 | F162: 2378.25 | G162: 5178040000 | H162: 2378.25 | I162: 1 | J162: 1 | K162: 2383.71 | L162: 2385.71 | M162: 2377.64 | N162: 2378.25 | O162: 5178040000
A163: 148 | B163: 2017-03-16 | C163: 2387.709961 | D163: 2388.100098 | E163: 2377.179932 | F163: 2381.379883 | G163: 3365660000 | H163: 2381.379883 | I163: 1 | J163: 1 | K163: 2387.71 | L163: 2388.1 | M163: 2377.18 | N163: 2381.38 | O163: 3365660000
A164: 149 | B164: 2017-03-15 | C164: 2370.340088 | D164: 2390.01001 | E164: 2368.939941 | F164: 2385.26001 | G164: 3906840000 | H164: 2385.26001 | I164: 1 | J164: 1 | K164: 2370.34 | L164: 2390.01 | M164: 2368.94 | N164: 2385.26 | O164: 3906840000
A165: 150 | B165: 2017-03-14 | C165: 2368.550049 | D165: 2368.550049 | E165: 2358.179932 | F165: 2365.449951 | G165: 3172630000 | H165: 2365.449951 | I165: 1 | J165: 1 | K165: 2368.55 | L165: 2368.55 | M165: 2358.18 | N165: 2365.45 | O165: 3172630000
A166: 151 | B166: 2017-03-13 | C166: 2371.560059 | D166: 2374.419922 | E166: 2368.52002 | F166: 2373.469971 | G166: 3133900000 | H166: 2373.469971 | I166: 1 | J166: 1 | K166: 2371.56 | L166: 2374.42 | M166: 2368.52 | N166: 2373.47 | O166: 3133900000
A167: 152 | B167: 2017-03-10 | C167: 2372.52002 | D167: 2376.860107 | E167: 2363.040039 | F167: 2372.600098 | G167: 3432950000 | H167: 2372.600098 | I167: 1 | J167: 1 | K167: 2372.52 | L167: 2376.86 | M167: 2363.04 | N167: 2372.6 | O167: 3432950000
A168: 153 | B168: 2017-03-09 | C168: 2363.48999 | D168: 2369.080078 | E168: 2354.540039 | F168: 2364.870117 | G168: 3716340000 | H168: 2364.870117 | I168: 1 | J168: 1 | K168: 2363.49 | L168: 2369.08 | M168: 2354.54 | N168: 2364.87 | O168: 3716340000
A169: 154 | B169: 2017-03-08 | C169: 2369.810059 | D169: 2373.090088 | E169: 2361.01001 | F169: 2362.97998 | G169: 3812100000 | H169: 2362.97998 | I169: 1 | J169: 1 | K169: 2369.81 | L169: 2373.09 | M169: 2361.01 | N169: 2362.98 | O169: 3812100000
A170: 155 | B170: 2017-03-07 | C170: 2370.73999 | D170: 2375.120117 | E170: 2365.51001 | F170: 2368.389893 | G170: 3518390000 | H170: 2368.389893 | I170: 1 | J170: 1 | K170: 2370.74 | L170: 2375.12 | M170: 2365.51 | N170: 2368.39 | O170: 3518390000
A171: 156 | B171: 2017-03-06 | C171: 2375.22998 | D171: 2378.800049 | E171: 2367.97998 | F171: 2375.310059 | G171: 3232700000 | H171: 2375.310059 | I171: 1 | J171: 1 | K171: 2375.23 | L171: 2378.8 | M171: 2367.98 | N171: 2375.31 | O171: 3232700000
A172: 157 | B172: 2017-03-03 | C172: 2380.919922 | D172: 2383.889893 | E172: 2375.389893 | F172: 2383.120117 | G172: 3555260000 | H172: 2383.120117 | I172: 1 | J172: 1 | K172: 2380.92 | L172: 2383.89 | M172: 2375.39 | N172: 2383.12 | O172: 3555260000
A173: 158 | B173: 2017-03-02 | C173: 2394.75 | D173: 2394.75 | E173: 2380.169922 | F173: 2381.919922 | G173: 3821320000 | H173: 2381.919922 | I173: 1 | J173: 1 | K173: 2394.75 | L173: 2394.75 | M173: 2380.17 | N173: 2381.92 | O173: 3821320000
A174: 159 | B174: 2017-03-01 | C174: 2380.129883 | D174: 2400.97998 | E174: 2380.129883 | F174: 2395.959961 | G174: 4345180000 | H174: 2395.959961 | I174: 1 | J174: 1 | K174: 2380.13 | L174: 2400.98 | M174: 2380.13 | N174: 2395.96 | O174: 4345180000
A175: 160 | B175: 2017-02-28 | C175: 2366.080078 | D175: 2367.790039 | E175: 2358.959961 | F175: 2363.639893 | G175: 4210140000 | H175: 2363.639893 | I175: 1 | J175: 1 | K175: 2366.08 | L175: 2367.79 | M175: 2358.96 | N175: 2363.64 | O175: 4210140000
A176: 161 | B176: 2017-02-27 | C176: 2365.22998 | D176: 2371.540039 | E176: 2361.870117 | F176: 2369.75 | G176: 3582610000 | H176: 2369.75 | I176: 1 | J176: 1 | K176: 2365.23 | L176: 2371.54 | M176: 2361.87 | N176: 2369.75 | O176: 3582610000
A177: 162 | B177: 2017-02-24 | C177: 2355.72998 | D177: 2367.340088 | E177: 2352.870117 | F177: 2367.340088 | G177: 3831570000 | H177: 2367.340088 | I177: 1 | J177: 1 | K177: 2355.73 | L177: 2367.34 | M177: 2352.87 | N177: 2367.34 | O177: 3831570000
A178: 163 | B178: 2017-02-23 | C178: 2367.5 | D178: 2368.26001 | E178: 2355.090088 | F178: 2363.810059 | G178: 4015260000 | H178: 2363.810059 | I178: 1 | J178: 1 | K178: 2367.5 | L178: 2368.26 | M178: 2355.09 | N178: 2363.81 | O178: 4015260000
A179: 164 | B179: 2017-02-22 | C179: 2361.110107 | D179: 2365.129883 | E179: 2358.340088 | F179: 2362.820068 | G179: 3468670000 | H179: 2362.820068 | I179: 1 | J179: 1 | K179: 2361.11 | L179: 2365.13 | M179: 2358.34 | N179: 2362.82 | O179: 3468670000
A180: 165 | B180: 2017-02-21 | C180: 2354.909912 | D180: 2366.709961 | E180: 2354.909912 | F180: 2365.379883 | G180: 3579780000 | H180: 2365.379883 | I180: 1 | J180: 1 | K180: 2354.91 | L180: 2366.71 | M180: 2354.91 | N180: 2365.38 | O180: 3579780000
A181: 166 | B181: 2017-02-17 | C181: 2343.01001 | D181: 2351.159912 | E181: 2339.580078 | F181: 2351.159912 | G181: 3513060000 | H181: 2351.159912 | I181: 1 | J181: 1 | K181: 2343.01 | L181: 2351.16 | M181: 2339.58 | N181: 2351.16 | O181: 3513060000
A182: 167 | B182: 2017-02-16 | C182: 2349.639893 | D182: 2351.310059 | E182: 2338.870117 | F182: 2347.219971 | G182: 3672370000 | H182: 2347.219971 | I182: 1 | J182: 1 | K182: 2349.64 | L182: 2351.31 | M182: 2338.87 | N182: 2347.22 | O182: 3672370000
A183: 168 | B183: 2017-02-15 | C183: 2335.580078 | D183: 2351.300049 | E183: 2334.810059 | F183: 2349.25 | G183: 3775590000 | H183: 2349.25 | I183: 1 | J183: 1 | K183: 2335.58 | L183: 2351.3 | M183: 2334.81 | N183: 2349.25 | O183: 3775590000
A184: 169 | B184: 2017-02-14 | C184: 2326.120117 | D184: 2337.580078 | E184: 2322.169922 | F184: 2337.580078 | G184: 3520910000 | H184: 2337.580078 | I184: 1 | J184: 1 | K184: 2326.12 | L184: 2337.58 | M184: 2322.17 | N184: 2337.58 | O184: 3520910000
A185: 170 | B185: 2017-02-13 | C185: 2321.719971 | D185: 2331.580078 | E185: 2321.419922 | F185: 2328.25 | G185: 3349730000 | H185: 2328.25 | I185: 1 | J185: 1 | K185: 2321.72 | L185: 2331.58 | M185: 2321.42 | N185: 2328.25 | O185: 3349730000
A186: 171 | B186: 2017-02-10 | C186: 2312.27002 | D186: 2319.22998 | E186: 2311.100098 | F186: 2316.100098 | G186: 3475020000 | H186: 2316.100098 | I186: 1 | J186: 1 | K186: 2312.27 | L186: 2319.23 | M186: 2311.1 | N186: 2316.1 | O186: 3475020000
A187: 172 | B187: 2017-02-09 | C187: 2296.699951 | D187: 2311.080078 | E187: 2296.610107 | F187: 2307.870117 | G187: 3677940000 | H187: 2307.870117 | I187: 1 | J187: 1 | K187: 2296.7 | L187: 2311.08 | M187: 2296.61 | N187: 2307.87 | O187: 3677940000
A188: 173 | B188: 2017-02-08 | C188: 2289.550049 | D188: 2295.909912 | E188: 2285.379883 | F188: 2294.669922 | G188: 3609740000 | H188: 2294.669922 | I188: 1 | J188: 1 | K188: 2289.55 | L188: 2295.91 | M188: 2285.38 | N188: 2294.67 | O188: 3609740000
A189: 174 | B189: 2017-02-07 | C189: 2295.870117 | D189: 2299.399902 | E189: 2290.159912 | F189: 2293.080078 | G189: 3448690000 | H189: 2293.080078 | I189: 1 | J189: 1 | K189: 2295.87 | L189: 2299.4 | M189: 2290.16 | N189: 2293.08 | O189: 3448690000
A190: 175 | B190: 2017-02-06 | C190: 2294.280029 | D190: 2296.179932 | E190: 2288.570068 | F190: 2292.560059 | G190: 3109050000 | H190: 2292.560059 | I190: 1 | J190: 1 | K190: 2294.28 | L190: 2296.18 | M190: 2288.57 | N190: 2292.56 | O190: 3109050000
A191: 176 | B191: 2017-02-03 | C191: 2288.540039 | D191: 2298.310059 | E191: 2287.879883 | F191: 2297.419922 | G191: 3597970000 | H191: 2297.419922 | I191: 1 | J191: 1 | K191: 2288.54 | L191: 2298.31 | M191: 2287.88 | N191: 2297.42 | O191: 3597970000
A192: 177 | B192: 2017-02-02 | C192: 2276.689941 | D192: 2283.969971 | E192: 2271.649902 | F192: 2280.850098 | G192: 3807710000 | H192: 2280.850098 | I192: 1 | J192: 1 | K192: 2276.69 | L192: 2283.97 | M192: 2271.65 | N192: 2280.85 | O192: 3807710000
A193: 178 | B193: 2017-02-01 | C193: 2285.590088 | D193: 2289.139893 | E193: 2272.439941 | F193: 2279.550049 | G193: 3916610000 | H193: 2279.550049 | I193: 1 | J193: 1 | K193: 2285.59 | L193: 2289.14 | M193: 2272.44 | N193: 2279.55 | O193: 3916610000
A194: 179 | B194: 2017-01-31 | C194: 2274.02002 | D194: 2279.090088 | E194: 2267.209961 | F194: 2278.870117 | G194: 4087450000 | H194: 2278.870117 | I194: 1 | J194: 1 | K194: 2274.02 | L194: 2279.09 | M194: 2267.21 | N194: 2278.87 | O194: 4087450000
A195: 180 | B195: 2017-01-30 | C195: 2286.01001 | D195: 2286.01001 | E195: 2268.040039 | F195: 2280.899902 | G195: 3591270000 | H195: 2280.899902 | I195: 1 | J195: 1 | K195: 2286.01 | L195: 2286.01 | M195: 2268.04 | N195: 2280.9 | O195: 3591270000
A196: 181 | B196: 2017-01-27 | C196: 2299.02002 | D196: 2299.02002 | E196: 2291.620117 | F196: 2294.689941 | G196: 3135890000 | H196: 2294.689941 | I196: 1 | J196: 1 | K196: 2299.02 | L196: 2299.02 | M196: 2291.62 | N196: 2294.69 | O196: 3135890000
A197: 182 | B197: 2017-01-26 | C197: 2298.629883 | D197: 2300.98999 | E197: 2294.080078 | F197: 2296.679932 | G197: 3610360000 | H197: 2296.679932 | I197: 1 | J197: 1 | K197: 2298.63 | L197: 2300.99 | M197: 2294.08 | N197: 2296.68 | O197: 3610360000
A198: 183 | B198: 2017-01-25 | C198: 2288.879883 | D198: 2299.550049 | E198: 2288.879883 | F198: 2298.370117 | G198: 3846020000 | H198: 2298.370117 | I198: 1 | J198: 1 | K198: 2288.88 | L198: 2299.55 | M198: 2288.88 | N198: 2298.37 | O198: 3846020000
A199: 184 | B199: 2017-01-24 | C199: 2267.879883 | D199: 2284.629883 | E199: 2266.679932 | F199: 2280.070068 | G199: 3810960000 | H199: 2280.070068 | I199: 1 | J199: 1 | K199: 2267.88 | L199: 2284.63 | M199: 2266.68 | N199: 2280.07 | O199: 3810960000
A200: 185 | B200: 2017-01-23 | C200: 2267.780029 | D200: 2271.780029 | E200: 2257.02002 | F200: 2265.199951 | G200: 3152710000 | H200: 2265.199951 | I200: 1 | J200: 1 | K200: 2267.78 | L200: 2271.78 | M200: 2257.02 | N200: 2265.2 | O200: 3152710000
... 4300 more rows

Sheet CalculationsAndCharts
A1: Volume Weighted Moving Average Breakouts
A2: =InputPriceData!A1 -> S&P 500 (^GSPC) -SNP (Daily) | R2: Chart Clutter Controls
R3: MACD CHART
A4: User Charting Controls | E4: Click to Shift Chart One Bar: | R4: TRUE
A5: Data Control | R5: TRUE
A6: =InputPriceData!$B$10 -> 17057 | B6: Available Input Data Rows | E6: Earliest: | F6: =OFFSET(InputPriceData!B15,CalculationsAndCharts!A6,0,1,1) -> 1950-01-03 | R6: TRUE
B7: Use Close Adjusted: | C7: TRUE | E7: Latest: | F7: =OFFSET(InputPriceData!B15,1,0,1,1) -> 2017-10-13
A8: =MIN(A6-A11,LOOKUP(2,1/(C:C<>0),ROW(A:A))-32) -> 2500 | B8: Logically Available for Calc / Plot | E8: $ Change: | F8: =G33-G34 -> -5.21
A10: Price Chart Windowing Controls | F10: Y-axis Range
A11: 3223 | B11: Input Data Offset (Pan) | E11: Max High+ | F11: =CEILING(MAX(MAX(OFFSET($E$33,0,0,$A$12,1)))+2*F14,0.1) -> 1229.7
A12: 255 | B12: Data Points to Plot (Zoom) | E12: Min Low- | F12: =FLOOR(MIN(MIN(OFFSET($F$33,0,0,$A$12,1)))-2*F14,0.1) -> 1045.2
B13: First: | C13: =OFFSET(B32,A12,0,1,1) -> 2003-12-22 | E13: White space %: | F13: 0.05
B14: ="Last: " & IF(OFFSET(InputPriceData!P15,1+A11,0,1,1)="","",TEXT(OFFSET(InputPriceData!P15,1+A11,0,1,1),"H:MM AM/PM")) -> Last: | C14: =B33 -> 2004-12-27 | E14: Allowance: | F14: =FLOOR((CEILING(MAX(MAX(OFFSET($E$33,0,0,$A$12,1))),1)-FLOOR(MIN(MIN(OFFSET($F$33,0,0,$A$12,1))),1))*F13,0.01) -> 7.75
A15: User Controls | C15: EMA Coefficients
A16: MACD Controls | C16: EMA Coefficients
B17: Bar Length | C17: Alpha | D17: 1 - Alpha
A18: Daily | B18: 12 | C18: =2/(B18+1) -> 0.1538461538 | D18: =1-C18 -> 0.8461538462
B19: 26 | C19: =2/(B19+1) -> 0.07407407407 | D19: =1-C19 -> 0.9259259259
A20: Weekly | B20: 60 | C20: 0.03278688525 | D20: 0.9672131148
B21: 130 | C21: 0.01526717557 | D21: 0.9847328244
A23: Help! I would like to plot data
A24: From | B24: 2003-12-22 | C24: =OFFSET(InputPriceData!$A$15,MATCH(B24,OFFSET(InputPriceData!B15,1,0,InputPriceData!$B$10,1),0),0,1,1)-C25 -> 255 | E24: 151
A25: To | B25: 2004-12-27 | C25: =OFFSET(InputPriceData!$A$15,MATCH(B25,OFFSET(InputPriceData!$B$15,1,0,InputPriceData!$B$10,1),0),0,1,1)-1 -> 3223 | E25: =$A$12-$E$24+1 -> 105
H28: @ Cursor => | I28: =OFFSET(A32,$E$25,0,1,1)&"(RR)" -> 105(RR) | J28: =OFFSET($B$32,E25,0,1,1) -> 2004-07-29 | K28: =TEXT(OFFSET(D32,$E$25,0,1,1),"#,##0.00")&"(o)" -> 1,095.42(o) | L28: =TEXT(OFFSET(E32,$E$25,0,1,1),"#,##0.00")&"(h)" -> 1,103.51(h) | M28: =TEXT(OFFSET(F32,$E$25,0,1,1),"#,##0.00")&"(l)" -> 1,095.42(l) | N28: =TEXT(OFFSET(G32,$E$25,0,1,1),"#,##0.00")&"(c)" -> 1,100.43(c) | T28: Chart Clutter Controll Work Areas
E29: Cursor ==> | AT29: Chart cursors
AT30: Work area
A31: Rel Row | H31: MACD Daily | J31: ="MACD (" & $B$18 & ", "&$B$19 & ")" -> MACD (12, 26) | K31: Weekly MACD | M31: ="W-MACD (" & $B$20& ", "&$B$21 & ")" -> W-MACD (60, 130) | N31: ="RD-MACD (" & $B$20& ", "& $B$21& ", "& $B$18& ", "&$B$19 & ")" -> RD-MACD (60, 130, 12, 26) | T31: ="Daily(" & $B$18 & ", "&$B$19 & ")" -> Daily(12, 26) | U31: ="Weekly(" & $B$20& ", "&$B$21 & ")" -> Weekly(60, 130) | V31: ="Relative Daily(" & $B$20& ", "& $B$21& ", "& $B$18& ", "&$B$19 & ")" -> Relative Daily(60, 130, 12, 26) | AO31: Used To Color Vol Bars
B32: Date | C32: Volume | D32: Open | E32: High | F32: Low | G32: Close | H32: ="EMA(" & B18 & ")" -> EMA(12) | I32: ="EMA(" & B19 & ")" -> EMA(26) | K32: ="EMA(" & B20 & ")" -> EMA(60) | L32: ="EMA(" & B21 & ")" -> EMA(130) | O32: Zero Line | AO32: Up Vol | AP32: Dn Vol | AT32: Volume Cursor | AV32: =MAX(OFFSET(C33,0,0,A12,1)) -> 2335000000 | AW32: MACD Chart Cursor | AY32: Price Chart Cursor
A33: 1 | B33: =OFFSET(InputPriceData!B$15,CalculationsAndCharts!$A33+$A$11,0,1,1) -> 2004-12-27 | C33: =OFFSET(InputPriceData!G$15,CalculationsAndCharts!$A33+$A$11,IF($C$7,8,0),1,1) -> 922000000 | D33: =OFFSET(InputPriceData!C$15,CalculationsAndCharts!$A33+$A$11,IF($C$7,8,0),1,1) -> 1210.13 | E33: =OFFSET(InputPriceData!D$15,CalculationsAndCharts!$A33+$A$11,IF($C$7,8,0),1,1) -> 1214.13 | F33: =OFFSET(InputPriceData!E$15,CalculationsAndCharts!$A33+$A$11,IF($C$7,8,0),1,1) -> 1204.92 | G33: =OFFSET(InputPriceData!F$15,CalculationsAndCharts!$A33+$A$11,IF($C$7,8,0),1,1) -> 1204.92 | H33: =IF($A33>$A$8,NA(),IF($A33=$A$8,$G33,$G33*$C$18+H34*$D$18)) -> 1200.318501 | I33: =IF($A33>$A$8,NA(),IF($A33=$A$8,$G33,$G33*$C$19+I34*$D$19)) -> 1189.664462 | J33: =H33-I33 -> 10.65403817 | K33: =IF($A33>$A$8,NA(),IF($A33=$A$8,$G33,$G33*$C$20+K34*$D$20)) -> 1167.204515 | L33: =IF($A33>$A$8,NA(),IF($A33=$A$8,$G33,$G33*$C$21+L34*$D$21)) -> 1143.700779 | M33: =K33-L33 -> 23.50373617 | N33: =J33+M33 -> 34.15777435 | O33: 0 | T33: =IF($R$4,J33,NA()) -> 10.65403817 | U33: =IF($R$5,M33,NA()) -> 23.50373617 | V33: =IF($R$6,N33,NA()) -> 34.15777435 | AO33: =IF(G33>=D33,C33,NA()) ->  | AP33: =IF(G33<D33,C33,NA()) -> 922000000 | AT33: =$E$25 -> 105 | AV33: 0 | AW33: =$E$25 -> 105 | AX33: -14 | AY33: =$E$25 -> 105 | AZ33: 1034.202
A34: 2 | B34: =OFFSET(InputPriceData!B$15,CalculationsAndCharts!$A34+$A$11,0,1,1) -> 2004-12-23 | C34: =OFFSET(InputPriceData!G$15,CalculationsAndCharts!$A34+$A$11,IF($C$7,8,0),1,1) -> 956100000 | D34: =OFFSET(InputPriceData!C$15,CalculationsAndCharts!$A34+$A$11,IF($C$7,8,0),1,1) -> 1209.57 | E34: =OFFSET(InputPriceData!D$15,CalculationsAndCharts!$A34+$A$11,IF($C$7,8,0),1,1) -> 1213.66 | F34: =OFFSET(InputPriceData!E$15,CalculationsAndCharts!$A34+$A$11,IF($C$7,8,0),1,1) -> 1208.71 | G34: =OFFSET(InputPriceData!F$15,CalculationsAndCharts!$A34+$A$11,IF($C$7,8,0),1,1) -> 1210.13 | H34: =IF($A34>$A$8,NA(),IF(A34=$A$8,G34,G34*$C$18+H35*$D$18)) -> 1199.481864 | I34: =IF($A34>$A$8,NA(),IF($A34=$A$8,$G34,$G34*$C$19+I35*$D$19)) -> 1188.444019 | J34: =H34-I34 -> 11.03784492 | K34: =IF($A34>$A$8,NA(),IF($A34=$A$8,$G34,$G34*$C$20+K35*$D$20)) -> 1165.926024 | L34: =IF($A34>$A$8,NA(),IF($A34=$A$8,$G34,$G34*$C$21+L35*$D$21)) -> 1142.751643 | M34: =K34-L34 -> 23.17438037 | N34: =J34+M34 -> 34.21222529 | O34: 0 | T34: =IF($R$4,J34,NA()) -> 11.03784492 | U34: =IF($R$5,M34,NA()) -> 23.17438037 | V34: =IF($R$6,N34,NA()) -> 34.21222529 | AO34: 956100000 | AT34: =$E$25 -> 105 | AV34: =1.2*AV32 -> 2802000000 | AW34: =$E$25 -> 105 | AX34: 56 | AY34: =$E$25 -> 105 | AZ34: 1244.48325
A35: 3 | B35: =OFFSET(InputPriceData!B$15,CalculationsAndCharts!$A35+$A$11,0,1,1) -> 2004-12-22 | C35: =OFFSET(InputPriceData!G$15,CalculationsAndCharts!$A35+$A$11,IF($C$7,8,0),1,1) -> 1390800000 | D35: =OFFSET(InputPriceData!C$15,CalculationsAndCharts!$A35+$A$11,IF($C$7,8,0),1,1) -> 1205.45 | E35: =OFFSET(InputPriceData!D$15,CalculationsAndCharts!$A35+$A$11,IF($C$7,8,0),1,1) -> 1211.42 | F35: =OFFSET(InputPriceData!E$15,CalculationsAndCharts!$A35+$A$11,IF($C$7,8,0),1,1) -> 1203.85 | G35: =OFFSET(InputPriceData!F$15,CalculationsAndCharts!$A35+$A$11,IF($C$7,8,0),1,1) -> 1209.57 | H35: 1197.54584 | I35: 1186.709141 | J35: 10.83669869 | K35: 1164.427584 | L35: 1141.707018 | M35: 22.72056618 | N35: 33.55726487 | O35: 0 | T35: 10.83669869 | U35: 22.72056618 | V35: 33.55726487 | AO35: 1390800000
A36: 4 | B36: =OFFSET(InputPriceData!B$15,CalculationsAndCharts!$A36+$A$11,0,1,1) -> 2004-12-21 | C36: =OFFSET(InputPriceData!G$15,CalculationsAndCharts!$A36+$A$11,IF($C$7,8,0),1,1) -> 1483700000 | D36: =OFFSET(InputPriceData!C$15,CalculationsAndCharts!$A36+$A$11,IF($C$7,8,0),1,1) -> 1194.65 | E36: =OFFSET(InputPriceData!D$15,CalculationsAndCharts!$A36+$A$11,IF($C$7,8,0),1,1) -> 1205.93 | F36: =OFFSET(InputPriceData!E$15,CalculationsAndCharts!$A36+$A$11,IF($C$7,8,0),1,1) -> 1194.65 | G36: =OFFSET(InputPriceData!F$15,CalculationsAndCharts!$A36+$A$11,IF($C$7,8,0),1,1) -> 1205.45 | H36: 1195.359629 | I36: 1184.880272 | J36: 10.47935644 | K36: 1162.897333 | L36: 1140.654879 | M36: 22.24245405 | N36: 32.72181049 | O36: 0 | T36: 10.47935644 | U36: 22.24245405 | V36: 32.72181049 | AO36: 1483700000
A37: 5 | B37: =OFFSET(InputPriceData!B$15,CalculationsAndCharts!$A37+$A$11,0,1,1) -> 2004-12-20 | C37: =OFFSET(InputPriceData!G$15,CalculationsAndCharts!$A37+$A$11,IF($C$7,8,0),1,1) -> 1422800000 | D37: =OFFSET(InputPriceData!C$15,CalculationsAndCharts!$A37+$A$11,IF($C$7,8,0),1,1) -> 1194.2 | E37: =OFFSET(InputPriceData!D$15,CalculationsAndCharts!$A37+$A$11,IF($C$7,8,0),1,1) -> 1203.43 | F37: =OFFSET(InputPriceData!E$15,CalculationsAndCharts!$A37+$A$11,IF($C$7,8,0),1,1) -> 1193.36 | G37: =OFFSET(InputPriceData!F$15,CalculationsAndCharts!$A37+$A$11,IF($C$7,8,0),1,1) -> 1194.65 | H37: 1193.525016 | I37: 1183.234694 | J37: 10.29032169 | K37: 1161.454869 | L37: 1139.650303 | M37: 21.80456627 | N37: 32.09488796 | O37: 0 | T37: 10.29032169 | U37: 21.80456627 | V37: 32.09488796 | AO37: 1422800000
A38: 6 | B38: =OFFSET(InputPriceData!B$15,CalculationsAndCharts!$A38+$A$11,0,1,1) -> 2004-12-17 | C38: =OFFSET(InputPriceData!G$15,CalculationsAndCharts!$A38+$A$11,IF($C$7,8,0),1,1) -> 2335000000 | D38: =OFFSET(InputPriceData!C$15,CalculationsAndCharts!$A38+$A$11,IF($C$7,8,0),1,1) -> 1203.21 | E38: =OFFSET(InputPriceData!D$15,CalculationsAndCharts!$A38+$A$11,IF($C$7,8,0),1,1) -> 1203.21 | F38: =OFFSET(InputPriceData!E$15,CalculationsAndCharts!$A38+$A$11,IF($C$7,8,0),1,1) -> 1193.49 | G38: =OFFSET(InputPriceData!F$15,CalculationsAndCharts!$A38+$A$11,IF($C$7,8,0),1,1) -> 1194.2 | H38: 1193.320473 | I38: 1182.321469 | J38: 10.99900356 | K38: 1160.329611 | L38: 1138.797595 | M38: 21.53201609 | N38: 32.53101964 | O38: 0 | T38: 10.99900356 | U38: 21.53201609 | V38: 32.53101964 | AP38: 2335000000
A39: 7 | B39: =OFFSET(InputPriceData!B$15,CalculationsAndCharts!$A39+$A$11,0,1,1) -> 2004-12-16 | C39: =OFFSET(InputPriceData!G$15,CalculationsAndCharts!$A39+$A$11,IF($C$7,8,0),1,1) -> 1793900000 | D39: =OFFSET(InputPriceData!C$15,CalculationsAndCharts!$A39+$A$11,IF($C$7,8,0),1,1) -> 1205.72 | E39: =OFFSET(InputPriceData!D$15,CalculationsAndCharts!$A39+$A$11,IF($C$7,8,0),1,1) -> 1207.97 | F39: =OFFSET(InputPriceData!E$15,CalculationsAndCharts!$A39+$A$11,IF($C$7,8,0),1,1) -> 1198.41 | G39: =OFFSET(InputPriceData!F$15,CalculationsAndCharts!$A39+$A$11,IF($C$7,8,0),1,1) -> 1203.21 | H39: 1193.160559 | I39: 1181.371187 | J39: 11.789372 | K39: 1159.181462 | L39: 1137.938643 | M39: 21.24281932 | N39: 33.03219132 | O39: 0 | T39: 11.789372 | U39: 21.24281932 | V39: 33.03219132 | AP39: 1793900000
A40: 8 | B40: =OFFSET(InputPriceData!B$15,CalculationsAndCharts!$A40+$A$11,0,1,1) -> 2004-12-15 | C40: =OFFSET(InputPriceData!G$15,CalculationsAndCharts!$A40+$A$11,IF($C$7,8,0),1,1) -> 1695800000 | D40: =OFFSET(InputPriceData!C$15,CalculationsAndCharts!$A40+$A$11,IF($C$7,8,0),1,1) -> 1203.38 | E40: =OFFSET(InputPriceData!D$15,CalculationsAndCharts!$A40+$A$11,IF($C$7,8,0),1,1) -> 1206.61 | F40: =OFFSET(InputPriceData!E$15,CalculationsAndCharts!$A40+$A$11,IF($C$7,8,0),1,1) -> 1199.44 | G40: =OFFSET(InputPriceData!F$15,CalculationsAndCharts!$A40+$A$11,IF($C$7,8,0),1,1) -> 1205.72 | H40: 1191.333388 | I40: 1179.624082 | J40: 11.70930596 | K40: 1157.688969 | L40: 1136.926683 | M40: 20.76228553 | N40: 32.47159149 | O40: 0 | T40: 11.70930596 | U40: 20.76228553 | V40: 32.47159149 | AO40: 1695800000
A41: 9 | B41: =OFFSET(InputPriceData!B$15,CalculationsAndCharts!$A41+$A$11,0,1,1) -> 2004-12-14 | C41: =OFFSET(InputPriceData!G$15,CalculationsAndCharts!$A41+$A$11,IF($C$7,8,0),1,1) -> 1544400000 | D41: =OFFSET(InputPriceData!C$15,CalculationsAndCharts!$A41+$A$11,IF($C$7,8,0),1,1) -> 1198.68 | E41: =OFFSET(InputPriceData!D$15,CalculationsAndCharts!$A41+$A$11,IF($C$7,8,0),1,1) -> 1205.29 | F41: =OFFSET(InputPriceData!E$15,CalculationsAndCharts!$A41+$A$11,IF($C$7,8,0),1,1) -> 1197.84 | G41: =OFFSET(InputPriceData!F$15,CalculationsAndCharts!$A41+$A$11,IF($C$7,8,0),1,1) -> 1203.38 | H41: 1188.71764 | I41: 1177.536409 | J41: 11.18123175 | K41: 1156.060798 | L41: 1135.86012 | M41: 20.20067803 | N41: 31.38190978 | O41: 0 | T41: 11.18123175 | U41: 20.20067803 | V41: 31.38190978 | AO41: 1544400000
A42: 10 | B42: =OFFSET(InputPriceData!B$15,CalculationsAndCharts!$A42+$A$11,0,1,1) -> 2004-12-13 | C42: =OFFSET(InputPriceData!G$15,CalculationsAndCharts!$A42+$A$11,IF($C$7,8,0),1,1) -> 1436100000 | D42: =OFFSET(InputPriceData!C$15,CalculationsAndCharts!$A42+$A$11,IF($C$7,8,0),1,1) -> 1188 | E42: =OFFSET(InputPriceData!D$15,CalculationsAndCharts!$A42+$A$11,IF($C$7,8,0),1,1) -> 1198.74 | F42: =OFFSET(InputPriceData!E$15,CalculationsAndCharts!$A42+$A$11,IF($C$7,8,0),1,1) -> 1188 | G42: =OFFSET(InputPriceData!F$15,CalculationsAndCharts!$A42+$A$11,IF($C$7,8,0),1,1) -> 1198.68 | H42: 1186.051757 | I42: 1175.468921 | J42: 10.58283548 | K42: 1154.456758 | L42: 1134.813301 | M42: 19.64345714 | N42: 30.22629263 | O42: 0 | T42: 10.58283548 | U42: 19.64345714 | V42: 30.22629263 | AO42: 1436100000
A43: 11 | B43: =OFFSET(InputPriceData!B$15,CalculationsAndCharts!$A43+$A$11,0,1,1) -> 2004-12-10 | C43: =OFFSET(InputPriceData!G$15,CalculationsAndCharts!$A43+$A$11,IF($C$7,8,0),1,1) -> 1443700000 | D43: =OFFSET(InputPriceData!C$15,CalculationsAndCharts!$A43+$A$11,IF($C$7,8,0),1,1) -> 1189.24 | E43: =OFFSET(InputPriceData!D$15,CalculationsAndCharts!$A43+$A$11,IF($C$7,8,0),1,1) -> 1191.45 | F43: =OFFSET(InputPriceData!E$15,CalculationsAndCharts!$A43+$A$11,IF($C$7,8,0),1,1) -> 1185.24 | G43: =OFFSET(InputPriceData!F$15,CalculationsAndCharts!$A43+$A$11,IF($C$7,8,0),1,1) -> 1188 | H43: =IF($A43>$A$8,NA(),IF(A43=$A$8,G43,G43*$C$18+H44*$D$18)) -> 1183.755712 | I43: =IF($A43>$A$8,NA(),IF($A43=$A$8,$G43,$G43*$C$19+I44*$D$19)) -> 1173.612035 | J43: =H43-I43 -> 10.14367755 | K43: 1152.957665 | L43: 1133.823119 | M43: 19.13454557 | N43: 29.27822312 | O43: 0 | T43: 10.14367755 | U43: 19.13454557 | V43: 29.27822312 | AP43: 1443700000
A44: 12 | B44: =OFFSET(InputPriceData!B$15,CalculationsAndCharts!$A44+$A$11,0,1,1) -> 2004-12-09 | C44: =OFFSET(InputPriceData!G$15,CalculationsAndCharts!$A44+$A$11,IF($C$7,8,0),1,1) -> 1624700000 | D44: =OFFSET(InputPriceData!C$15,CalculationsAndCharts!$A44+$A$11,IF($C$7,8,0),1,1) -> 1182.81 | E44: =OFFSET(InputPriceData!D$15,CalculationsAndCharts!$A44+$A$11,IF($C$7,8,0),1,1) -> 1190.51 | F44: =OFFSET(InputPriceData!E$15,CalculationsAndCharts!$A44+$A$11,IF($C$7,8,0),1,1) -> 1173.79 | G44: =OFFSET(InputPriceData!F$15,CalculationsAndCharts!$A44+$A$11,IF($C$7,8,0),1,1) -> 1189.24 | H44: 1182.984024 | I44: 1172.460998 | J44: 10.52302611 | K44: 1151.769789 | L44: 1132.983168 | M44: 18.78662144 | N44: 29.30964756 | O44: 0 | T44: 10.52302611 | U44: 18.78662144 | V44: 29.30964756 | AO44: 1624700000
A45: 13 | B45: =OFFSET(InputPriceData!B$15,CalculationsAndCharts!$A45+$A$11,0,1,1) -> 2004-12-08 | C45: =OFFSET(InputPriceData!G$15,CalculationsAndCharts!$A45+$A$11,IF($C$7,8,0),1,1) -> 1525200000 | D45: =OFFSET(InputPriceData!C$15,CalculationsAndCharts!$A45+$A$11,IF($C$7,8,0),1,1) -> 1177.07 | E45: =OFFSET(InputPriceData!D$15,CalculationsAndCharts!$A45+$A$11,IF($C$7,8,0),1,1) -> 1184.05 | F45: =OFFSET(InputPriceData!E$15,CalculationsAndCharts!$A45+$A$11,IF($C$7,8,0),1,1) -> 1177.07 | G45: =OFFSET(InputPriceData!F$15,CalculationsAndCharts!$A45+$A$11,IF($C$7,8,0),1,1) -> 1182.81 | H45: 1181.846574 | I45: 1171.118678 | J45: 10.72789608 | K45: 1150.499612 | L45: 1132.110969 | M45: 18.38864375 | N45: 29.11653983 | O45: 0 | T45: 10.72789608 | U45: 18.38864375 | V45: 29.11653983 | AO45: 1525200000
A46: 14 | B46: =OFFSET(InputPriceData!B$15,CalculationsAndCharts!$A46+$A$11,0,1,1) -> 2004-12-07 | C46: =OFFSET(InputPriceData!G$15,CalculationsAndCharts!$A46+$A$11,IF($C$7,8,0),1,1) -> 1533900000 | D46: =OFFSET(InputPriceData!C$15,CalculationsAndCharts!$A46+$A$11,IF($C$7,8,0),1,1) -> 1190.25 | E46: =OFFSET(InputPriceData!D$15,CalculationsAndCharts!$A46+$A$11,IF($C$7,8,0),1,1) -> 1192.17 | F46: =OFFSET(InputPriceData!E$15,CalculationsAndCharts!$A46+$A$11,IF($C$7,8,0),1,1) -> 1177.07 | G46: =OFFSET(InputPriceData!F$15,CalculationsAndCharts!$A46+$A$11,IF($C$7,8,0),1,1) -> 1177.07 | H46: 1181.671405 | I46: 1170.183372 | J46: 11.48803345 | K46: 1149.404345 | L46: 1131.324937 | M46: 18.07940787 | N46: 29.56744132 | O46: 0 | T46: 11.48803345 | U46: 18.07940787 | V46: 29.56744132 | AP46: 1533900000
A47: 15 | B47: =OFFSET(InputPriceData!B$15,CalculationsAndCharts!$A47+$A$11,0,1,1) -> 2004-12-06 | C47: =OFFSET(InputPriceData!G$15,CalculationsAndCharts!$A47+$A$11,IF($C$7,8,0),1,1) -> 1354400000 | D47: =OFFSET(InputPriceData!C$15,CalculationsAndCharts!$A47+$A$11,IF($C$7,8,0),1,1) -> 1191.17 | E47: =OFFSET(InputPriceData!D$15,CalculationsAndCharts!$A47+$A$11,IF($C$7,8,0),1,1) -> 1192.41 | F47: =OFFSET(InputPriceData!E$15,CalculationsAndCharts!$A47+$A$11,IF($C$7,8,0),1,1) -> 1185.18 | G47: =OFFSET(InputPriceData!F$15,CalculationsAndCharts!$A47+$A$11,IF($C$7,8,0),1,1) -> 1190.25 | H47: 1182.508024 | I47: 1169.632441 | J47: 12.87558283 | K47: 1148.466526 | L47: 1130.615711 | M47: 17.85081484 | N47: 30.72639767 | O47: 0 | T47: 12.87558283 | U47: 17.85081484 | V47: 30.72639767 | AP47: 1354400000
A48: 16 | B48: =OFFSET(InputPriceData!B$15,CalculationsAndCharts!$A48+$A$11,0,1,1) -> 2004-12-03 | C48: =OFFSET(InputPriceData!G$15,CalculationsAndCharts!$A48+$A$11,IF($C$7,8,0),1,1) -> 1566700000 | D48: =OFFSET(InputPriceData!C$15,CalculationsAndCharts!$A48+$A$11,IF($C$7,8,0),1,1) -> 1190.33 | E48: =OFFSET(InputPriceData!D$15,CalculationsAndCharts!$A48+$A$11,IF($C$7,8,0),1,1) -> 1197.46 | F48: =OFFSET(InputPriceData!E$15,CalculationsAndCharts!$A48+$A$11,IF($C$7,8,0),1,1) -> 1187.71 | G48: =OFFSET(InputPriceData!F$15,CalculationsAndCharts!$A48+$A$11,IF($C$7,8,0),1,1) -> 1191.17 | H48: 1181.100392 | I48: 1167.983037 | J48: 13.11735557 | K48: 1147.050137 | L48: 1129.691149 | M48: 17.35898851 | N48: 30.47634408 | O48: 0 | T48: 13.11735557 | U48: 17.35898851 | V48: 30.47634408 | AO48: 1566700000
A49: 17 | B49: =OFFSET(InputPriceData!B$15,CalculationsAndCharts!$A49+$A$11,0,1,1) -> 2004-12-02 | C49: =OFFSET(InputPriceData!G$15,CalculationsAndCharts!$A49+$A$11,IF($C$7,8,0),1,1) -> 1774900000 | D49: =OFFSET(InputPriceData!C$15,CalculationsAndCharts!$A49+$A$11,IF($C$7,8,0),1,1) -> 1191.37 | E49: =OFFSET(InputPriceData!D$15,CalculationsAndCharts!$A49+$A$11,IF($C$7,8,0),1,1) -> 1194.8 | F49: =OFFSET(InputPriceData!E$15,CalculationsAndCharts!$A49+$A$11,IF($C$7,8,0),1,1) -> 1186.72 | G49: =OFFSET(InputPriceData!F$15,CalculationsAndCharts!$A49+$A$11,IF($C$7,8,0),1,1) -> 1190.33 | H49: 1179.269555 | I49: 1166.12808 | J49: 13.14147487 | K49: 1145.554549 | L49: 1128.737988 | M49: 16.81656042 | N49: 29.9580353 | O49: 0 | T49: 13.14147487 | U49: 16.81656042 | V49: 29.9580353 | AP49: 1774900000
A50: 18 | B50: =OFFSET(InputPriceData!B$15,CalculationsAndCharts!$A50+$A$11,0,1,1) -> 2004-12-01 | C50: =OFFSET(InputPriceData!G$15,CalculationsAndCharts!$A50+$A$11,IF($C$7,8,0),1,1) -> 1772800000 | D50: =OFFSET(InputPriceData!C$15,CalculationsAndCharts!$A50+$A$11,IF($C$7,8,0),1,1) -> 1173.78 | E50: =OFFSET(InputPriceData!D$15,CalculationsAndCharts!$A50+$A$11,IF($C$7,8,0),1,1) -> 1191.37 | F50: =OFFSET(InputPriceData!E$15,CalculationsAndCharts!$A50+$A$11,IF($C$7,8,0),1,1) -> 1173.78 | G50: =OFFSET(InputPriceData!F$15,CalculationsAndCharts!$A50+$A$11,IF($C$7,8,0),1,1) -> 1191.37 | H50: 1177.258565 | I50: 1164.191926 | J50: 13.06663842 | K50: 1144.036737 | L50: 1127.783073 | M50: 16.25366343 | N50: 29.32030185 | O50: 0 | T50: 13.06663842 | U50: 16.25366343 | V50: 29.32030185 | AO50: 1772800000
A51: 19 | B51: =OFFSET(InputPriceData!B$15,CalculationsAndCharts!$A51+$A$11,0,1,1) -> 2004-11-30 | C51: =OFFSET(InputPriceData!G$15,CalculationsAndCharts!$A51+$A$11,IF($C$7,8,0),1,1) -> 1553500000 | D51: =OFFSET(InputPriceData!C$15,CalculationsAndCharts!$A51+$A$11,IF($C$7,8,0),1,1) -> 1178.57 | E51: =OFFSET(InputPriceData!D$15,CalculationsAndCharts!$A51+$A$11,IF($C$7,8,0),1,1) -> 1178.66 | F51: =OFFSET(InputPriceData!E$15,CalculationsAndCharts!$A51+$A$11,IF($C$7,8,0),1,1) -> 1173.81 | G51: =OFFSET(InputPriceData!F$15,CalculationsAndCharts!$A51+$A$11,IF($C$7,8,0),1,1) -> 1173.82 | H51: 1174.692849 | I51: 1162.01768 | J51: 12.6751688 | K51: 1142.432219 | L51: 1126.79723 | M51: 15.63498985 | N51: 28.31015865 | O51: 0 | T51: 12.6751688 | U51: 15.63498985 | V51: 28.31015865 | AP51: 1553500000
A52: 20 | B52: =OFFSET(InputPriceData!B$15,CalculationsAndCharts!$A52+$A$11,0,1,1) -> 2004-11-29 | C52: =OFFSET(InputPriceData!G$15,CalculationsAndCharts!$A52+$A$11,IF($C$7,8,0),1,1) -> 1378500000 | D52: =OFFSET(InputPriceData!C$15,CalculationsAndCharts!$A52+$A$11,IF($C$7,8,0),1,1) -> 1182.65 | E52: =OFFSET(InputPriceData!D$15,CalculationsAndCharts!$A52+$A$11,IF($C$7,8,0),1,1) -> 1186.94 | F52: =OFFSET(InputPriceData!E$15,CalculationsAndCharts!$A52+$A$11,IF($C$7,8,0),1,1) -> 1172.37 | G52: =OFFSET(InputPriceData!F$15,CalculationsAndCharts!$A52+$A$11,IF($C$7,8,0),1,1) -> 1178.57 | H52: 1174.851549 | I52: 1161.073495 | J52: 13.7780542 | K52: 1141.368227 | L52: 1126.068194 | M52: 15.30003249 | N52: 29.07808669 | O52: 0 | T52: 13.7780542 | U52: 15.30003249 | V52: 29.07808669 | AP52: 1378500000
A53: 21 | B53: =OFFSET(InputPriceData!B$15,CalculationsAndCharts!$A53+$A$11,0,1,1) -> 2004-11-26 | C53: =OFFSET(InputPriceData!G$15,CalculationsAndCharts!$A53+$A$11,IF($C$7,8,0),1,1) -> 504580000 | D53: =OFFSET(InputPriceData!C$15,CalculationsAndCharts!$A53+$A$11,IF($C$7,8,0),1,1) -> 1181.76 | E53: =OFFSET(InputPriceData!D$15,CalculationsAndCharts!$A53+$A$11,IF($C$7,8,0),1,1) -> 1186.62 | F53: =OFFSET(InputPriceData!E$15,CalculationsAndCharts!$A53+$A$11,IF($C$7,8,0),1,1) -> 1181.08 | G53: =OFFSET(InputPriceData!F$15,CalculationsAndCharts!$A53+$A$11,IF($C$7,8,0),1,1) -> 1182.65 | H53: 1174.175467 | I53: 1159.673774 | J53: 14.50169259 | K53: 1140.10715 | L53: 1125.254213 | M53: 14.85293692 | N53: 29.35462951 | O53: 0 | T53: 14.50169259 | U53: 14.85293692 | V53: 29.35462951 | AO53: 504580000
A54: 22 | B54: =OFFSET(InputPriceData!B$15,CalculationsAndCharts!$A54+$A$11,0,1,1) -> 2004-11-24 | C54: =OFFSET(InputPriceData!G$15,CalculationsAndCharts!$A54+$A$11,IF($C$7,8,0),1,1) -> 1149600000 | D54: =OFFSET(InputPriceData!C$15,CalculationsAndCharts!$A54+$A$11,IF($C$7,8,0),1,1) -> 1176.94 | E54: =OFFSET(InputPriceData!D$15,CalculationsAndCharts!$A54+$A$11,IF($C$7,8,0),1,1) -> 1182.46 | F54: =OFFSET(InputPriceData!E$15,CalculationsAndCharts!$A54+$A$11,IF($C$7,8,0),1,1) -> 1176.94 | G54: =OFFSET(InputPriceData!F$15,CalculationsAndCharts!$A54+$A$11,IF($C$7,8,0),1,1) -> 1181.76 | H54: 1172.634643 | I54: 1157.835676 | J54: 14.79896644 | K54: 1138.665019 | L54: 1124.364356 | M54: 14.30066357 | N54: 29.09963 | O54: 0 | T54: 14.79896644 | U54: 14.30066357 | V54: 29.09963 | AO54: 1149600000
A55: 23 | B55: =OFFSET(InputPriceData!B$15,CalculationsAndCharts!$A55+$A$11,0,1,1) -> 2004-11-23 | C55: =OFFSET(InputPriceData!G$15,CalculationsAndCharts!$A55+$A$11,IF($C$7,8,0),1,1) -> 1428300000 | D55: =OFFSET(InputPriceData!C$15,CalculationsAndCharts!$A55+$A$11,IF($C$7,8,0),1,1) -> 1177.24 | E55: =OFFSET(InputPriceData!D$15,CalculationsAndCharts!$A55+$A$11,IF($C$7,8,0),1,1) -> 1179.52 | F55: =OFFSET(InputPriceData!E$15,CalculationsAndCharts!$A55+$A$11,IF($C$7,8,0),1,1) -> 1171.41 | G55: =OFFSET(InputPriceData!F$15,CalculationsAndCharts!$A55+$A$11,IF($C$7,8,0),1,1) -> 1176.94 | H55: 1170.975487 | I55: 1155.92173 | J55: 15.05375645 | K55: 1137.204172 | L55: 1123.474501 | M55: 13.72967171 | N55: 28.78342816 | O55: 0 | T55: 15.05375645 | U55: 13.72967171 | V55: 28.78342816 | AP55: 1428300000
A56: 24 | B56: =OFFSET(InputPriceData!B$15,CalculationsAndCharts!$A56+$A$11,0,1,1) -> 2004-11-22 | C56: =OFFSET(InputPriceData!G$15,CalculationsAndCharts!$A56+$A$11,IF($C$7,8,0),1,1) -> 1392700000 | D56: =OFFSET(InputPriceData!C$15,CalculationsAndCharts!$A56+$A$11,IF($C$7,8,0),1,1) -> 1170.34 | E56: =OFFSET(InputPriceData!D$15,CalculationsAndCharts!$A56+$A$11,IF($C$7,8,0),1,1) -> 1178.18 | F56: =OFFSET(InputPriceData!E$15,CalculationsAndCharts!$A56+$A$11,IF($C$7,8,0),1,1) -> 1167.89 | G56: =OFFSET(InputPriceData!F$15,CalculationsAndCharts!$A56+$A$11,IF($C$7,8,0),1,1) -> 1177.24 | H56: 1169.89103 | I56: 1154.240269 | J56: 15.65076106 | K56: 1135.857195 | L56: 1122.645578 | M56: 13.21161697 | N56: 28.86237804 | O56: 0 | T56: 15.65076106 | U56: 13.21161697 | V56: 28.86237804 | AO56: 1392700000
A57: 25 | B57: =OFFSET(InputPriceData!B$15,CalculationsAndCharts!$A57+$A$11,0,1,1) -> 2004-11-19 | C57: =OFFSET(InputPriceData!G$15,CalculationsAndCharts!$A57+$A$11,IF($C$7,8,0),1,1) -> 1526600000 | D57: =OFFSET(InputPriceData!C$15,CalculationsAndCharts!$A57+$A$11,IF($C$7,8,0),1,1) -> 1183.55 | E57: =OFFSET(InputPriceData!D$15,CalculationsAndCharts!$A57+$A$11,IF($C$7,8,0),1,1) -> 1184 | F57: =OFFSET(InputPriceData!E$15,CalculationsAndCharts!$A57+$A$11,IF($C$7,8,0),1,1) -> 1169.19 | G57: =OFFSET(InputPriceData!F$15,CalculationsAndCharts!$A57+$A$11,IF($C$7,8,0),1,1) -> 1170.34 | H57: 1168.554853 | I57: 1152.40029 | J57: 16.15456315 | K57: 1134.454388 | L57: 1121.799153 | M57: 12.65523518 | N57: 28.80979833 | O57: 0 | T57: 16.15456315 | U57: 12.65523518 | V57: 28.80979833 | AP57: 1526600000
A58: 26 | B58: =OFFSET(InputPriceData!B$15,CalculationsAndCharts!$A58+$A$11,0,1,1) -> 2004-11-18 | C58: =OFFSET(InputPriceData!G$15,CalculationsAndCharts!$A58+$A$11,IF($C$7,8,0),1,1) -> 1456700000 | D58: =OFFSET(InputPriceData!C$15,CalculationsAndCharts!$A58+$A$11,IF($C$7,8,0),1,1) -> 1181.94 | E58: =OFFSET(InputPriceData!D$15,CalculationsAndCharts!$A58+$A$11,IF($C$7,8,0),1,1) -> 1184.9 | F58: =OFFSET(InputPriceData!E$15,CalculationsAndCharts!$A58+$A$11,IF($C$7,8,0),1,1) -> 1180.15 | G58: =OFFSET(InputPriceData!F$15,CalculationsAndCharts!$A58+$A$11,IF($C$7,8,0),1,1) -> 1183.55 | H58: 1168.230281 | I58: 1150.965113 | J58: 17.26516781 | K58: 1133.237927 | L58: 1121.046582 | M58: 12.19134503 | N58: 29.45651284 | O58: 0 | T58: 17.26516781 | U58: 12.19134503 | V58: 29.45651284 | AO58: 1456700000
A59: 27 | B59: =OFFSET(InputPriceData!B$15,CalculationsAndCharts!$A59+$A$11,0,1,1) -> 2004-11-17 | C59: =OFFSET(InputPriceData!G$15,CalculationsAndCharts!$A59+$A$11,IF($C$7,8,0),1,1) -> 1684200000 | D59: =OFFSET(InputPriceData!C$15,CalculationsAndCharts!$A59+$A$11,IF($C$7,8,0),1,1) -> 1175.43 | E59: =OFFSET(InputPriceData!D$15,CalculationsAndCharts!$A59+$A$11,IF($C$7,8,0),1,1) -> 1188.46 | F59: =OFFSET(InputPriceData!E$15,CalculationsAndCharts!$A59+$A$11,IF($C$7,8,0),1,1) -> 1175.43 | G59: =OFFSET(InputPriceData!F$15,CalculationsAndCharts!$A59+$A$11,IF($C$7,8,0),1,1) -> 1181.94 | H59: 1165.444878 | I59: 1148.358322 | J59: 17.08655531 | K59: 1131.532433 | L59: 1120.077537 | M59: 11.45489627 | N59: 28.54145158 | O59: 0 | T59: 17.08655531 | U59: 11.45489627 | V59: 28.54145158 | AO59: 1684200000
A60: 28 | B60: =OFFSET(InputPriceData!B$15,CalculationsAndCharts!$A60+$A$11,0,1,1) -> 2004-11-16 | C60: =OFFSET(InputPriceData!G$15,CalculationsAndCharts!$A60+$A$11,IF($C$7,8,0),1,1) -> 1364400000 | D60: =OFFSET(InputPriceData!C$15,CalculationsAndCharts!$A60+$A$11,IF($C$7,8,0),1,1) -> 1183.81 | E60: =OFFSET(InputPriceData!D$15,CalculationsAndCharts!$A60+$A$11,IF($C$7,8,0),1,1) -> 1183.81 | F60: =OFFSET(InputPriceData!E$15,CalculationsAndCharts!$A60+$A$11,IF($C$7,8,0),1,1) -> 1175.32 | G60: =OFFSET(InputPriceData!F$15,CalculationsAndCharts!$A60+$A$11,IF($C$7,8,0),1,1) -> 1175.43 | H60: 1162.445765 | I60: 1145.671788 | J60: 16.77397638 | K60: 1129.823702 | L60: 1119.118429 | M60: 10.70527314 | N60: 27.47924952 | O60: 0 | T60: 16.77397638 | U60: 10.70527314 | V60: 27.47924952 | AP60: 1364400000
A61: 29 | B61: =OFFSET(InputPriceData!B$15,CalculationsAndCharts!$A61+$A$11,0,1,1) -> 2004-11-15 | C61: =OFFSET(InputPriceData!G$15,CalculationsAndCharts!$A61+$A$11,IF($C$7,8,0),1,1) -> 1453300000 | D61: =OFFSET(InputPriceData!C$15,CalculationsAndCharts!$A61+$A$11,IF($C$7,8,0),1,1) -> 1184.17 | E61: =OFFSET(InputPriceData!D$15,CalculationsAndCharts!$A61+$A$11,IF($C$7,8,0),1,1) -> 1184.48 | F61: =OFFSET(InputPriceData!E$15,CalculationsAndCharts!$A61+$A$11,IF($C$7,8,0),1,1) -> 1179.85 | G61: =OFFSET(InputPriceData!F$15,CalculationsAndCharts!$A61+$A$11,IF($C$7,8,0),1,1) -> 1183.81 | H61: 1160.084994 | I61: 1143.291131 | J61: 16.79386324 | K61: 1128.277726 | L61: 1118.245381 | M61: 10.03234455 | N61: 26.82620779 | O61: 0 | T61: 16.79386324 | U61: 10.03234455 | V61: 26.82620779 | AP61: 1453300000
A62: 30 | B62: =OFFSET(InputPriceData!B$15,CalculationsAndCharts!$A62+$A$11,0,1,1) -> 2004-11-12 | C62: =OFFSET(InputPriceData!G$15,CalculationsAndCharts!$A62+$A$11,IF($C$7,8,0),1,1) -> 1531600000 | D62: =OFFSET(InputPriceData!C$15,CalculationsAndCharts!$A62+$A$11,IF($C$7,8,0),1,1) -> 1173.48 | E62: =OFFSET(InputPriceData!D$15,CalculationsAndCharts!$A62+$A$11,IF($C$7,8,0),1,1) -> 1184.17 | F62: =OFFSET(InputPriceData!E$15,CalculationsAndCharts!$A62+$A$11,IF($C$7,8,0),1,1) -> 1171.43 | G62: =OFFSET(InputPriceData!F$15,CalculationsAndCharts!$A62+$A$11,IF($C$7,8,0),1,1) -> 1184.17 | H62: 1155.771357 | I62: 1140.049622 | J62: 15.72173537 | K62: 1126.395276 | L62: 1117.228875 | M62: 9.166400288 | N62: 24.88813566 | O62: 0 | T62: 15.72173537 | U62: 9.166400288 | V62: 24.88813566 | AO62: 1531600000
A63: 31 | B63: =OFFSET(InputPriceData!B$15,CalculationsAndCharts!$A63+$A$11,0,1,1) -> 2004-11-11 | C63: =OFFSET(InputPriceData!G$15,CalculationsAndCharts!$A63+$A$11,IF($C$7,8,0),1,1) -> 1393000000 | D63: =OFFSET(InputPriceData!C$15,CalculationsAndCharts!$A63+$A$11,IF($C$7,8,0),1,1) -> 1162.91 | E63: =OFFSET(InputPriceData!D$15,CalculationsAndCharts!$A63+$A$11,IF($C$7,8,0),1,1) -> 1174.8 | F63: =OFFSET(InputPriceData!E$15,CalculationsAndCharts!$A63+$A$11,IF($C$7,8,0),1,1) -> 1162.91 | G63: =OFFSET(InputPriceData!F$15,CalculationsAndCharts!$A63+$A$11,IF($C$7,8,0),1,1) -> 1173.48 | H63: 1150.607967 | I63: 1136.519991 | J63: 14.08797602 | K63: 1124.43681 | L63: 1116.191028 | M63: 8.245781949 | N63: 22.33375797 | O63: 0 | T63: 14.08797602 | U63: 8.245781949 | V63: 22.33375797 | AO63: 1393000000
A64: 32 | B64: =OFFSET(InputPriceData!B$15,CalculationsAndCharts!$A64+$A$11,0,1,1) -> 2004-11-10 | C64: =OFFSET(InputPriceData!G$15,CalculationsAndCharts!$A64+$A$11,IF($C$7,8,0),1,1) -> 1504300000 | D64: =OFFSET(InputPriceData!C$15,CalculationsAndCharts!$A64+$A$11,IF($C$7,8,0),1,1) -> 1164.08 | E64: =OFFSET(InputPriceData!D$15,CalculationsAndCharts!$A64+$A$11,IF($C$7,8,0),1,1) -> 1169.25 | F64: =OFFSET(InputPriceData!E$15,CalculationsAndCharts!$A64+$A$11,IF($C$7,8,0),1,1) -> 1162.51 | G64: =OFFSET(InputPriceData!F$15,CalculationsAndCharts!$A64+$A$11,IF($C$7,8,0),1,1) -> 1162.91 | H64: 1146.449416 | I64: 1133.563191 | J64: 12.88622534 | K64: 1122.774329 | L64: 1115.302827 | M64: 7.471502054 | N64: 20.35772739 | O64: 0 | T64: 12.88622534 | U64: 7.471502054 | V64: 20.35772739 | AP64: 1504300000
A65: 33 | B65: =OFFSET(InputPriceData!B$15,CalculationsAndCharts!$A65+$A$11,0,1,1) -> 2004-11-09 | C65: =OFFSET(InputPriceData!G$15,CalculationsAndCharts!$A65+$A$11,IF($C$7,8,0),1,1) -> 1450800000 | D65: =OFFSET(InputPriceData!C$15,CalculationsAndCharts!$A65+$A$11,IF($C$7,8,0),1,1) -> 1164.89 | E65: =OFFSET(InputPriceData!D$15,CalculationsAndCharts!$A65+$A$11,IF($C$7,8,0),1,1) -> 1168.96 | F65: =OFFSET(InputPriceData!E$15,CalculationsAndCharts!$A65+$A$11,IF($C$7,8,0),1,1) -> 1162.48 | G65: =OFFSET(InputPriceData!F$15,CalculationsAndCharts!$A65+$A$11,IF($C$7,8,0),1,1) -> 1164.08 | H65: 1143.456583 | I65: 1131.215446 | J65: 12.24113664 | K65: 1121.413798 | L65: 1114.564732 | M65: 6.849066546 | N65: 19.09020319 | O65: 0 | T65: 12.24113664 | U65: 6.849066546 | V65: 19.09020319 | AP65: 1450800000
A66: 34 | B66: =OFFSET(InputPriceData!B$15,CalculationsAndCharts!$A66+$A$11,0,1,1) -> 2004-11-08 | C66: =OFFSET(InputPriceData!G$15,CalculationsAndCharts!$A66+$A$11,IF($C$7,8,0),1,1) -> 1358700000 | D66: =OFFSET(InputPriceData!C$15,CalculationsAndCharts!$A66+$A$11,IF($C$7,8,0),1,1) -> 1166.17 | E66: =OFFSET(InputPriceData!D$15,CalculationsAndCharts!$A66+$A$11,IF($C$7,8,0),1,1) -> 1166.77 | F66: =OFFSET(InputPriceData!E$15,CalculationsAndCharts!$A66+$A$11,IF($C$7,8,0),1,1) -> 1162.32 | G66: =OFFSET(InputPriceData!F$15,CalculationsAndCharts!$A66+$A$11,IF($C$7,8,0),1,1) -> 1164.89 | H66: 1139.70687 | I66: 1128.586282 | J66: 11.12058872 | K66: 1119.967486 | L66: 1113.797053 | M66: 6.170433199 | N66: 17.29102192 | O66: 0 | T66: 11.12058872 | U66: 6.170433199 | V66: 17.29102192 | AP66: 1358700000
A67: 35 | B67: =OFFSET(InputPriceData!B$15,CalculationsAndCharts!$A67+$A$11,0,1,1) -> 2004-11-05 | C67: =OFFSET(InputPriceData!G$15,CalculationsAndCharts!$A67+$A$11,IF($C$7,8,0),1,1) -> 1724400000 | D67: =OFFSET(InputPriceData!C$15,CalculationsAndCharts!$A67+$A$11,IF($C$7,8,0),1,1) -> 1161.67 | E67: =OFFSET(InputPriceData!D$15,CalculationsAndCharts!$A67+$A$11,IF($C$7,8,0),1,1) -> 1170.87 | F67: =OFFSET(InputPriceData!E$15,CalculationsAndCharts!$A67+$A$11,IF($C$7,8,0),1,1) -> 1160.66 | G67: =OFFSET(InputPriceData!F$15,CalculationsAndCharts!$A67+$A$11,IF($C$7,8,0),1,1) -> 1166.17 | H67: 1135.12812 | I67: 1125.681984 | J67: 9.446135358 | K67: 1118.444689 | L67: 1113.004914 | M67: 5.439774834 | N67: 14.88591019 | O67: 0 | T67: 9.446135358 | U67: 5.439774834 | V67: 14.88591019 | AO67: 1724400000
A68: 36 | B68: =OFFSET(InputPriceData!B$15,CalculationsAndCharts!$A68+$A$11,0,1,1) -> 2004-11-04 | C68: =OFFSET(InputPriceData!G$15,CalculationsAndCharts!$A68+$A$11,IF($C$7,8,0),1,1) -> 1782700000 | D68: =OFFSET(InputPriceData!C$15,CalculationsAndCharts!$A68+$A$11,IF($C$7,8,0),1,1) -> 1143.2 | E68: =OFFSET(InputPriceData!D$15,CalculationsAndCharts!$A68+$A$11,IF($C$7,8,0),1,1) -> 1161.67 | F68: =OFFSET(InputPriceData!E$15,CalculationsAndCharts!$A68+$A$11,IF($C$7,8,0),1,1) -> 1142.34 | G68: =OFFSET(InputPriceData!F$15,CalculationsAndCharts!$A68+$A$11,IF($C$7,8,0),1,1) -> 1161.67 | H68: 1129.484141 | I68: 1122.442943 | J68: 7.041198368 | K68: 1116.826882 | L68: 1112.180649 | M68: 4.646232581 | N68: 11.68743095 | O68: 0 | T68: 7.041198368 | U68: 4.646232581 | V68: 11.68743095 | AO68: 1782700000
A69: 37 | B69: =OFFSET(InputPriceData!B$15,CalculationsAndCharts!$A69+$A$11,0,1,1) -> 2004-11-03 | C69: =OFFSET(InputPriceData!G$15,CalculationsAndCharts!$A69+$A$11,IF($C$7,8,0),1,1) -> 1767500000 | D69: =OFFSET(InputPriceData!C$15,CalculationsAndCharts!$A69+$A$11,IF($C$7,8,0),1,1) -> 1130.54 | E69: =OFFSET(InputPriceData!D$15,CalculationsAndCharts!$A69+$A$11,IF($C$7,8,0),1,1) -> 1147.57 | F69: =OFFSET(InputPriceData!E$15,CalculationsAndCharts!$A69+$A$11,IF($C$7,8,0),1,1) -> 1130.54 | G69: =OFFSET(InputPriceData!F$15,CalculationsAndCharts!$A69+$A$11,IF($C$7,8,0),1,1) -> 1143.2 | H69: 1123.632167 | I69: 1119.304778 | J69: 4.327388634 | K69: 1115.306776 | L69: 1111.413373 | M69: 3.893403639 | N69: 8.220792273 | O69: 0 | T69: 4.327388634 | U69: 3.893403639 | V69: 8.220792273 | AO69: 1767500000
A70: 38 | B70: =OFFSET(InputPriceData!B$15,CalculationsAndCharts!$A70+$A$11,0,1,1) -> 2004-11-02 | C70: =OFFSET(InputPriceData!G$15,CalculationsAndCharts!$A70+$A$11,IF($C$7,8,0),1,1) -> 1659000000 | D70: =OFFSET(InputPriceData!C$15,CalculationsAndCharts!$A70+$A$11,IF($C$7,8,0),1,1) -> 1130.51 | E70: =OFFSET(InputPriceData!D$15,CalculationsAndCharts!$A70+$A$11,IF($C$7,8,0),1,1) -> 1140.48 | F70: =OFFSET(InputPriceData!E$15,CalculationsAndCharts!$A70+$A$11,IF($C$7,8,0),1,1) -> 1128.12 | G70: =OFFSET(InputPriceData!F$15,CalculationsAndCharts!$A70+$A$11,IF($C$7,8,0),1,1) -> 1130.56 | H70: 1120.074379 | I70: 1117.393161 | J70: 2.681218557 | K70: 1114.361243 | L70: 1110.920557 | M70: 3.44068656 | N70: 6.121905117 | O70: 0 | T70: 2.681218557 | U70: 3.44068656 | V70: 6.121905117 | AO70: 1659000000
A71: 39 | B71: =OFFSET(InputPriceData!B$15,CalculationsAndCharts!$A71+$A$11,0,1,1) -> 2004-11-01 | C71: =OFFSET(InputPriceData!G$15,CalculationsAndCharts!$A71+$A$11,IF($C$7,8,0),1,1) -> 1395900000 | D71: =OFFSET(InputPriceData!C$15,CalculationsAndCharts!$A71+$A$11,IF($C$7,8,0),1,1) -> 1130.2 | E71: =OFFSET(InputPriceData!D$15,CalculationsAndCharts!$A71+$A$11,IF($C$7,8,0),1,1) -> 1133.41 | F71: =OFFSET(InputPriceData!E$15,CalculationsAndCharts!$A71+$A$11,IF($C$7,8,0),1,1) -> 1127.6 | G71: =OFFSET(InputPriceData!F$15,CalculationsAndCharts!$A71+$A$11,IF($C$7,8,0),1,1) -> 1130.51 | H71: 1118.167903 | I71: 1116.339814 | J71: 1.828089207 | K71: 1113.812133 | L71: 1110.616069 | M71: 3.196063655 | N71: 5.024152862 | O71: 0 | T71: 1.828089207 | U71: 3.196063655 | V71: 5.024152862 | AO71: 1395900000
A72: 40 | B72: =OFFSET(InputPriceData!B$15,CalculationsAndCharts!$A72+$A$11,0,1,1) -> 2004-10-29 | C72: =OFFSET(InputPriceData!G$15,CalculationsAndCharts!$A72+$A$11,IF($C$7,8,0),1,1) -> 1500800000 | D72: =OFFSET(InputPriceData!C$15,CalculationsAndCharts!$A72+$A$11,IF($C$7,8,0),1,1) -> 1127.44 | E72: =OFFSET(InputPriceData!D$15,CalculationsAndCharts!$A72+$A$11,IF($C$7,8,0),1,1) -> 1131.4 | F72: =OFFSET(InputPriceData!E$15,CalculationsAndCharts!$A72+$A$11,IF($C$7,8,0),1,1) -> 1124.62 | G72: =OFFSET(InputPriceData!F$15,CalculationsAndCharts!$A72+$A$11,IF($C$7,8,0),1,1) -> 1130.2 | H72: 1115.923885 | I72: 1115.206199 | J72: 0.717686448 | K72: 1113.246103 | L72: 1110.307636 | M72: 2.938467297 | N72: 3.656153745 | O72: 0 | T72: 0.717686448 | U72: 2.938467297 | V72: 3.656153745 | AO72: 1500800000
A73: 41 | B73: =OFFSET(InputPriceData!B$15,CalculationsAndCharts!$A73+$A$11,0,1,1) -> 2004-10-28 | C73: =OFFSET(InputPriceData!G$15,CalculationsAndCharts!$A73+$A$11,IF($C$7,8,0),1,1) -> 1628200000 | D73: =OFFSET(InputPriceData!C$15,CalculationsAndCharts!$A73+$A$11,IF($C$7,8,0),1,1) -> 1125.34 | E73: =OFFSET(InputPriceData!D$15,CalculationsAndCharts!$A73+$A$11,IF($C$7,8,0),1,1) -> 1130.67 | F73: =OFFSET(InputPriceData!E$15,CalculationsAndCharts!$A73+$A$11,IF($C$7,8,0),1,1) -> 1120.6 | G73: =OFFSET(InputPriceData!F$15,CalculationsAndCharts!$A73+$A$11,IF($C$7,8,0),1,1) -> 1127.44 | H73: 1113.328228 | I73: 1114.006695 | J73: -0.6784666944 | K73: 1112.671395 | L73: 1109.999227 | M73: 2.672167682 | N73: 1.993700988 | O73: 0 | T73: -0.6784666944 | U73: 2.672167682 | V73: 1.993700988 | AO73: 1628200000
A74: 42 | B74: =OFFSET(InputPriceData!B$15,CalculationsAndCharts!$A74+$A$11,0,1,1) -> 2004-10-27 | C74: =OFFSET(InputPriceData!G$15,CalculationsAndCharts!$A74+$A$11,IF($C$7,8,0),1,1) -> 1741900000 | D74: =OFFSET(InputPriceData!C$15,CalculationsAndCharts!$A74+$A$11,IF($C$7,8,0),1,1) -> 1111.09 | E74: =OFFSET(InputPriceData!D$15,CalculationsAndCharts!$A74+$A$11,IF($C$7,8,0),1,1) -> 1126.29 | F74: =OFFSET(InputPriceData!E$15,CalculationsAndCharts!$A74+$A$11,IF($C$7,8,0),1,1) -> 1107.43 | G74: =OFFSET(InputPriceData!F$15,CalculationsAndCharts!$A74+$A$11,IF($C$7,8,0),1,1) -> 1125.4 | H74: 1110.762451 | I74: 1112.93203 | J74: -2.169579008 | K74: 1112.170764 | L74: 1109.728828 | M74: 2.441936583 | N74: 0.2723575752 | O74: 0 | T74: -2.169579008 | U74: 2.441936583 | V74: 0.2723575752 | AO74: 1741900000
A75: 43 | B75: =OFFSET(InputPriceData!B$15,CalculationsAndCharts!$A75+$A$11,0,1,1) -> 2004-10-26 | C75: =OFFSET(InputPriceData!G$15,CalculationsAndCharts!$A75+$A$11,IF($C$7,8,0),1,1) -> 1685400000 | D75: =OFFSET(InputPriceData!C$15,CalculationsAndCharts!$A75+$A$11,IF($C$7,8,0),1,1) -> 1094.81 | E75: =OFFSET(InputPriceData!D$15,CalculationsAndCharts!$A75+$A$11,IF($C$7,8,0),1,1) -> 1111.1 | F75: =OFFSET(InputPriceData!E$15,CalculationsAndCharts!$A75+$A$11,IF($C$7,8,0),1,1) -> 1094.81 | G75: =OFFSET(InputPriceData!F$15,CalculationsAndCharts!$A75+$A$11,IF($C$7,8,0),1,1) -> 1111.09 | H75: 1108.101079 | I75: 1111.934593 | J75: -3.833513939 | K75: 1111.722316 | L75: 1109.485864 | M75: 2.23645183 | N75: -1.597062109 | O75: 0 | T75: -3.833513939 | U75: 2.23645183 | V75: -1.597062109 | AO75: 1685400000
A76: 44 | B76: =OFFSET(InputPriceData!B$15,CalculationsAndCharts!$A76+$A$11,0,1,1) -> 2004-10-25 | C76: =OFFSET(InputPriceData!G$15,CalculationsAndCharts!$A76+$A$11,IF($C$7,8,0),1,1) -> 1380500000 | D76: =OFFSET(InputPriceData!C$15,CalculationsAndCharts!$A76+$A$11,IF($C$7,8,0),1,1) -> 1095.74 | E76: =OFFSET(InputPriceData!D$15,CalculationsAndCharts!$A76+$A$11,IF($C$7,8,0),1,1) -> 1096.81 | F76: =OFFSET(InputPriceData!E$15,CalculationsAndCharts!$A76+$A$11,IF($C$7,8,0),1,1) -> 1090.29 | G76: =OFFSET(InputPriceData!F$15,CalculationsAndCharts!$A76+$A$11,IF($C$7,8,0),1,1) -> 1094.8 | H76: 1107.557638 | I76: 1112.00216 | J76: -4.444521593 | K76: 1111.74375 | L76: 1109.460994 | M76: 2.28275659 | N76: -2.161765004 | O76: 0 | T76: -4.444521593 | U76: 2.28275659 | V76: -2.161765004 | AP76: 1380500000
A77: 45 | B77: =OFFSET(InputPriceData!B$15,CalculationsAndCharts!$A77+$A$11,0,1,1) -> 2004-10-22 | C77: =OFFSET(InputPriceData!G$15,CalculationsAndCharts!$A77+$A$11,IF($C$7,8,0),1,1) -> 1469600000 | D77: =OFFSET(InputPriceData!C$15,CalculationsAndCharts!$A77+$A$11,IF($C$7,8,0),1,1) -> 1106.49 | E77: =OFFSET(InputPriceData!D$15,CalculationsAndCharts!$A77+$A$11,IF($C$7,8,0),1,1) -> 1108.14 | F77: =OFFSET(InputPriceData!E$15,CalculationsAndCharts!$A77+$A$11,IF($C$7,8,0),1,1) -> 1095.47 | G77: =OFFSET(InputPriceData!F$15,CalculationsAndCharts!$A77+$A$11,IF($C$7,8,0),1,1) -> 1095.74 | H77: 1109.877209 | I77: 1113.378333 | J77: -3.501123777 | K77: 1112.318115 | L77: 1109.688296 | M77: 2.629818778 | N77: -0.8713049989 | O77: 0 | T77: -3.501123777 | U77: 2.629818778 | V77: -0.8713049989 | AP77: 1469600000
A78: 46 | B78: =OFFSET(InputPriceData!B$15,CalculationsAndCharts!$A78+$A$11,0,1,1) -> 2004-10-21 | C78: =OFFSET(InputPriceData!G$15,CalculationsAndCharts!$A78+$A$11,IF($C$7,8,0),1,1) -> 1673000000 | D78: =OFFSET(InputPriceData!C$15,CalculationsAndCharts!$A78+$A$11,IF($C$7,8,0),1,1) -> 1103.66 | E78: =OFFSET(InputPriceData!D$15,CalculationsAndCharts!$A78+$A$11,IF($C$7,8,0),1,1) -> 1108.87 | F78: =OFFSET(InputPriceData!E$15,CalculationsAndCharts!$A78+$A$11,IF($C$7,8,0),1,1) -> 1098.47 | G78: =OFFSET(InputPriceData!F$15,CalculationsAndCharts!$A78+$A$11,IF($C$7,8,0),1,1) -> 1106.49 | H78: 1112.447611 | I78: 1114.789399 | J78: -2.341788763 | K78: 1112.880085 | L78: 1109.904549 | M78: 2.975536117 | N78: 0.633747354 | O78: 0 | T78: -2.341788763 | U78: 2.975536117 | V78: 0.633747354 | AO78: 1673000000
A79: 47 | B79: =OFFSET(InputPriceData!B$15,CalculationsAndCharts!$A79+$A$11,0,1,1) -> 2004-10-20 | C79: =OFFSET(InputPriceData!G$15,CalculationsAndCharts!$A79+$A$11,IF($C$7,8,0),1,1) -> 1685700000 | D79: =OFFSET(InputPriceData!C$15,CalculationsAndCharts!$A79+$A$11,IF($C$7,8,0),1,1) -> 1103.23 | E79: =OFFSET(InputPriceData!D$15,CalculationsAndCharts!$A79+$A$11,IF($C$7,8,0),1,1) -> 1104.09 | F79: =OFFSET(InputPriceData!E$15,CalculationsAndCharts!$A79+$A$11,IF($C$7,8,0),1,1) -> 1094.25 | G79: =OFFSET(InputPriceData!F$15,CalculationsAndCharts!$A79+$A$11,IF($C$7,8,0),1,1) -> 1103.66 | H79: 1113.530813 | I79: 1115.453351 | J79: -1.922538781 | K79: 1113.096698 | L79: 1109.957487 | M79: 3.139210419 | N79: 1.216671637 | O79: 0 | T79: -1.922538781 | U79: 3.139210419 | V79: 1.216671637 | AO79: 1685700000
A80: 48 | B80: =OFFSET(InputPriceData!B$15,CalculationsAndCharts!$A80+$A$11,0,1,1) -> 2004-10-19 | C80: =OFFSET(InputPriceData!G$15,CalculationsAndCharts!$A80+$A$11,IF($C$7,8,0),1,1) -> 1737500000 | D80: =OFFSET(InputPriceData!C$15,CalculationsAndCharts!$A80+$A$11,IF($C$7,8,0),1,1) -> 1114.02 | E80: =OFFSET(InputPriceData!D$15,CalculationsAndCharts!$A80+$A$11,IF($C$7,8,0),1,1) -> 1117.96 | F80: =OFFSET(InputPriceData!E$15,CalculationsAndCharts!$A80+$A$11,IF($C$7,8,0),1,1) -> 1103.15 | G80: =OFFSET(InputPriceData!F$15,CalculationsAndCharts!$A80+$A$11,IF($C$7,8,0),1,1) -> 1103.23 | H80: 1115.325506 | I80: 1116.396819 | J80: -1.071313695 | K80: 1113.416586 | L80: 1110.055123 | M80: 3.361463014 | N80: 2.290149319 | O80: 0 | T80: -1.071313695 | U80: 3.361463014 | V80: 2.290149319 | AP80: 1737500000
A81: 49 | B81: =OFFSET(InputPriceData!B$15,CalculationsAndCharts!$A81+$A$11,0,1,1) -> 2004-10-18 | C81: =OFFSET(InputPriceData!G$15,CalculationsAndCharts!$A81+$A$11,IF($C$7,8,0),1,1) -> 1373300000 | D81: =OFFSET(InputPriceData!C$15,CalculationsAndCharts!$A81+$A$11,IF($C$7,8,0),1,1) -> 1108.2 | E81: =OFFSET(InputPriceData!D$15,CalculationsAndCharts!$A81+$A$11,IF($C$7,8,0),1,1) -> 1114.46 | F81: =OFFSET(InputPriceData!E$15,CalculationsAndCharts!$A81+$A$11,IF($C$7,8,0),1,1) -> 1103.33 | G81: =OFFSET(InputPriceData!F$15,CalculationsAndCharts!$A81+$A$11,IF($C$7,8,0),1,1) -> 1114.02 | H81: 1117.524689 | I81: 1117.450165 | J81: 0.07452361355 | K81: 1113.761894 | L81: 1110.160939 | M81: 3.600955149 | N81: 3.675478763 | O81: 0 | T81: 0.07452361355 | U81: 3.600955149 | V81: 3.675478763 | AO81: 1373300000
A82: 50 | B82: =OFFSET(InputPriceData!B$15,CalculationsAndCharts!$A82+$A$11,0,1,1) -> 2004-10-15 | C82: =OFFSET(InputPriceData!G$15,CalculationsAndCharts!$A82+$A$11,IF($C$7,8,0),1,1) -> 1645100000 | D82: =OFFSET(InputPriceData!C$15,CalculationsAndCharts!$A82+$A$11,IF($C$7,8,0),1,1) -> 1103.29 | E82: =OFFSET(InputPriceData!D$15,CalculationsAndCharts!$A82+$A$11,IF($C$7,8,0),1,1) -> 1113.17 | F82: =OFFSET(InputPriceData!E$15,CalculationsAndCharts!$A82+$A$11,IF($C$7,8,0),1,1) -> 1102.14 | G82: =OFFSET(InputPriceData!F$15,CalculationsAndCharts!$A82+$A$11,IF($C$7,8,0),1,1) -> 1108.2 | H82: 1118.161905 | I82: 1117.724578 | J82: 0.4373265261 | K82: 1113.753144 | L82: 1110.101108 | M82: 3.652036194 | N82: 4.08936272 | O82: 0 | T82: 0.4373265261 | U82: 3.652036194 | V82: 4.08936272 | AO82: 1645100000
A83: 51 | B83: =OFFSET(InputPriceData!B$15,CalculationsAndCharts!$A83+$A$11,0,1,1) -> 2004-10-14 | C83: =OFFSET(InputPriceData!G$15,CalculationsAndCharts!$A83+$A$11,IF($C$7,8,0),1,1) -> 1489500000 | D83: =OFFSET(InputPriceData!C$15,CalculationsAndCharts!$A83+$A$11,IF($C$7,8,0),1,1) -> 1113.65 | E83: =OFFSET(InputPriceData!D$15,CalculationsAndCharts!$A83+$A$11,IF($C$7,8,0),1,1) -> 1114.96 | F83: =OFFSET(InputPriceData!E$15,CalculationsAndCharts!$A83+$A$11,IF($C$7,8,0),1,1) -> 1102.06 | G83: =OFFSET(InputPriceData!F$15,CalculationsAndCharts!$A83+$A$11,IF($C$7,8,0),1,1) -> 1103.29 | H83: 1119.97316 | I83: 1118.486544 | J83: 1.486615676 | K83: 1113.941387 | L83: 1110.130583 | M83: 3.81080383 | N83: 5.297419506 | O83: 0 | T83: 1.486615676 | U83: 3.81080383 | V83: 5.297419506 | AP83: 1489500000
A84: 52 | B84: =OFFSET(InputPriceData!B$15,CalculationsAndCharts!$A84+$A$11,0,1,1) -> 2004-10-13 | C84: =OFFSET(InputPriceData!G$15,CalculationsAndCharts!$A84+$A$11,IF($C$7,8,0),1,1) -> 1546200000 | D84: =OFFSET(InputPriceData!C$15,CalculationsAndCharts!$A84+$A$11,IF($C$7,8,0),1,1) -> 1121.84 | E84: =OFFSET(InputPriceData!D$15,CalculationsAndCharts!$A84+$A$11,IF($C$7,8,0),1,1) -> 1127.01 | F84: =OFFSET(InputPriceData!E$15,CalculationsAndCharts!$A84+$A$11,IF($C$7,8,0),1,1) -> 1109.63 | G84: =OFFSET(InputPriceData!F$15,CalculationsAndCharts!$A84+$A$11,IF($C$7,8,0),1,1) -> 1113.65 | H84: 1123.006462 | I84: 1119.702268 | J84: 3.304193963 | K84: 1114.30245 | L84: 1110.236638 | M84: 4.065812235 | N84: 7.370006198 | O84: 0 | T84: 3.304193963 | U84: 4.065812235 | V84: 7.370006198 | AP84: 1546200000
A85: 53 | B85: =OFFSET(InputPriceData!B$15,CalculationsAndCharts!$A85+$A$11,0,1,1) -> 2004-10-12 | C85: =OFFSET(InputPriceData!G$15,CalculationsAndCharts!$A85+$A$11,IF($C$7,8,0),1,1) -> 1320100000 | D85: =OFFSET(InputPriceData!C$15,CalculationsAndCharts!$A85+$A$11,IF($C$7,8,0),1,1) -> 1124.39 | E85: =OFFSET(InputPriceData!D$15,CalculationsAndCharts!$A85+$A$11,IF($C$7,8,0),1,1) -> 1124.39 | F85: =OFFSET(InputPriceData!E$15,CalculationsAndCharts!$A85+$A$11,IF($C$7,8,0),1,1) -> 1115.77 | G85: =OFFSET(InputPriceData!F$15,CalculationsAndCharts!$A85+$A$11,IF($C$7,8,0),1,1) -> 1121.84 | H85: 1124.707637 | I85: 1120.186449 | J85: 4.521187428 | K85: 1114.324567 | L85: 1110.183718 | M85: 4.140849538 | N85: 8.662036966 | O85: 0 | T85: 4.521187428 | U85: 4.140849538 | V85: 8.662036966 | AP85: 1320100000
A86: 54 | B86: =OFFSET(InputPriceData!B$15,CalculationsAndCharts!$A86+$A$11,0,1,1) -> 2004-10-11 | C86: =OFFSET(InputPriceData!G$15,CalculationsAndCharts!$A86+$A$11,IF($C$7,8,0),1,1) -> 943800000 | D86: =OFFSET(InputPriceData!C$15,CalculationsAndCharts!$A86+$A$11,IF($C$7,8,0),1,1) -> 1122.14 | E86: =OFFSET(InputPriceData!D$15,CalculationsAndCharts!$A86+$A$11,IF($C$7,8,0),1,1) -> 1126.2 | F86: =OFFSET(InputPriceData!E$15,CalculationsAndCharts!$A86+$A$11,IF($C$7,8,0),1,1) -> 1122.14 | G86: =OFFSET(InputPriceData!F$15,CalculationsAndCharts!$A86+$A$11,IF($C$7,8,0),1,1) -> 1124.39 | H86: 1125.229025 | I86: 1120.054165 | J86: 5.174859997 | K86: 1114.069807 | L86: 1110.003 | M86: 4.066806665 | N86: 9.241666662 | O86: 0 | T86: 5.174859997 | U86: 4.066806665 | V86: 9.241666662 | AO86: 943800000
A87: 55 | B87: =OFFSET(InputPriceData!B$15,CalculationsAndCharts!$A87+$A$11,0,1,1) -> 2004-10-08 | C87: =OFFSET(InputPriceData!G$15,CalculationsAndCharts!$A87+$A$11,IF($C$7,8,0),1,1) -> 1291600000 | D87: =OFFSET(InputPriceData!C$15,CalculationsAndCharts!$A87+$A$11,IF($C$7,8,0),1,1) -> 1130.65 | E87: =OFFSET(InputPriceData!D$15,CalculationsAndCharts!$A87+$A$11,IF($C$7,8,0),1,1) -> 1132.92 | F87: =OFFSET(InputPriceData!E$15,CalculationsAndCharts!$A87+$A$11,IF($C$7,8,0),1,1) -> 1120.19 | G87: =OFFSET(InputPriceData!F$15,CalculationsAndCharts!$A87+$A$11,IF($C$7,8,0),1,1) -> 1122.14 | H87: 1125.381575 | I87: 1119.707299 | J87: 5.674276839 | K87: 1113.71997 | L87: 1109.779946 | M87: 3.940023873 | N87: 9.614300712 | O87: 0 | T87: 5.674276839 | U87: 3.940023873 | V87: 9.614300712 | AP87: 1291600000
A88: 56 | B88: =OFFSET(InputPriceData!B$15,CalculationsAndCharts!$A88+$A$11,0,1,1) -> 2004-10-07 | C88: =OFFSET(InputPriceData!G$15,CalculationsAndCharts!$A88+$A$11,IF($C$7,8,0),1,1) -> 1447500000 | D88: =OFFSET(InputPriceData!C$15,CalculationsAndCharts!$A88+$A$11,IF($C$7,8,0),1,1) -> 1142.05 | E88: =OFFSET(InputPriceData!D$15,CalculationsAndCharts!$A88+$A$11,IF($C$7,8,0),1,1) -> 1142.05 | F88: =OFFSET(InputPriceData!E$15,CalculationsAndCharts!$A88+$A$11,IF($C$7,8,0),1,1) -> 1130.5 | G88: =OFFSET(InputPriceData!F$15,CalculationsAndCharts!$A88+$A$11,IF($C$7,8,0),1,1) -> 1130.65 | H88: 1125.970953 | I88: 1119.512683 | J88: 6.45827031 | K88: 1113.434545 | L88: 1109.588317 | M88: 3.846227869 | N88: 10.30449818 | O88: 0 | T88: 6.45827031 | U88: 3.846227869 | V88: 10.30449818 | AP88: 1447500000
A89: 57 | B89: =OFFSET(InputPriceData!B$15,CalculationsAndCharts!$A89+$A$11,0,1,1) -> 2004-10-06 | C89: =OFFSET(InputPriceData!G$15,CalculationsAndCharts!$A89+$A$11,IF($C$7,8,0),1,1) -> 1416700000 | D89: =OFFSET(InputPriceData!C$15,CalculationsAndCharts!$A89+$A$11,IF($C$7,8,0),1,1) -> 1134.48 | E89: =OFFSET(InputPriceData!D$15,CalculationsAndCharts!$A89+$A$11,IF($C$7,8,0),1,1) -> 1142.05 | F89: =OFFSET(InputPriceData!E$15,CalculationsAndCharts!$A89+$A$11,IF($C$7,8,0),1,1) -> 1132.94 | G89: =OFFSET(InputPriceData!F$15,CalculationsAndCharts!$A89+$A$11,IF($C$7,8,0),1,1) -> 1142.05 | H89: 1125.120217 | I89: 1118.621697 | J89: 6.498519863 | K89: 1112.850971 | L89: 1109.26178 | M89: 3.589190847 | N89: 10.08771071 | O89: 0 | T89: 6.498519863 | U89: 3.589190847 | V89: 10.08771071 | AO89: 1416700000
A90: 58 | B90: =OFFSET(InputPriceData!B$15,CalculationsAndCharts!$A90+$A$11,0,1,1) -> 2004-10-05 | C90: =OFFSET(InputPriceData!G$15,CalculationsAndCharts!$A90+$A$11,IF($C$7,8,0),1,1) -> 1418400000 | D90: =OFFSET(InputPriceData!C$15,CalculationsAndCharts!$A90+$A$11,IF($C$7,8,0),1,1) -> 1135.17 | E90: =OFFSET(InputPriceData!D$15,CalculationsAndCharts!$A90+$A$11,IF($C$7,8,0),1,1) -> 1137.87 | F90: =OFFSET(InputPriceData!E$15,CalculationsAndCharts!$A90+$A$11,IF($C$7,8,0),1,1) -> 1132.03 | G90: =OFFSET(InputPriceData!F$15,CalculationsAndCharts!$A90+$A$11,IF($C$7,8,0),1,1) -> 1134.48 | H90: 1122.042075 | I90: 1116.747433 | J90: 5.29464173 | K90: 1111.861173 | L90: 1108.753435 | M90: 3.107737738 | N90: 8.402379468 | O90: 0 | T90: 5.29464173 | U90: 3.107737738 | V90: 8.402379468 | AP90: 1418400000
A91: 59 | B91: =OFFSET(InputPriceData!B$15,CalculationsAndCharts!$A91+$A$11,0,1,1) -> 2004-10-04 | C91: =OFFSET(InputPriceData!G$15,CalculationsAndCharts!$A91+$A$11,IF($C$7,8,0),1,1) -> 1534000000 | D91: =OFFSET(InputPriceData!C$15,CalculationsAndCharts!$A91+$A$11,IF($C$7,8,0),1,1) -> 1131.5 | E91: =OFFSET(InputPriceData!D$15,CalculationsAndCharts!$A91+$A$11,IF($C$7,8,0),1,1) -> 1140.13 | F91: =OFFSET(InputPriceData!E$15,CalculationsAndCharts!$A91+$A$11,IF($C$7,8,0),1,1) -> 1131.5 | G91: =OFFSET(InputPriceData!F$15,CalculationsAndCharts!$A91+$A$11,IF($C$7,8,0),1,1) -> 1135.17 | H91: 1119.780634 | I91: 1115.328828 | J91: 4.451806124 | K91: 1111.094433 | L91: 1108.354574 | M91: 2.739859307 | N91: 7.191665431 | O91: 0 | T91: 4.451806124 | U91: 2.739859307 | V91: 7.191665431 | AO91: 1534000000
A92: 60 | B92: =OFFSET(InputPriceData!B$15,CalculationsAndCharts!$A92+$A$11,0,1,1) -> 2004-10-01 | C92: =OFFSET(InputPriceData!G$15,CalculationsAndCharts!$A92+$A$11,IF($C$7,8,0),1,1) -> 1582200000 | D92: =OFFSET(InputPriceData!C$15,CalculationsAndCharts!$A92+$A$11,IF($C$7,8,0),1,1) -> 1114.58 | E92: =OFFSET(InputPriceData!D$15,CalculationsAndCharts!$A92+$A$11,IF($C$7,8,0),1,1) -> 1131.64 | F92: =OFFSET(InputPriceData!E$15,CalculationsAndCharts!$A92+$A$11,IF($C$7,8,0),1,1) -> 1114.58 | G92: =OFFSET(InputPriceData!F$15,CalculationsAndCharts!$A92+$A$11,IF($C$7,8,0),1,1) -> 1131.5 | H92: 1116.982567 | I92: 1113.741534 | J92: 3.241033317 | K92: 1110.278312 | L92: 1107.938831 | M92: 2.339481435 | N92: 5.580514752 | O92: 0 | T92: 3.241033317 | U92: 2.339481435 | V92: 5.580514752 | AO92: 1582200000
A93: 61 | B93: =OFFSET(InputPriceData!B$15,CalculationsAndCharts!$A93+$A$11,0,1,1) -> 2004-09-30 | C93: =OFFSET(InputPriceData!G$15,CalculationsAndCharts!$A93+$A$11,IF($C$7,8,0),1,1) -> 1748000000 | D93: =OFFSET(InputPriceData!C$15,CalculationsAndCharts!$A93+$A$11,IF($C$7,8,0),1,1) -> 1114.8 | E93: =OFFSET(InputPriceData!D$15,CalculationsAndCharts!$A93+$A$11,IF($C$7,8,0),1,1) -> 1116.31 | F93: =OFFSET(InputPriceData!E$15,CalculationsAndCharts!$A93+$A$11,IF($C$7,8,0),1,1) -> 1109.68 | G93: =OFFSET(InputPriceData!F$15,CalculationsAndCharts!$A93+$A$11,IF($C$7,8,0),1,1) -> 1114.58 | H93: 1114.343034 | I93: 1112.320856 | J93: 2.022177358 | K93: 1109.558933 | L93: 1107.573541 | M93: 1.985391631 | N93: 4.007568989 | O93: 0 | T93: 2.022177358 | U93: 1.985391631 | V93: 4.007568989 | AP93: 1748000000
A94: 62 | B94: =OFFSET(InputPriceData!B$15,CalculationsAndCharts!$A94+$A$11,0,1,1) -> 2004-09-29 | C94: =OFFSET(InputPriceData!G$15,CalculationsAndCharts!$A94+$A$11,IF($C$7,8,0),1,1) -> 1402900000 | D94: =OFFSET(InputPriceData!C$15,CalculationsAndCharts!$A94+$A$11,IF($C$7,8,0),1,1) -> 1110.06 | E94: =OFFSET(InputPriceData!D$15,CalculationsAndCharts!$A94+$A$11,IF($C$7,8,0),1,1) -> 1114.8 | F94: =OFFSET(InputPriceData!E$15,CalculationsAndCharts!$A94+$A$11,IF($C$7,8,0),1,1) -> 1107.42 | G94: =OFFSET(InputPriceData!F$15,CalculationsAndCharts!$A94+$A$11,IF($C$7,8,0),1,1) -> 1114.8 | H94: 1114.299949 | I94: 1112.140125 | J94: 2.159824082 | K94: 1109.388727 | L94: 1107.464914 | M94: 1.923813232 | N94: 4.083637314 | O94: 0 | T94: 2.159824082 | U94: 1.923813232 | V94: 4.083637314 | AO94: 1402900000
A95: 63 | B95: =OFFSET(InputPriceData!B$15,CalculationsAndCharts!$A95+$A$11,0,1,1) -> 2004-09-28 | C95: =OFFSET(InputPriceData!G$15,CalculationsAndCharts!$A95+$A$11,IF($C$7,8,0),1,1) -> 1396600000 | D95: =OFFSET(InputPriceData!C$15,CalculationsAndCharts!$A95+$A$11,IF($C$7,8,0),1,1) -> 1103.52 | E95: =OFFSET(InputPriceData!D$15,CalculationsAndCharts!$A95+$A$11,IF($C$7,8,0),1,1) -> 1111.77 | F95: =OFFSET(InputPriceData!E$15,CalculationsAndCharts!$A95+$A$11,IF($C$7,8,0),1,1) -> 1101.29 | G95: =OFFSET(InputPriceData!F$15,CalculationsAndCharts!$A95+$A$11,IF($C$7,8,0),1,1) -> 1110.06 | H95: 1114.209031 | I95: 1111.927335 | J95: 2.281695731 | K95: 1109.205294 | L95: 1107.351192 | M95: 1.854102519 | N95: 4.135798251 | O95: 0 | T95: 2.281695731 | U95: 1.854102519 | V95: 4.135798251 | AO95: 1396600000
A96: 64 | B96: =OFFSET(InputPriceData!B$15,CalculationsAndCharts!$A96+$A$11,0,1,1) -> 2004-09-27 | C96: =OFFSET(InputPriceData!G$15,CalculationsAndCharts!$A96+$A$11,IF($C$7,8,0),1,1) -> 1263500000 | D96: =OFFSET(InputPriceData!C$15,CalculationsAndCharts!$A96+$A$11,IF($C$7,8,0),1,1) -> 1110.11 | E96: =OFFSET(InputPriceData!D$15,CalculationsAndCharts!$A96+$A$11,IF($C$7,8,0),1,1) -> 1110.11 | F96: =OFFSET(InputPriceData!E$15,CalculationsAndCharts!$A96+$A$11,IF($C$7,8,0),1,1) -> 1103.24 | G96: =OFFSET(InputPriceData!F$15,CalculationsAndCharts!$A96+$A$11,IF($C$7,8,0),1,1) -> 1103.52 | H96: 1114.9634 | I96: 1112.076722 | J96: 2.886678154 | K96: 1109.176321 | L96: 1107.309195 | M96: 1.867126469 | N96: 4.753804623 | O96: 0 | T96: 2.886678154 | U96: 1.867126469 | V96: 4.753804623 | AP96: 1263500000
A97: 65 | B97: =OFFSET(InputPriceData!B$15,CalculationsAndCharts!$A97+$A$11,0,1,1) -> 2004-09-24 | C97: =OFFSET(InputPriceData!G$15,CalculationsAndCharts!$A97+$A$11,IF($C$7,8,0),1,1) -> 1255400000 | D97: =OFFSET(InputPriceData!C$15,CalculationsAndCharts!$A97+$A$11,IF($C$7,8,0),1,1) -> 1108.36 | E97: =OFFSET(InputPriceData!D$15,CalculationsAndCharts!$A97+$A$11,IF($C$7,8,0),1,1) -> 1113.81 | F97: =OFFSET(InputPriceData!E$15,CalculationsAndCharts!$A97+$A$11,IF($C$7,8,0),1,1) -> 1108.36 | G97: =OFFSET(InputPriceData!F$15,CalculationsAndCharts!$A97+$A$11,IF($C$7,8,0),1,1) -> 1110.11 | H97: 1117.044018 | I97: 1112.76126 | J97: 4.282758581 | K97: 1109.368061 | L97: 1107.367942 | M97: 2.000118964 | N97: 6.282877546 | O97: 0 | T97: 4.282758581 | U97: 2.000118964 | V97: 6.282877546 | AO97: =IF(G97>=D97,C97,NA()) -> 1255400000 | AP97: =IF(G97<D97,C97,NA()) -> 
A98: 66 | B98: =OFFSET(InputPriceData!B$15,CalculationsAndCharts!$A98+$A$11,0,1,1) -> 2004-09-23 | C98: =OFFSET(InputPriceData!G$15,CalculationsAndCharts!$A98+$A$11,IF($C$7,8,0),1,1) -> 1286300000 | D98: =OFFSET(InputPriceData!C$15,CalculationsAndCharts!$A98+$A$11,IF($C$7,8,0),1,1) -> 1113.56 | E98: =OFFSET(InputPriceData!D$15,CalculationsAndCharts!$A98+$A$11,IF($C$7,8,0),1,1) -> 1113.61 | F98: =OFFSET(InputPriceData!E$15,CalculationsAndCharts!$A98+$A$11,IF($C$7,8,0),1,1) -> 1108.05 | G98: =OFFSET(InputPriceData!F$15,CalculationsAndCharts!$A98+$A$11,IF($C$7,8,0),1,1) -> 1108.36 | H98: 1118.304749 | I98: 1112.97336 | J98: 5.331388384 | K98: =IF($A98>$A$8,NA(),IF($A98=$A$8,$G98,$G98*$C$20+K99*$D$20)) -> 1109.34291 | L98: =IF($A98>$A$8,NA(),IF($A98=$A$8,$G98,$G98*$C$21+L99*$D$21)) -> 1107.325429 | M98: =K98-L98 -> 2.017481013 | N98: =J98+M98 -> 7.348869397 | O98: 0 | T98: =IF($R$4,J98,NA()) -> 5.331388384 | U98: =IF($R$5,M98,NA()) -> 2.017481013 | V98: =IF($R$6,N98,NA()) -> 7.348869397 | AP98: 1286300000
A99: 67 | B99: =OFFSET(InputPriceData!B$15,CalculationsAndCharts!$A99+$A$11,0,1,1) -> 2004-09-22 | C99: =OFFSET(InputPriceData!G$15,CalculationsAndCharts!$A99+$A$11,IF($C$7,8,0),1,1) -> 1379900000 | D99: =OFFSET(InputPriceData!C$15,CalculationsAndCharts!$A99+$A$11,IF($C$7,8,0),1,1) -> 1129.3 | E99: =OFFSET(InputPriceData!D$15,CalculationsAndCharts!$A99+$A$11,IF($C$7,8,0),1,1) -> 1129.3 | F99: =OFFSET(InputPriceData!E$15,CalculationsAndCharts!$A99+$A$11,IF($C$7,8,0),1,1) -> 1112.67 | G99: =OFFSET(InputPriceData!F$15,CalculationsAndCharts!$A99+$A$11,IF($C$7,8,0),1,1) -> 1113.56 | H99: 1120.112885 | I99: 1113.342429 | J99: 6.770455684 | K99: 1109.376229 | L99: 1107.309389 | M99: 2.066839862 | N99: 8.837295546 | O99: 0 | T99: 6.770455684 | U99: 2.066839862 | V99: 8.837295546 | AP99: 1379900000
A100: 68 | B100: =OFFSET(InputPriceData!B$15,CalculationsAndCharts!$A100+$A$11,0,1,1) -> 2004-09-21 | C100: =OFFSET(InputPriceData!G$15,CalculationsAndCharts!$A100+$A$11,IF($C$7,8,0),1,1) -> 1325000000 | D100: =OFFSET(InputPriceData!C$15,CalculationsAndCharts!$A100+$A$11,IF($C$7,8,0),1,1) -> 1122.2 | E100: =OFFSET(InputPriceData!D$15,CalculationsAndCharts!$A100+$A$11,IF($C$7,8,0),1,1) -> 1131.54 | F100: =OFFSET(InputPriceData!E$15,CalculationsAndCharts!$A100+$A$11,IF($C$7,8,0),1,1) -> 1122.2 | G100: =OFFSET(InputPriceData!F$15,CalculationsAndCharts!$A100+$A$11,IF($C$7,8,0),1,1) -> 1129.3 | H100: 1121.304318 | I100: 1113.325023 | J100: 7.979294954 | K100: 1109.234407 | L100: 1107.212481 | M100: 2.021925818 | N100: 10.00122077 | O100: 0 | T100: 7.979294954 | U100: 2.021925818 | V100: 10.00122077 | AO100: 1325000000
A101: 69 | B101: =OFFSET(InputPriceData!B$15,CalculationsAndCharts!$A101+$A$11,0,1,1) -> 2004-09-20 | C101: =OFFSET(InputPriceData!G$15,CalculationsAndCharts!$A101+$A$11,IF($C$7,8,0),1,1) -> 1197600000 | D101: =OFFSET(InputPriceData!C$15,CalculationsAndCharts!$A101+$A$11,IF($C$7,8,0),1,1) -> 1128.55 | E101: =OFFSET(InputPriceData!D$15,CalculationsAndCharts!$A101+$A$11,IF($C$7,8,0),1,1) -> 1128.55 | F101: =OFFSET(InputPriceData!E$15,CalculationsAndCharts!$A101+$A$11,IF($C$7,8,0),1,1) -> 1120.34 | G101: =OFFSET(InputPriceData!F$15,CalculationsAndCharts!$A101+$A$11,IF($C$7,8,0),1,1) -> 1122.2 | H101: 1119.850558 | I101: 1112.047025 | J101: 7.803532787 | K101: 1108.554217 | L101: 1106.870039 | M101: 1.684178369 | N101: 9.487711156 | O101: 0 | T101: 7.803532787 | U101: 1.684178369 | V101: 9.487711156 | AP101: 1197600000
A102: 70 | B102: =OFFSET(InputPriceData!B$15,CalculationsAndCharts!$A102+$A$11,0,1,1) -> 2004-09-17 | C102: =OFFSET(InputPriceData!G$15,CalculationsAndCharts!$A102+$A$11,IF($C$7,8,0),1,1) -> 1422600000 | D102: =OFFSET(InputPriceData!C$15,CalculationsAndCharts!$A102+$A$11,IF($C$7,8,0),1,1) -> 1123.5 | E102: =OFFSET(InputPriceData!D$15,CalculationsAndCharts!$A102+$A$11,IF($C$7,8,0),1,1) -> 1130.14 | F102: =OFFSET(InputPriceData!E$15,CalculationsAndCharts!$A102+$A$11,IF($C$7,8,0),1,1) -> 1123.5 | G102: =OFFSET(InputPriceData!F$15,CalculationsAndCharts!$A102+$A$11,IF($C$7,8,0),1,1) -> 1128.55 | H102: 1119.423387 | I102: 1111.234787 | J102: 8.188599507 | K102: 1108.091648 | L102: 1106.632365 | M102: 1.459283273 | N102: 9.64788278 | O102: 0 | T102: 8.188599507 | U102: 1.459283273 | V102: 9.64788278 | AO102: 1422600000
A103: 71 | B103: =OFFSET(InputPriceData!B$15,CalculationsAndCharts!$A103+$A$11,0,1,1) -> 2004-09-16 | C103: =OFFSET(InputPriceData!G$15,CalculationsAndCharts!$A103+$A$11,IF($C$7,8,0),1,1) -> 1113900000 | D103: =OFFSET(InputPriceData!C$15,CalculationsAndCharts!$A103+$A$11,IF($C$7,8,0),1,1) -> 1120.37 | E103: =OFFSET(InputPriceData!D$15,CalculationsAndCharts!$A103+$A$11,IF($C$7,8,0),1,1) -> 1126.06 | F103: =OFFSET(InputPriceData!E$15,CalculationsAndCharts!$A103+$A$11,IF($C$7,8,0),1,1) -> 1120.37 | G103: =OFFSET(InputPriceData!F$15,CalculationsAndCharts!$A103+$A$11,IF($C$7,8,0),1,1) -> 1123.5 | H103: 1117.764003 | I103: 1109.84957 | J103: 7.91443231 | K103: 1107.398145 | L103: 1106.292556 | M103: 1.105588115 | N103: 9.020020426 | O103: 0 | T103: 7.91443231 | U103: 1.105588115 | V103: 9.020020426 | AO103: 1113900000
A104: 72 | B104: =OFFSET(InputPriceData!B$15,CalculationsAndCharts!$A104+$A$11,0,1,1) -> 2004-09-15 | C104: =OFFSET(InputPriceData!G$15,CalculationsAndCharts!$A104+$A$11,IF($C$7,8,0),1,1) -> 1256000000 | D104: =OFFSET(InputPriceData!C$15,CalculationsAndCharts!$A104+$A$11,IF($C$7,8,0),1,1) -> 1128.33 | E104: =OFFSET(InputPriceData!D$15,CalculationsAndCharts!$A104+$A$11,IF($C$7,8,0),1,1) -> 1128.33 | F104: =OFFSET(InputPriceData!E$15,CalculationsAndCharts!$A104+$A$11,IF($C$7,8,0),1,1) -> 1119.82 | G104: =OFFSET(InputPriceData!F$15,CalculationsAndCharts!$A104+$A$11,IF($C$7,8,0),1,1) -> 1120.37 | H104: 1116.721094 | I104: 1108.757536 | J104: 7.963558073 | K104: 1106.852319 | L104: 1106.025774 | M104: 0.8265445785 | N104: 8.790102651 | O104: 0 | T104: 7.963558073 | U104: 0.8265445785 | V104: 8.790102651 | AP104: 1256000000
A105: 73 | B105: =OFFSET(InputPriceData!B$15,CalculationsAndCharts!$A105+$A$11,0,1,1) -> 2004-09-14 | C105: =OFFSET(InputPriceData!G$15,CalculationsAndCharts!$A105+$A$11,IF($C$7,8,0),1,1) -> 1204500000 | D105: =OFFSET(InputPriceData!C$15,CalculationsAndCharts!$A105+$A$11,IF($C$7,8,0),1,1) -> 1125.82 | E105: =OFFSET(InputPriceData!D$15,CalculationsAndCharts!$A105+$A$11,IF($C$7,8,0),1,1) -> 1129.46 | F105: =OFFSET(InputPriceData!E$15,CalculationsAndCharts!$A105+$A$11,IF($C$7,8,0),1,1) -> 1124.72 | G105: =OFFSET(InputPriceData!F$15,CalculationsAndCharts!$A105+$A$11,IF($C$7,8,0),1,1) -> 1128.33 | H105: 1116.057657 | I105: 1107.828539 | J105: 8.229117747 | K105: 1106.394093 | L105: 1105.803383 | M105: 0.5907091981 | N105: 8.819826945 | O105: 0 | T105: 8.229117747 | U105: 0.5907091981 | V105: 8.819826945 | AO105: 1204500000
A106: 74 | B106: =OFFSET(InputPriceData!B$15,CalculationsAndCharts!$A106+$A$11,0,1,1) -> 2004-09-13 | C106: =OFFSET(InputPriceData!G$15,CalculationsAndCharts!$A106+$A$11,IF($C$7,8,0),1,1) -> 1299800000 | D106: =OFFSET(InputPriceData!C$15,CalculationsAndCharts!$A106+$A$11,IF($C$7,8,0),1,1) -> 1123.92 | E106: =OFFSET(InputPriceData!D$15,CalculationsAndCharts!$A106+$A$11,IF($C$7,8,0),1,1) -> 1129.78 | F106: =OFFSET(InputPriceData!E$15,CalculationsAndCharts!$A106+$A$11,IF($C$7,8,0),1,1) -> 1123.35 | G106: =OFFSET(InputPriceData!F$15,CalculationsAndCharts!$A106+$A$11,IF($C$7,8,0),1,1) -> 1125.82 | H106: 1113.826321 | I106: 1106.188422 | J106: 7.637899473 | K106: 1105.650502 | L106: 1105.454133 | M106: 0.196368985 | N106: 7.834268458 | O106: 0 | T106: 7.637899473 | U106: 0.196368985 | V106: 7.834268458 | AO106: 1299800000
A107: 75 | B107: =OFFSET(InputPriceData!B$15,CalculationsAndCharts!$A107+$A$11,0,1,1) -> 2004-09-10 | C107: =OFFSET(InputPriceData!G$15,CalculationsAndCharts!$A107+$A$11,IF($C$7,8,0),1,1) -> 1261200000 | D107: =OFFSET(InputPriceData!C$15,CalculationsAndCharts!$A107+$A$11,IF($C$7,8,0),1,1) -> 1118.38 | E107: =OFFSET(InputPriceData!D$15,CalculationsAndCharts!$A107+$A$11,IF($C$7,8,0),1,1) -> 1125.26 | F107: =OFFSET(InputPriceData!E$15,CalculationsAndCharts!$A107+$A$11,IF($C$7,8,0),1,1) -> 1114.39 | G107: =OFFSET(InputPriceData!F$15,CalculationsAndCharts!$A107+$A$11,IF($C$7,8,0),1,1) -> 1123.92 | H107: =IF($A107>$A$8,NA(),IF(A107=$A$8,G107,G107*$C$18+H108*$D$18)) -> 1111.645653 | I107: =IF($A107>$A$8,NA(),IF($A107=$A$8,$G107,$G107*$C$19+I108*$D$19)) -> 1104.617896 | J107: =H107-I107 -> 7.027756883 | K107: 1104.966791 | L107: 1105.138384 | M107: -0.1715929278 | N107: 6.856163955 | O107: 0 | T107: 7.027756883 | U107: -0.1715929278 | V107: 6.856163955 | AO107: 1261200000
A108: 76 | B108: =OFFSET(InputPriceData!B$15,CalculationsAndCharts!$A108+$A$11,0,1,1) -> 2004-09-09 | C108: =OFFSET(InputPriceData!G$15,CalculationsAndCharts!$A108+$A$11,IF($C$7,8,0),1,1) -> 1371300000 | D108: =OFFSET(InputPriceData!C$15,CalculationsAndCharts!$A108+$A$11,IF($C$7,8,0),1,1) -> 1116.27 | E108: =OFFSET(InputPriceData!D$15,CalculationsAndCharts!$A108+$A$11,IF($C$7,8,0),1,1) -> 1121.3 | F108: =OFFSET(InputPriceData!E$15,CalculationsAndCharts!$A108+$A$11,IF($C$7,8,0),1,1) -> 1113.62 | G108: =OFFSET(InputPriceData!F$15,CalculationsAndCharts!$A108+$A$11,IF($C$7,8,0),1,1) -> 1118.38 | H108: 1109.413953 | I108: 1103.073727 | J108: 6.340225696 | K108: 1104.324309 | L108: 1104.847196 | M108: -0.5228867491 | N108: 5.817338947 | O108: 0 | T108: 6.340225696 | U108: -0.5228867491 | V108: 5.817338947 | AO108: 1371300000
A109: 77 | B109: =OFFSET(InputPriceData!B$15,CalculationsAndCharts!$A109+$A$11,0,1,1) -> 2004-09-08 | C109: =OFFSET(InputPriceData!G$15,CalculationsAndCharts!$A109+$A$11,IF($C$7,8,0),1,1) -> 1246300000 | D109: =OFFSET(InputPriceData!C$15,CalculationsAndCharts!$A109+$A$11,IF($C$7,8,0),1,1) -> 1121.3 | E109: =OFFSET(InputPriceData!D$15,CalculationsAndCharts!$A109+$A$11,IF($C$7,8,0),1,1) -> 1123.05 | F109: =OFFSET(InputPriceData!E$15,CalculationsAndCharts!$A109+$A$11,IF($C$7,8,0),1,1) -> 1116.27 | G109: =OFFSET(InputPriceData!F$15,CalculationsAndCharts!$A109+$A$11,IF($C$7,8,0),1,1) -> 1116.27 | H109: 1107.783763 | I109: 1101.849226 | J109: 5.934537153 | K109: 1103.847845 | L109: 1104.637385 | M109: -0.7895399325 | N109: 5.14499722 | O109: 0 | T109: 5.934537153 | U109: -0.7895399325 | V109: 5.14499722 | AP109: 1246300000
A110: 78 | B110: =OFFSET(InputPriceData!B$15,CalculationsAndCharts!$A110+$A$11,0,1,1) -> 2004-09-07 | C110: =OFFSET(InputPriceData!G$15,CalculationsAndCharts!$A110+$A$11,IF($C$7,8,0),1,1) -> 1214400000 | D110: =OFFSET(InputPriceData!C$15,CalculationsAndCharts!$A110+$A$11,IF($C$7,8,0),1,1) -> 1113.63 | E110: =OFFSET(InputPriceData!D$15,CalculationsAndCharts!$A110+$A$11,IF($C$7,8,0),1,1) -> 1124.08 | F110: =OFFSET(InputPriceData!E$15,CalculationsAndCharts!$A110+$A$11,IF($C$7,8,0),1,1) -> 1113.63 | G110: =OFFSET(InputPriceData!F$15,CalculationsAndCharts!$A110+$A$11,IF($C$7,8,0),1,1) -> 1121.3 | H110: 1106.24081 | I110: 1100.695564 | J110: 5.545246871 | K110: 1103.426755 | L110: 1104.457034 | M110: -1.030279314 | N110: 4.514967558 | O110: 0 | T110: 5.545246871 | U110: -1.030279314 | V110: 4.514967558 | AO110: 1214400000
A111: 79 | B111: =OFFSET(InputPriceData!B$15,CalculationsAndCharts!$A111+$A$11,0,1,1) -> 2004-09-03 | C111: =OFFSET(InputPriceData!G$15,CalculationsAndCharts!$A111+$A$11,IF($C$7,8,0),1,1) -> 924170000 | D111: =OFFSET(InputPriceData!C$15,CalculationsAndCharts!$A111+$A$11,IF($C$7,8,0),1,1) -> 1118.31 | E111: =OFFSET(InputPriceData!D$15,CalculationsAndCharts!$A111+$A$11,IF($C$7,8,0),1,1) -> 1120.8 | F111: =OFFSET(InputPriceData!E$15,CalculationsAndCharts!$A111+$A$11,IF($C$7,8,0),1,1) -> 1113.57 | G111: =OFFSET(InputPriceData!F$15,CalculationsAndCharts!$A111+$A$11,IF($C$7,8,0),1,1) -> 1113.63 | H111: 1103.502776 | I111: 1099.047209 | J111: 4.455567321 | K111: 1102.820882 | L111: 1104.195903 | M111: -1.375020777 | N111: 3.080546544 | O111: 0 | T111: 4.455567321 | U111: -1.375020777 | V111: 3.080546544 | AP111: 924170000
A112: 80 | B112: =OFFSET(InputPriceData!B$15,CalculationsAndCharts!$A112+$A$11,0,1,1) -> 2004-09-02 | C112: =OFFSET(InputPriceData!G$15,CalculationsAndCharts!$A112+$A$11,IF($C$7,8,0),1,1) -> 1118400000 | D112: =OFFSET(InputPriceData!C$15,CalculationsAndCharts!$A112+$A$11,IF($C$7,8,0),1,1) -> 1105.91 | E112: =OFFSET(InputPriceData!D$15,CalculationsAndCharts!$A112+$A$11,IF($C$7,8,0),1,1) -> 1119.11 | F112: =OFFSET(InputPriceData!E$15,CalculationsAndCharts!$A112+$A$11,IF($C$7,8,0),1,1) -> 1105.6 | G112: =OFFSET(InputPriceData!F$15,CalculationsAndCharts!$A112+$A$11,IF($C$7,8,0),1,1) -> 1118.31 | H112: 1101.661463 | I112: 1097.880585 | J112: 3.780877171 | K112: 1102.454471 | L112: 1104.049638 | M112: -1.59516648 | N112: 2.185710691 | O112: 0 | T112: 3.780877171 | U112: -1.59516648 | V112: 2.185710691 | AO112: 1118400000
A113: 81 | B113: =OFFSET(InputPriceData!B$15,CalculationsAndCharts!$A113+$A$11,0,1,1) -> 2004-09-01 | C113: =OFFSET(InputPriceData!G$15,CalculationsAndCharts!$A113+$A$11,IF($C$7,8,0),1,1) -> 1142100000 | D113: =OFFSET(InputPriceData!C$15,CalculationsAndCharts!$A113+$A$11,IF($C$7,8,0),1,1) -> 1104.24 | E113: =OFFSET(InputPriceData!D$15,CalculationsAndCharts!$A113+$A$11,IF($C$7,8,0),1,1) -> 1109.24 | F113: =OFFSET(InputPriceData!E$15,CalculationsAndCharts!$A113+$A$11,IF($C$7,8,0),1,1) -> 1099.18 | G113: =OFFSET(InputPriceData!F$15,CalculationsAndCharts!$A113+$A$11,IF($C$7,8,0),1,1) -> 1105.91 | H113: 1098.634456 | I113: 1096.246232 | J113: 2.388223529 | K113: 1101.916996 | L113: 1103.828547 | M113: -1.911551141 | N113: 0.4766723886 | O113: 0 | T113: 2.388223529 | U113: -1.911551141 | V113: 0.4766723886 | AO113: 1142100000
A114: 82 | B114: =OFFSET(InputPriceData!B$15,CalculationsAndCharts!$A114+$A$11,0,1,1) -> 2004-08-31 | C114: =OFFSET(InputPriceData!G$15,CalculationsAndCharts!$A114+$A$11,IF($C$7,8,0),1,1) -> 1138200000 | D114: =OFFSET(InputPriceData!C$15,CalculationsAndCharts!$A114+$A$11,IF($C$7,8,0),1,1) -> 1099.15 | E114: =OFFSET(InputPriceData!D$15,CalculationsAndCharts!$A114+$A$11,IF($C$7,8,0),1,1) -> 1104.24 | F114: =OFFSET(InputPriceData!E$15,CalculationsAndCharts!$A114+$A$11,IF($C$7,8,0),1,1) -> 1094.72 | G114: =OFFSET(InputPriceData!F$15,CalculationsAndCharts!$A114+$A$11,IF($C$7,8,0),1,1) -> 1104.24 | H114: 1097.311629 | I114: 1095.473131 | J114: 1.838498721 | K114: 1101.78164 | L114: 1103.796276 | M114: -2.014636625 | N114: -0.1761379037 | O114: 0 | T114: 1.838498721 | U114: -2.014636625 | V114: -0.1761379037 | AO114: 1138200000
A115: 83 | B115: =OFFSET(InputPriceData!B$15,CalculationsAndCharts!$A115+$A$11,0,1,1) -> 2004-08-30 | C115: =OFFSET(InputPriceData!G$15,CalculationsAndCharts!$A115+$A$11,IF($C$7,8,0),1,1) -> 843100000 | D115: =OFFSET(InputPriceData!C$15,CalculationsAndCharts!$A115+$A$11,IF($C$7,8,0),1,1) -> 1107.77 | E115: =OFFSET(InputPriceData!D$15,CalculationsAndCharts!$A115+$A$11,IF($C$7,8,0),1,1) -> 1107.77 | F115: =OFFSET(InputPriceData!E$15,CalculationsAndCharts!$A115+$A$11,IF($C$7,8,0),1,1) -> 1099.15 | G115: =OFFSET(InputPriceData!F$15,CalculationsAndCharts!$A115+$A$11,IF($C$7,8,0),1,1) -> 1099.15 | H115: 1096.051926 | I115: 1094.771781 | J115: 1.280144529 | K115: 1101.698306 | L115: 1103.789397 | M115: -2.091091434 | N115: -0.8109469046 | O115: 0 | T115: 1.280144529 | U115: -2.091091434 | V115: -0.8109469046 | AP115: 843100000
A116: 84 | B116: =OFFSET(InputPriceData!B$15,CalculationsAndCharts!$A116+$A$11,0,1,1) -> 2004-08-27 | C116: =OFFSET(InputPriceData!G$15,CalculationsAndCharts!$A116+$A$11,IF($C$7,8,0),1,1) -> 845400000 | D116: =OFFSET(InputPriceData!C$15,CalculationsAndCharts!$A116+$A$11,IF($C$7,8,0),1,1) -> 1105.09 | E116: =OFFSET(InputPriceData!D$15,CalculationsAndCharts!$A116+$A$11,IF($C$7,8,0),1,1) -> 1109.68 | F116: =OFFSET(InputPriceData!E$15,CalculationsAndCharts!$A116+$A$11,IF($C$7,8,0),1,1) -> 1104.62 | G116: =OFFSET(InputPriceData!F$15,CalculationsAndCharts!$A116+$A$11,IF($C$7,8,0),1,1) -> 1107.77 | H116: 1095.48864 | I116: 1094.421524 | J116: 1.067115804 | K116: 1101.784689 | L116: 1103.861326 | M116: -2.076636831 | N116: -1.009521026 | O116: 0 | T116: 1.067115804 | U116: -2.076636831 | V116: -1.009521026 | AO116: 845400000
A117: 85 | B117: =OFFSET(InputPriceData!B$15,CalculationsAndCharts!$A117+$A$11,0,1,1) -> 2004-08-26 | C117: =OFFSET(InputPriceData!G$15,CalculationsAndCharts!$A117+$A$11,IF($C$7,8,0),1,1) -> 1023600000 | D117: =OFFSET(InputPriceData!C$15,CalculationsAndCharts!$A117+$A$11,IF($C$7,8,0),1,1) -> 1104.96 | E117: =OFFSET(InputPriceData!D$15,CalculationsAndCharts!$A117+$A$11,IF($C$7,8,0),1,1) -> 1106.78 | F117: =OFFSET(InputPriceData!E$15,CalculationsAndCharts!$A117+$A$11,IF($C$7,8,0),1,1) -> 1102.46 | G117: =OFFSET(InputPriceData!F$15,CalculationsAndCharts!$A117+$A$11,IF($C$7,8,0),1,1) -> 1105.09 | H117: 1093.255665 | I117: 1093.353646 | J117: -0.09798072508 | K117: 1101.581797 | L117: 1103.800726 | M117: -2.218929134 | N117: -2.316909859 | O117: 0 | T117: -0.09798072508 | U117: -2.218929134 | V117: -2.316909859 | AO117: 1023600000
A118: 86 | B118: =OFFSET(InputPriceData!B$15,CalculationsAndCharts!$A118+$A$11,0,1,1) -> 2004-08-25 | C118: =OFFSET(InputPriceData!G$15,CalculationsAndCharts!$A118+$A$11,IF($C$7,8,0),1,1) -> 1192200000 | D118: =OFFSET(InputPriceData!C$15,CalculationsAndCharts!$A118+$A$11,IF($C$7,8,0),1,1) -> 1096.19 | E118: =OFFSET(InputPriceData!D$15,CalculationsAndCharts!$A118+$A$11,IF($C$7,8,0),1,1) -> 1106.29 | F118: =OFFSET(InputPriceData!E$15,CalculationsAndCharts!$A118+$A$11,IF($C$7,8,0),1,1) -> 1093.24 | G118: =OFFSET(InputPriceData!F$15,CalculationsAndCharts!$A118+$A$11,IF($C$7,8,0),1,1) -> 1104.96 | H118: 1091.103968 | I118: 1092.414737 | J118: -1.310769667 | K118: 1101.462875 | L118: 1103.780737 | M118: -2.31786253 | N118: -3.628632197 | O118: 0 | T118: -1.310769667 | U118: -2.31786253 | V118: -3.628632197 | AO118: 1192200000
A119: 87 | B119: =OFFSET(InputPriceData!B$15,CalculationsAndCharts!$A119+$A$11,0,1,1) -> 2004-08-24 | C119: =OFFSET(InputPriceData!G$15,CalculationsAndCharts!$A119+$A$11,IF($C$7,8,0),1,1) -> 1092500000 | D119: =OFFSET(InputPriceData!C$15,CalculationsAndCharts!$A119+$A$11,IF($C$7,8,0),1,1) -> 1095.68 | E119: =OFFSET(InputPriceData!D$15,CalculationsAndCharts!$A119+$A$11,IF($C$7,8,0),1,1) -> 1100.94 | F119: =OFFSET(InputPriceData!E$15,CalculationsAndCharts!$A119+$A$11,IF($C$7,8,0),1,1) -> 1092.82 | G119: =OFFSET(InputPriceData!F$15,CalculationsAndCharts!$A119+$A$11,IF($C$7,8,0),1,1) -> 1096.19 | H119: 1088.584689 | I119: 1091.411116 | J119: -2.826427266 | K119: 1101.344328 | L119: 1103.762454 | M119: -2.418126007 | N119: -5.244553273 | O119: 0 | T119: -2.826427266 | U119: -2.418126007 | V119: -5.244553273 | AO119: 1092500000
A120: 88 | B120: =OFFSET(InputPriceData!B$15,CalculationsAndCharts!$A120+$A$11,0,1,1) -> 2004-08-23 | C120: =OFFSET(InputPriceData!G$15,CalculationsAndCharts!$A120+$A$11,IF($C$7,8,0),1,1) -> 1021900000 | D120: =OFFSET(InputPriceData!C$15,CalculationsAndCharts!$A120+$A$11,IF($C$7,8,0),1,1) -> 1098.35 | E120: =OFFSET(InputPriceData!D$15,CalculationsAndCharts!$A120+$A$11,IF($C$7,8,0),1,1) -> 1101.4 | F120: =OFFSET(InputPriceData!E$15,CalculationsAndCharts!$A120+$A$11,IF($C$7,8,0),1,1) -> 1094.73 | G120: =OFFSET(InputPriceData!F$15,CalculationsAndCharts!$A120+$A$11,IF($C$7,8,0),1,1) -> 1095.68 | H120: 1087.201905 | I120: 1091.028806 | J120: -3.826900388 | K120: 1101.519051 | L120: 1103.879856 | M120: -2.36080541 | N120: -6.187705798 | O120: 0 | T120: -3.826900388 | U120: -2.36080541 | V120: -6.187705798 | AP120: 1021900000
A121: 89 | B121: =OFFSET(InputPriceData!B$15,CalculationsAndCharts!$A121+$A$11,0,1,1) -> 2004-08-20 | C121: =OFFSET(InputPriceData!G$15,CalculationsAndCharts!$A121+$A$11,IF($C$7,8,0),1,1) -> 1199900000 | D121: =OFFSET(InputPriceData!C$15,CalculationsAndCharts!$A121+$A$11,IF($C$7,8,0),1,1) -> 1091.23 | E121: =OFFSET(InputPriceData!D$15,CalculationsAndCharts!$A121+$A$11,IF($C$7,8,0),1,1) -> 1100.26 | F121: =OFFSET(InputPriceData!E$15,CalculationsAndCharts!$A121+$A$11,IF($C$7,8,0),1,1) -> 1089.57 | G121: =OFFSET(InputPriceData!F$15,CalculationsAndCharts!$A121+$A$11,IF($C$7,8,0),1,1) -> 1098.35 | H121: 1085.660433 | I121: 1090.65671 | J121: -4.996276621 | K121: 1101.716985 | L121: 1104.006986 | M121: -2.290001033 | N121: -7.286277654 | O121: 0 | T121: -4.996276621 | U121: -2.290001033 | V121: -7.286277654 | AO121: 1199900000
A122: 90 | B122: =OFFSET(InputPriceData!B$15,CalculationsAndCharts!$A122+$A$11,0,1,1) -> 2004-08-19 | C122: =OFFSET(InputPriceData!G$15,CalculationsAndCharts!$A122+$A$11,IF($C$7,8,0),1,1) -> 1249400000 | D122: =OFFSET(InputPriceData!C$15,CalculationsAndCharts!$A122+$A$11,IF($C$7,8,0),1,1) -> 1095.17 | E122: =OFFSET(InputPriceData!D$15,CalculationsAndCharts!$A122+$A$11,IF($C$7,8,0),1,1) -> 1095.17 | F122: =OFFSET(InputPriceData!E$15,CalculationsAndCharts!$A122+$A$11,IF($C$7,8,0),1,1) -> 1086.28 | G122: =OFFSET(InputPriceData!F$15,CalculationsAndCharts!$A122+$A$11,IF($C$7,8,0),1,1) -> 1091.23 | H122: 1083.353239 | I122: 1090.041247 | J122: -6.688007353 | K122: 1101.83112 | L122: 1104.094691 | M122: -2.263571158 | N122: -8.95157851 | O122: 0 | T122: -6.688007353 | U122: -2.263571158 | V122: -8.95157851 | AP122: 1249400000
A123: 91 | B123: =OFFSET(InputPriceData!B$15,CalculationsAndCharts!$A123+$A$11,0,1,1) -> 2004-08-18 | C123: =OFFSET(InputPriceData!G$15,CalculationsAndCharts!$A123+$A$11,IF($C$7,8,0),1,1) -> 1282500000 | D123: =OFFSET(InputPriceData!C$15,CalculationsAndCharts!$A123+$A$11,IF($C$7,8,0),1,1) -> 1081.71 | E123: =OFFSET(InputPriceData!D$15,CalculationsAndCharts!$A123+$A$11,IF($C$7,8,0),1,1) -> 1095.17 | F123: =OFFSET(InputPriceData!E$15,CalculationsAndCharts!$A123+$A$11,IF($C$7,8,0),1,1) -> 1078.93 | G123: =OFFSET(InputPriceData!F$15,CalculationsAndCharts!$A123+$A$11,IF($C$7,8,0),1,1) -> 1095.17 | H123: 1081.921101 | I123: 1089.946147 | J123: -8.02504538 | K123: 1102.19048 | L123: 1104.294144 | M123: -2.103663732 | N123: -10.12870911 | O123: 0 | T123: -8.02504538 | U123: -2.103663732 | V123: -10.12870911 | AO123: 1282500000
A124: 92 | B124: =OFFSET(InputPriceData!B$15,CalculationsAndCharts!$A124+$A$11,0,1,1) -> 2004-08-17 | C124: =OFFSET(InputPriceData!G$15,CalculationsAndCharts!$A124+$A$11,IF($C$7,8,0),1,1) -> 1267800000 | D124: =OFFSET(InputPriceData!C$15,CalculationsAndCharts!$A124+$A$11,IF($C$7,8,0),1,1) -> 1079.34 | E124: =OFFSET(InputPriceData!D$15,CalculationsAndCharts!$A124+$A$11,IF($C$7,8,0),1,1) -> 1086.78 | F124: =OFFSET(InputPriceData!E$15,CalculationsAndCharts!$A124+$A$11,IF($C$7,8,0),1,1) -> 1079.34 | G124: =OFFSET(InputPriceData!F$15,CalculationsAndCharts!$A124+$A$11,IF($C$7,8,0),1,1) -> 1081.71 | H124: 1079.51221 | I124: 1089.528238 | J124: -10.0160278 | K124: 1102.428462 | L124: 1104.435603 | M124: -2.00714095 | N124: -12.02316875 | O124: 0 | T124: -10.0160278 | U124: -2.00714095 | V124: -12.02316875 | AO124: 1267800000
A125: 93 | B125: =OFFSET(InputPriceData!B$15,CalculationsAndCharts!$A125+$A$11,0,1,1) -> 2004-08-16 | C125: =OFFSET(InputPriceData!G$15,CalculationsAndCharts!$A125+$A$11,IF($C$7,8,0),1,1) -> 1206200000 | D125: =OFFSET(InputPriceData!C$15,CalculationsAndCharts!$A125+$A$11,IF($C$7,8,0),1,1) -> 1064.8 | E125: =OFFSET(InputPriceData!D$15,CalculationsAndCharts!$A125+$A$11,IF($C$7,8,0),1,1) -> 1080.66 | F125: =OFFSET(InputPriceData!E$15,CalculationsAndCharts!$A125+$A$11,IF($C$7,8,0),1,1) -> 1064.8 | G125: =OFFSET(InputPriceData!F$15,CalculationsAndCharts!$A125+$A$11,IF($C$7,8,0),1,1) -> 1079.34 | H125: 1079.112612 | I125: 1090.153697 | J125: -11.04108496 | K125: 1103.130783 | L125: 1104.787938 | M125: -1.657155125 | N125: -12.69824009 | O125: 0 | T125: -11.04108496 | U125: -1.657155125 | V125: -12.69824009 | AO125: 1206200000
A126: 94 | B126: =OFFSET(InputPriceData!B$15,CalculationsAndCharts!$A126+$A$11,0,1,1) -> 2004-08-13 | C126: =OFFSET(InputPriceData!G$15,CalculationsAndCharts!$A126+$A$11,IF($C$7,8,0),1,1) -> 1175100000 | D126: =OFFSET(InputPriceData!C$15,CalculationsAndCharts!$A126+$A$11,IF($C$7,8,0),1,1) -> 1063.23 | E126: =OFFSET(InputPriceData!D$15,CalculationsAndCharts!$A126+$A$11,IF($C$7,8,0),1,1) -> 1067.58 | F126: =OFFSET(InputPriceData!E$15,CalculationsAndCharts!$A126+$A$11,IF($C$7,8,0),1,1) -> 1060.72 | G126: =OFFSET(InputPriceData!F$15,CalculationsAndCharts!$A126+$A$11,IF($C$7,8,0),1,1) -> 1064.8 | H126: 1079.071269 | I126: 1091.018793 | J126: -11.94752396 | K126: 1103.93725 | L126: 1105.18248 | M126: -1.245229577 | N126: -13.19275353 | O126: 0 | T126: -11.94752396 | U126: -1.245229577 | V126: -13.19275353 | AO126: 1175100000
A127: 95 | B127: =OFFSET(InputPriceData!B$15,CalculationsAndCharts!$A127+$A$11,0,1,1) -> 2004-08-12 | C127: =OFFSET(InputPriceData!G$15,CalculationsAndCharts!$A127+$A$11,IF($C$7,8,0),1,1) -> 1405100000 | D127: =OFFSET(InputPriceData!C$15,CalculationsAndCharts!$A127+$A$11,IF($C$7,8,0),1,1) -> 1075.79 | E127: =OFFSET(InputPriceData!D$15,CalculationsAndCharts!$A127+$A$11,IF($C$7,8,0),1,1) -> 1075.79 | F127: =OFFSET(InputPriceData!E$15,CalculationsAndCharts!$A127+$A$11,IF($C$7,8,0),1,1) -> 1062.82 | G127: =OFFSET(InputPriceData!F$15,CalculationsAndCharts!$A127+$A$11,IF($C$7,8,0),1,1) -> 1063.23 | H127: 1081.666045 | I127: 1093.116297 | J127: -11.45025119 | K127: 1105.263937 | L127: 1105.808565 | M127: -0.544628082 | N127: -11.99487928 | O127: 0 | T127: -11.45025119 | U127: -0.544628082 | V127: -11.99487928 | AP127: 1405100000
A128: 96 | B128: =OFFSET(InputPriceData!B$15,CalculationsAndCharts!$A128+$A$11,0,1,1) -> 2004-08-11 | C128: =OFFSET(InputPriceData!G$15,CalculationsAndCharts!$A128+$A$11,IF($C$7,8,0),1,1) -> 1410400000 | D128: =OFFSET(InputPriceData!C$15,CalculationsAndCharts!$A128+$A$11,IF($C$7,8,0),1,1) -> 1079.04 | E128: =OFFSET(InputPriceData!D$15,CalculationsAndCharts!$A128+$A$11,IF($C$7,8,0),1,1) -> 1079.04 | F128: =OFFSET(InputPriceData!E$15,CalculationsAndCharts!$A128+$A$11,IF($C$7,8,0),1,1) -> 1065.92 | G128: =OFFSET(InputPriceData!F$15,CalculationsAndCharts!$A128+$A$11,IF($C$7,8,0),1,1) -> 1075.79 | H128: 1085.018054 | I128: 1095.5072 | J128: -10.48914667 | K128: 1106.688816 | L128: 1106.468698 | M128: 0.220118345 | N128: -10.26902833 | O128: 0 | T128: -10.48914667 | U128: 0.220118345 | V128: -10.26902833 | AP128: 1410400000
A129: 97 | B129: =OFFSET(InputPriceData!B$15,CalculationsAndCharts!$A129+$A$11,0,1,1) -> 2004-08-10 | C129: =OFFSET(InputPriceData!G$15,CalculationsAndCharts!$A129+$A$11,IF($C$7,8,0),1,1) -> 1245600000 | D129: =OFFSET(InputPriceData!C$15,CalculationsAndCharts!$A129+$A$11,IF($C$7,8,0),1,1) -> 1065.22 | E129: =OFFSET(InputPriceData!D$15,CalculationsAndCharts!$A129+$A$11,IF($C$7,8,0),1,1) -> 1079.04 | F129: =OFFSET(InputPriceData!E$15,CalculationsAndCharts!$A129+$A$11,IF($C$7,8,0),1,1) -> 1065.22 | G129: =OFFSET(InputPriceData!F$15,CalculationsAndCharts!$A129+$A$11,IF($C$7,8,0),1,1) -> 1079.04 | H129: 1086.695882 | I129: 1097.084576 | J129: -10.38869477 | K129: 1107.736234 | L129: 1106.944337 | M129: 0.7918971158 | N129: -9.596797651 | O129: 0 | T129: -10.38869477 | U129: 0.7918971158 | V129: -9.596797651 | AO129: 1245600000
A130: 98 | B130: =OFFSET(InputPriceData!B$15,CalculationsAndCharts!$A130+$A$11,0,1,1) -> 2004-08-09 | C130: =OFFSET(InputPriceData!G$15,CalculationsAndCharts!$A130+$A$11,IF($C$7,8,0),1,1) -> 1086000000 | D130: =OFFSET(InputPriceData!C$15,CalculationsAndCharts!$A130+$A$11,IF($C$7,8,0),1,1) -> 1063.97 | E130: =OFFSET(InputPriceData!D$15,CalculationsAndCharts!$A130+$A$11,IF($C$7,8,0),1,1) -> 1069.46 | F130: =OFFSET(InputPriceData!E$15,CalculationsAndCharts!$A130+$A$11,IF($C$7,8,0),1,1) -> 1063.97 | G130: =OFFSET(InputPriceData!F$15,CalculationsAndCharts!$A130+$A$11,IF($C$7,8,0),1,1) -> 1065.22 | H130: 1088.08786 | I130: 1098.528142 | J130: -10.44028241 | K130: 1108.708987 | L130: 1107.376962 | M130: 1.332025426 | N130: -9.108256985 | O130: 0 | T130: -10.44028241 | U130: 1.332025426 | V130: -9.108256985 | AO130: 1086000000
A131: 99 | B131: =OFFSET(InputPriceData!B$15,CalculationsAndCharts!$A131+$A$11,0,1,1) -> 2004-08-06 | C131: =OFFSET(InputPriceData!G$15,CalculationsAndCharts!$A131+$A$11,IF($C$7,8,0),1,1) -> 1521000000 | D131: =OFFSET(InputPriceData!C$15,CalculationsAndCharts!$A131+$A$11,IF($C$7,8,0),1,1) -> 1080.7 | E131: =OFFSET(InputPriceData!D$15,CalculationsAndCharts!$A131+$A$11,IF($C$7,8,0),1,1) -> 1080.7 | F131: =OFFSET(InputPriceData!E$15,CalculationsAndCharts!$A131+$A$11,IF($C$7,8,0),1,1) -> 1062.23 | G131: =OFFSET(InputPriceData!F$15,CalculationsAndCharts!$A131+$A$11,IF($C$7,8,0),1,1) -> 1063.97 | H131: 1092.245653 | I131: 1101.192794 | J131: -8.947141077 | K131: 1110.18319 | L131: 1108.030558 | M131: 2.152632078 | N131: -6.794509 | O131: 0 | T131: -8.947141077 | U131: 2.152632078 | V131: -6.794509 | AP131: 1521000000
A132: 100 | B132: =OFFSET(InputPriceData!B$15,CalculationsAndCharts!$A132+$A$11,0,1,1) -> 2004-08-05 | C132: =OFFSET(InputPriceData!G$15,CalculationsAndCharts!$A132+$A$11,IF($C$7,8,0),1,1) -> 1397400000 | D132: =OFFSET(InputPriceData!C$15,CalculationsAndCharts!$A132+$A$11,IF($C$7,8,0),1,1) -> 1098.63 | E132: =OFFSET(InputPriceData!D$15,CalculationsAndCharts!$A132+$A$11,IF($C$7,8,0),1,1) -> 1098.79 | F132: =OFFSET(InputPriceData!E$15,CalculationsAndCharts!$A132+$A$11,IF($C$7,8,0),1,1) -> 1079.98 | G132: =OFFSET(InputPriceData!F$15,CalculationsAndCharts!$A132+$A$11,IF($C$7,8,0),1,1) -> 1080.7 | H132: 1097.38668 | I132: 1104.170617 | J132: -6.783936814 | K132: 1111.749739 | L132: 1108.713668 | M132: 3.036071471 | N132: -3.747865343 | O132: 0 | T132: -6.783936814 | U132: 3.036071471 | V132: -3.747865343 | AP132: 1397400000
A133: 101 | B133: =OFFSET(InputPriceData!B$15,CalculationsAndCharts!$A133+$A$11,0,1,1) -> 2004-08-04 | C133: =OFFSET(InputPriceData!G$15,CalculationsAndCharts!$A133+$A$11,IF($C$7,8,0),1,1) -> 1369200000 | D133: =OFFSET(InputPriceData!C$15,CalculationsAndCharts!$A133+$A$11,IF($C$7,8,0),1,1) -> 1099.69 | E133: =OFFSET(InputPriceData!D$15,CalculationsAndCharts!$A133+$A$11,IF($C$7,8,0),1,1) -> 1102.45 | F133: =OFFSET(InputPriceData!E$15,CalculationsAndCharts!$A133+$A$11,IF($C$7,8,0),1,1) -> 1092.4 | G133: =OFFSET(InputPriceData!F$15,CalculationsAndCharts!$A133+$A$11,IF($C$7,8,0),1,1) -> 1098.63 | H133: 1100.420622 | I133: 1106.048267 | J133: -5.627644292 | K133: 1112.802273 | L133: 1109.147988 | M133: 3.654284572 | N133: -1.973359721 | O133: 0 | T133: -5.627644292 | U133: 3.654284572 | V133: -1.973359721 | AP133: 1369200000
A134: 102 | B134: =OFFSET(InputPriceData!B$15,CalculationsAndCharts!$A134+$A$11,0,1,1) -> 2004-08-03 | C134: =OFFSET(InputPriceData!G$15,CalculationsAndCharts!$A134+$A$11,IF($C$7,8,0),1,1) -> 1338300000 | D134: =OFFSET(InputPriceData!C$15,CalculationsAndCharts!$A134+$A$11,IF($C$7,8,0),1,1) -> 1106.62 | E134: =OFFSET(InputPriceData!D$15,CalculationsAndCharts!$A134+$A$11,IF($C$7,8,0),1,1) -> 1106.62 | F134: =OFFSET(InputPriceData!E$15,CalculationsAndCharts!$A134+$A$11,IF($C$7,8,0),1,1) -> 1099.26 | G134: =OFFSET(InputPriceData!F$15,CalculationsAndCharts!$A134+$A$11,IF($C$7,8,0),1,1) -> 1099.69 | H134: 1100.74619 | I134: 1106.641728 | J134: -5.89553792 | K134: 1113.282689 | L134: 1109.311058 | M134: 3.971631011 | N134: -1.923906909 | O134: 0 | T134: -5.89553792 | U134: 3.971631011 | V134: -1.923906909 | AP134: 1338300000
A135: 103 | B135: =OFFSET(InputPriceData!B$15,CalculationsAndCharts!$A135+$A$11,0,1,1) -> 2004-08-02 | C135: =OFFSET(InputPriceData!G$15,CalculationsAndCharts!$A135+$A$11,IF($C$7,8,0),1,1) -> 1276000000 | D135: =OFFSET(InputPriceData!C$15,CalculationsAndCharts!$A135+$A$11,IF($C$7,8,0),1,1) -> 1101.72 | E135: =OFFSET(InputPriceData!D$15,CalculationsAndCharts!$A135+$A$11,IF($C$7,8,0),1,1) -> 1108.6 | F135: =OFFSET(InputPriceData!E$15,CalculationsAndCharts!$A135+$A$11,IF($C$7,8,0),1,1) -> 1097.34 | G135: =OFFSET(InputPriceData!F$15,CalculationsAndCharts!$A135+$A$11,IF($C$7,8,0),1,1) -> 1106.62 | H135: 1100.938225 | I135: 1107.197866 | J135: -6.259641599 | K135: 1113.743458 | L135: 1109.460221 | M135: 4.283236433 | N135: -1.976405165 | O135: 0 | T135: -6.259641599 | U135: 4.283236433 | V135: -1.976405165 | AO135: 1276000000
A136: 104 | B136: =OFFSET(InputPriceData!B$15,CalculationsAndCharts!$A136+$A$11,0,1,1) -> 2004-07-30 | C136: =OFFSET(InputPriceData!G$15,CalculationsAndCharts!$A136+$A$11,IF($C$7,8,0),1,1) -> 1298200000 | D136: =OFFSET(InputPriceData!C$15,CalculationsAndCharts!$A136+$A$11,IF($C$7,8,0),1,1) -> 1100.43 | E136: =OFFSET(InputPriceData!D$15,CalculationsAndCharts!$A136+$A$11,IF($C$7,8,0),1,1) -> 1103.73 | F136: =OFFSET(InputPriceData!E$15,CalculationsAndCharts!$A136+$A$11,IF($C$7,8,0),1,1) -> 1096.96 | G136: =OFFSET(InputPriceData!F$15,CalculationsAndCharts!$A136+$A$11,IF($C$7,8,0),1,1) -> 1101.72 | H136: 1099.905175 | I136: 1107.244096 | J136: -7.338920961 | K136: 1113.984931 | L136: 1109.504256 | M136: 4.480675138 | N136: -2.858245823 | O136: 0 | T136: -7.338920961 | U136: 4.480675138 | V136: -2.858245823 | AO136: 1298200000
A137: 105 | B137: =OFFSET(InputPriceData!B$15,CalculationsAndCharts!$A137+$A$11,0,1,1) -> 2004-07-29 | C137: =OFFSET(InputPriceData!G$15,CalculationsAndCharts!$A137+$A$11,IF($C$7,8,0),1,1) -> 1530100000 | D137: =OFFSET(InputPriceData!C$15,CalculationsAndCharts!$A137+$A$11,IF($C$7,8,0),1,1) -> 1095.42 | E137: =OFFSET(InputPriceData!D$15,CalculationsAndCharts!$A137+$A$11,IF($C$7,8,0),1,1) -> 1103.51 | F137: =OFFSET(InputPriceData!E$15,CalculationsAndCharts!$A137+$A$11,IF($C$7,8,0),1,1) -> 1095.42 | G137: =OFFSET(InputPriceData!F$15,CalculationsAndCharts!$A137+$A$11,IF($C$7,8,0),1,1) -> 1100.43 | H137: 1099.575206 | I137: 1107.686023 | J137: -8.110816862 | K137: 1114.400691 | L137: 1109.624942 | M137: 4.775749372 | N137: -3.335067489 | O137: 0 | T137: -8.110816862 | U137: 4.775749372 | V137: -3.335067489 | AO137: 1530100000
A138: 106 | B138: =OFFSET(InputPriceData!B$15,CalculationsAndCharts!$A138+$A$11,0,1,1) -> 2004-07-28 | C138: =OFFSET(InputPriceData!G$15,CalculationsAndCharts!$A138+$A$11,IF($C$7,8,0),1,1) -> 1554300000 | D138: =OFFSET(InputPriceData!C$15,CalculationsAndCharts!$A138+$A$11,IF($C$7,8,0),1,1) -> 1094.83 | E138: =OFFSET(InputPriceData!D$15,CalculationsAndCharts!$A138+$A$11,IF($C$7,8,0),1,1) -> 1098.84 | F138: =OFFSET(InputPriceData!E$15,CalculationsAndCharts!$A138+$A$11,IF($C$7,8,0),1,1) -> 1082.17 | G138: =OFFSET(InputPriceData!F$15,CalculationsAndCharts!$A138+$A$11,IF($C$7,8,0),1,1) -> 1095.42 | H138: 1099.419789 | I138: 1108.266505 | J138: -8.846715747 | K138: 1114.874274 | L138: 1109.767499 | M138: 5.106774888 | N138: -3.739940858 | O138: 0 | T138: -8.846715747 | U138: 5.106774888 | V138: -3.739940858 | AO138: 1554300000
A139: 107 | B139: =OFFSET(InputPriceData!B$15,CalculationsAndCharts!$A139+$A$11,0,1,1) -> 2004-07-27 | C139: =OFFSET(InputPriceData!G$15,CalculationsAndCharts!$A139+$A$11,IF($C$7,8,0),1,1) -> 1610800000 | D139: =OFFSET(InputPriceData!C$15,CalculationsAndCharts!$A139+$A$11,IF($C$7,8,0),1,1) -> 1084.07 | E139: =OFFSET(InputPriceData!D$15,CalculationsAndCharts!$A139+$A$11,IF($C$7,8,0),1,1) -> 1096.65 | F139: =OFFSET(InputPriceData!E$15,CalculationsAndCharts!$A139+$A$11,IF($C$7,8,0),1,1) -> 1084.07 | G139: =OFFSET(InputPriceData!F$15,CalculationsAndCharts!$A139+$A$11,IF($C$7,8,0),1,1) -> 1094.83 | H139: 1100.147024 | I139: 1109.294225 | J139: -9.147201732 | K139: 1115.533741 | L139: 1109.989941 | M139: 5.543799958 | N139: -3.603401774 | O139: 0 | T139: -9.147201732 | U139: 5.543799958 | V139: -3.603401774 | AO139: 1610800000
A140: 108 | B140: =OFFSET(InputPriceData!B$15,CalculationsAndCharts!$A140+$A$11,0,1,1) -> 2004-07-26 | C140: =OFFSET(InputPriceData!G$15,CalculationsAndCharts!$A140+$A$11,IF($C$7,8,0),1,1) -> 1413400000 | D140: =OFFSET(InputPriceData!C$15,CalculationsAndCharts!$A140+$A$11,IF($C$7,8,0),1,1) -> 1086.2 | E140: =OFFSET(InputPriceData!D$15,CalculationsAndCharts!$A140+$A$11,IF($C$7,8,0),1,1) -> 1089.82 | F140: =OFFSET(InputPriceData!E$15,CalculationsAndCharts!$A140+$A$11,IF($C$7,8,0),1,1) -> 1078.78 | G140: =OFFSET(InputPriceData!F$15,CalculationsAndCharts!$A140+$A$11,IF($C$7,8,0),1,1) -> 1084.07 | H140: 1101.113755 | I140: 1110.451363 | J140: -9.337608182 | K140: 1116.235563 | L140: 1110.224979 | M140: 6.01058384 | N140: -3.327024342 | O140: 0 | T140: -9.337608182 | U140: 6.01058384 | V140: -3.327024342 | AP140: 1413400000
A141: 109 | B141: =OFFSET(InputPriceData!B$15,CalculationsAndCharts!$A141+$A$11,0,1,1) -> 2004-07-23 | C141: =OFFSET(InputPriceData!G$15,CalculationsAndCharts!$A141+$A$11,IF($C$7,8,0),1,1) -> 1337500000 | D141: =OFFSET(InputPriceData!C$15,CalculationsAndCharts!$A141+$A$11,IF($C$7,8,0),1,1) -> 1096.84 | E141: =OFFSET(InputPriceData!D$15,CalculationsAndCharts!$A141+$A$11,IF($C$7,8,0),1,1) -> 1096.84 | F141: =OFFSET(InputPriceData!E$15,CalculationsAndCharts!$A141+$A$11,IF($C$7,8,0),1,1) -> 1083.56 | G141: =OFFSET(InputPriceData!F$15,CalculationsAndCharts!$A141+$A$11,IF($C$7,8,0),1,1) -> 1086.2 | H141: 1104.21262 | I141: 1112.561873 | J141: -8.349252659 | K141: 1117.325921 | L141: 1110.630482 | M141: 6.695438349 | N141: -1.65381431 | O141: 0 | T141: -8.349252659 | U141: 6.695438349 | V141: -1.65381431 | AP141: 1337500000
A142: 110 | B142: =OFFSET(InputPriceData!B$15,CalculationsAndCharts!$A142+$A$11,0,1,1) -> 2004-07-22 | C142: =OFFSET(InputPriceData!G$15,CalculationsAndCharts!$A142+$A$11,IF($C$7,8,0),1,1) -> 1680800000 | D142: =OFFSET(InputPriceData!C$15,CalculationsAndCharts!$A142+$A$11,IF($C$7,8,0),1,1) -> 1093.88 | E142: =OFFSET(InputPriceData!D$15,CalculationsAndCharts!$A142+$A$11,IF($C$7,8,0),1,1) -> 1099.66 | F142: =OFFSET(InputPriceData!E$15,CalculationsAndCharts!$A142+$A$11,IF($C$7,8,0),1,1) -> 1084.16 | G142: =OFFSET(InputPriceData!F$15,CalculationsAndCharts!$A142+$A$11,IF($C$7,8,0),1,1) -> 1096.84 | H142: 1107.487642 | I142: 1114.670822 | J142: -7.183180661 | K142: 1118.381037 | L142: 1111.00925 | M142: 7.371787137 | N142: 0.1886064756 | O142: 0 | T142: -7.183180661 | U142: 7.371787137 | V142: 0.1886064756 | AO142: 1680800000
A143: 111 | B143: =OFFSET(InputPriceData!B$15,CalculationsAndCharts!$A143+$A$11,0,1,1) -> 2004-07-21 | C143: =OFFSET(InputPriceData!G$15,CalculationsAndCharts!$A143+$A$11,IF($C$7,8,0),1,1) -> 1679500000 | D143: =OFFSET(InputPriceData!C$15,CalculationsAndCharts!$A143+$A$11,IF($C$7,8,0),1,1) -> 1108.67 | E143: =OFFSET(InputPriceData!D$15,CalculationsAndCharts!$A143+$A$11,IF($C$7,8,0),1,1) -> 1116.27 | F143: =OFFSET(InputPriceData!E$15,CalculationsAndCharts!$A143+$A$11,IF($C$7,8,0),1,1) -> 1093.88 | G143: =OFFSET(InputPriceData!F$15,CalculationsAndCharts!$A143+$A$11,IF($C$7,8,0),1,1) -> 1093.88 | H143: 1109.423577 | I143: 1116.097288 | J143: -6.673711594 | K143: 1119.111241 | L143: 1111.228928 | M143: 7.882313483 | N143: 1.208601889 | O143: 0 | T143: -6.673711594 | U143: 7.882313483 | V143: 1.208601889 | AP143: 1679500000
A144: 112 | B144: =OFFSET(InputPriceData!B$15,CalculationsAndCharts!$A144+$A$11,0,1,1) -> 2004-07-20 | C144: =OFFSET(InputPriceData!G$15,CalculationsAndCharts!$A144+$A$11,IF($C$7,8,0),1,1) -> 1445800000 | D144: =OFFSET(InputPriceData!C$15,CalculationsAndCharts!$A144+$A$11,IF($C$7,8,0),1,1) -> 1100.9 | E144: =OFFSET(InputPriceData!D$15,CalculationsAndCharts!$A144+$A$11,IF($C$7,8,0),1,1) -> 1108.88 | F144: =OFFSET(InputPriceData!E$15,CalculationsAndCharts!$A144+$A$11,IF($C$7,8,0),1,1) -> 1099.1 | G144: =OFFSET(InputPriceData!F$15,CalculationsAndCharts!$A144+$A$11,IF($C$7,8,0),1,1) -> 1108.67 | H144: 1112.249681 | I144: 1117.874671 | J144: -5.624989815 | K144: 1119.966538 | L144: 1111.497903 | M144: 8.468634173 | N144: 2.843644358 | O144: 0 | T144: -5.624989815 | U144: 8.468634173 | V144: 2.843644358 | AO144: 1445800000
A145: 113 | B145: =OFFSET(InputPriceData!B$15,CalculationsAndCharts!$A145+$A$11,0,1,1) -> 2004-07-19 | C145: =OFFSET(InputPriceData!G$15,CalculationsAndCharts!$A145+$A$11,IF($C$7,8,0),1,1) -> 1319900000 | D145: =OFFSET(InputPriceData!C$15,CalculationsAndCharts!$A145+$A$11,IF($C$7,8,0),1,1) -> 1101.39 | E145: =OFFSET(InputPriceData!D$15,CalculationsAndCharts!$A145+$A$11,IF($C$7,8,0),1,1) -> 1105.52 | F145: =OFFSET(InputPriceData!E$15,CalculationsAndCharts!$A145+$A$11,IF($C$7,8,0),1,1) -> 1096.55 | G145: =OFFSET(InputPriceData!F$15,CalculationsAndCharts!$A145+$A$11,IF($C$7,8,0),1,1) -> 1100.9 | H145: 1112.900533 | I145: 1118.611045 | J145: -5.710512347 | K145: 1120.349471 | L145: 1111.541747 | M145: 8.807724188 | N145: 3.097211841 | O145: 0 | T145: -5.710512347 | U145: 8.807724188 | V145: 3.097211841 | AP145: 1319900000
A146: 114 | B146: =OFFSET(InputPriceData!B$15,CalculationsAndCharts!$A146+$A$11,0,1,1) -> 2004-07-16 | C146: =OFFSET(InputPriceData!G$15,CalculationsAndCharts!$A146+$A$11,IF($C$7,8,0),1,1) -> 1450300000 | D146: =OFFSET(InputPriceData!C$15,CalculationsAndCharts!$A146+$A$11,IF($C$7,8,0),1,1) -> 1106.69 | E146: =OFFSET(InputPriceData!D$15,CalculationsAndCharts!$A146+$A$11,IF($C$7,8,0),1,1) -> 1112.17 | F146: =OFFSET(InputPriceData!E$15,CalculationsAndCharts!$A146+$A$11,IF($C$7,8,0),1,1) -> 1101.07 | G146: =OFFSET(InputPriceData!F$15,CalculationsAndCharts!$A146+$A$11,IF($C$7,8,0),1,1) -> 1101.39 | H146: 1115.082448 | I146: 1120.027929 | J146: -4.945480927 | K146: 1121.008775 | L146: 1111.706735 | M146: 9.302039969 | N146: 4.356559042 | O146: 0 | T146: -4.945480927 | U146: 9.302039969 | V146: 4.356559042 | AP146: 1450300000
A147: 115 | B147: =OFFSET(InputPriceData!B$15,CalculationsAndCharts!$A147+$A$11,0,1,1) -> 2004-07-15 | C147: =OFFSET(InputPriceData!G$15,CalculationsAndCharts!$A147+$A$11,IF($C$7,8,0),1,1) -> 1408700000 | D147: =OFFSET(InputPriceData!C$15,CalculationsAndCharts!$A147+$A$11,IF($C$7,8,0),1,1) -> 1111.47 | E147: =OFFSET(InputPriceData!D$15,CalculationsAndCharts!$A147+$A$11,IF($C$7,8,0),1,1) -> 1114.63 | F147: =OFFSET(InputPriceData!E$15,CalculationsAndCharts!$A147+$A$11,IF($C$7,8,0),1,1) -> 1106.67 | G147: =OFFSET(InputPriceData!F$15,CalculationsAndCharts!$A147+$A$11,IF($C$7,8,0),1,1) -> 1106.69 | H147: 1117.571984 | I147: 1121.518963 | J147: -3.946979283 | K147: 1121.673818 | L147: 1111.866685 | M147: 9.807133813 | N147: 5.86015453 | O147: 0 | T147: -3.946979283 | U147: 9.807133813 | V147: 5.86015453 | AP147: 1408700000
A148: 116 | B148: =OFFSET(InputPriceData!B$15,CalculationsAndCharts!$A148+$A$11,0,1,1) -> 2004-07-14 | C148: =OFFSET(InputPriceData!G$15,CalculationsAndCharts!$A148+$A$11,IF($C$7,8,0),1,1) -> 1462000000 | D148: =OFFSET(InputPriceData!C$15,CalculationsAndCharts!$A148+$A$11,IF($C$7,8,0),1,1) -> 1115.14 | E148: =OFFSET(InputPriceData!D$15,CalculationsAndCharts!$A148+$A$11,IF($C$7,8,0),1,1) -> 1119.6 | F148: =OFFSET(InputPriceData!E$15,CalculationsAndCharts!$A148+$A$11,IF($C$7,8,0),1,1) -> 1107.83 | G148: =OFFSET(InputPriceData!F$15,CalculationsAndCharts!$A148+$A$11,IF($C$7,8,0),1,1) -> 1111.47 | H148: 1119.550526 | I148: 1122.70528 | J148: -3.154753849 | K148: 1122.181744 | L148: 1111.946943 | M148: 10.23480119 | N148: 7.080047337 | O148: 0 | T148: -3.154753849 | U148: 10.23480119 | V148: 7.080047337 | AP148: 1462000000
A149: 117 | B149: =OFFSET(InputPriceData!B$15,CalculationsAndCharts!$A149+$A$11,0,1,1) -> 2004-07-13 | C149: =OFFSET(InputPriceData!G$15,CalculationsAndCharts!$A149+$A$11,IF($C$7,8,0),1,1) -> 1199700000 | D149: =OFFSET(InputPriceData!C$15,CalculationsAndCharts!$A149+$A$11,IF($C$7,8,0),1,1) -> 1114.35 | E149: =OFFSET(InputPriceData!D$15,CalculationsAndCharts!$A149+$A$11,IF($C$7,8,0),1,1) -> 1116.3 | F149: =OFFSET(InputPriceData!E$15,CalculationsAndCharts!$A149+$A$11,IF($C$7,8,0),1,1) -> 1112.99 | G149: =OFFSET(InputPriceData!F$15,CalculationsAndCharts!$A149+$A$11,IF($C$7,8,0),1,1) -> 1115.14 | H149: 1121.019713 | I149: 1123.604102 | J149: -2.584389694 | K149: 1122.544854 | L149: 1111.954338 | M149: 10.5905167 | N149: 8.006127005 | O149: 0 | T149: -2.584389694 | U149: 10.5905167 | V149: 8.006127005 | AO149: 1199700000
A150: 118 | B150: =OFFSET(InputPriceData!B$15,CalculationsAndCharts!$A150+$A$11,0,1,1) -> 2004-07-12 | C150: =OFFSET(InputPriceData!G$15,CalculationsAndCharts!$A150+$A$11,IF($C$7,8,0),1,1) -> 1114600000 | D150: =OFFSET(InputPriceData!C$15,CalculationsAndCharts!$A150+$A$11,IF($C$7,8,0),1,1) -> 1112.81 | E150: =OFFSET(InputPriceData!D$15,CalculationsAndCharts!$A150+$A$11,IF($C$7,8,0),1,1) -> 1116.11 | F150: =OFFSET(InputPriceData!E$15,CalculationsAndCharts!$A150+$A$11,IF($C$7,8,0),1,1) -> 1106.71 | G150: =OFFSET(InputPriceData!F$15,CalculationsAndCharts!$A150+$A$11,IF($C$7,8,0),1,1) -> 1114.35 | H150: 1122.088751 | I150: 1124.28123 | J150: -2.192479232 | K150: 1122.795866 | L150: 1111.904948 | M150: 10.89091883 | N150: 8.698439595 | O150: 0 | T150: -2.192479232 | U150: 10.89091883 | V150: 8.698439595 | AO150: 1114600000
A151: 119 | B151: =OFFSET(InputPriceData!B$15,CalculationsAndCharts!$A151+$A$11,0,1,1) -> 2004-07-09 | C151: =OFFSET(InputPriceData!G$15,CalculationsAndCharts!$A151+$A$11,IF($C$7,8,0),1,1) -> 1186300000 | D151: =OFFSET(InputPriceData!C$15,CalculationsAndCharts!$A151+$A$11,IF($C$7,8,0),1,1) -> 1109.11 | E151: =OFFSET(InputPriceData!D$15,CalculationsAndCharts!$A151+$A$11,IF($C$7,8,0),1,1) -> 1115.57 | F151: =OFFSET(InputPriceData!E$15,CalculationsAndCharts!$A151+$A$11,IF($C$7,8,0),1,1) -> 1109.11 | G151: =OFFSET(InputPriceData!F$15,CalculationsAndCharts!$A151+$A$11,IF($C$7,8,0),1,1) -> 1112.81 | H151: 1123.495797 | I151: 1125.075729 | J151: -1.579931998 | K151: 1123.082167 | L151: 1111.86704 | M151: 11.21512717 | N151: 9.635195176 | O151: 0 | T151: -1.579931998 | U151: 11.21512717 | V151: 9.635195176 | AO151: 1186300000
A152: 120 | B152: =OFFSET(InputPriceData!B$15,CalculationsAndCharts!$A152+$A$11,0,1,1) -> 2004-07-08 | C152: =OFFSET(InputPriceData!G$15,CalculationsAndCharts!$A152+$A$11,IF($C$7,8,0),1,1) -> 1401100000 | D152: =OFFSET(InputPriceData!C$15,CalculationsAndCharts!$A152+$A$11,IF($C$7,8,0),1,1) -> 1118.33 | E152: =OFFSET(InputPriceData!D$15,CalculationsAndCharts!$A152+$A$11,IF($C$7,8,0),1,1) -> 1119.12 | F152: =OFFSET(InputPriceData!E$15,CalculationsAndCharts!$A152+$A$11,IF($C$7,8,0),1,1) -> 1108.72 | G152: =OFFSET(InputPriceData!F$15,CalculationsAndCharts!$A152+$A$11,IF($C$7,8,0),1,1) -> 1109.11 | H152: 1125.438669 | I152: 1126.056987 | J152: -0.6183181542 | K152: 1123.430376 | L152: 1111.85242 | M152: 11.57795576 | N152: 10.95963761 | O152: 0 | T152: -0.6183181542 | U152: 11.57795576 | V152: 10.95963761 | AP152: 1401100000
A153: 121 | B153: =OFFSET(InputPriceData!B$15,CalculationsAndCharts!$A153+$A$11,0,1,1) -> 2004-07-07 | C153: =OFFSET(InputPriceData!G$15,CalculationsAndCharts!$A153+$A$11,IF($C$7,8,0),1,1) -> 1328600000 | D153: =OFFSET(InputPriceData!C$15,CalculationsAndCharts!$A153+$A$11,IF($C$7,8,0),1,1) -> 1116.21 | E153: =OFFSET(InputPriceData!D$15,CalculationsAndCharts!$A153+$A$11,IF($C$7,8,0),1,1) -> 1122.37 | F153: =OFFSET(InputPriceData!E$15,CalculationsAndCharts!$A153+$A$11,IF($C$7,8,0),1,1) -> 1114.92 | G153: =OFFSET(InputPriceData!F$15,CalculationsAndCharts!$A153+$A$11,IF($C$7,8,0),1,1) -> 1118.33 | H153: 1128.407518 | I153: 1127.412746 | J153: 0.9947717794 | K153: 1123.915813 | L153: 1111.894938 | M153: 12.0208741 | N153: 13.01564588 | O153: 0 | T153: 0.9947717794 | U153: 12.0208741 | V153: 13.01564588 | AO153: 1328600000
A154: 122 | B154: =OFFSET(InputPriceData!B$15,CalculationsAndCharts!$A154+$A$11,0,1,1) -> 2004-07-06 | C154: =OFFSET(InputPriceData!G$15,CalculationsAndCharts!$A154+$A$11,IF($C$7,8,0),1,1) -> 1283300000 | D154: =OFFSET(InputPriceData!C$15,CalculationsAndCharts!$A154+$A$11,IF($C$7,8,0),1,1) -> 1125.38 | E154: =OFFSET(InputPriceData!D$15,CalculationsAndCharts!$A154+$A$11,IF($C$7,8,0),1,1) -> 1125.38 | F154: =OFFSET(InputPriceData!E$15,CalculationsAndCharts!$A154+$A$11,IF($C$7,8,0),1,1) -> 1113.21 | G154: =OFFSET(InputPriceData!F$15,CalculationsAndCharts!$A154+$A$11,IF($C$7,8,0),1,1) -> 1116.21 | H154: 1130.239794 | I154: 1128.139366 | J154: 2.100428069 | K154: 1124.105162 | L154: 1111.79517 | M154: 12.30999207 | N154: 14.41042014 | O154: 0 | T154: 2.100428069 | U154: 12.30999207 | V154: 14.41042014 | AP154: 1283300000
A155: 123 | B155: =OFFSET(InputPriceData!B$15,CalculationsAndCharts!$A155+$A$11,0,1,1) -> 2004-07-02 | C155: =OFFSET(InputPriceData!G$15,CalculationsAndCharts!$A155+$A$11,IF($C$7,8,0),1,1) -> 1085000000 | D155: =OFFSET(InputPriceData!C$15,CalculationsAndCharts!$A155+$A$11,IF($C$7,8,0),1,1) -> 1128.94 | E155: =OFFSET(InputPriceData!D$15,CalculationsAndCharts!$A155+$A$11,IF($C$7,8,0),1,1) -> 1129.15 | F155: =OFFSET(InputPriceData!E$15,CalculationsAndCharts!$A155+$A$11,IF($C$7,8,0),1,1) -> 1123.26 | G155: =OFFSET(InputPriceData!F$15,CalculationsAndCharts!$A155+$A$11,IF($C$7,8,0),1,1) -> 1125.38 | H155: 1132.790665 | I155: 1129.093715 | J155: 3.696950415 | K155: 1124.372795 | L155: 1111.726723 | M155: 12.64607166 | N155: 16.34302208 | O155: 0 | T155: 3.696950415 | U155: 12.64607166 | V155: 16.34302208 | AP155: 1085000000
A156: 124 | B156: =OFFSET(InputPriceData!B$15,CalculationsAndCharts!$A156+$A$11,0,1,1) -> 2004-07-01 | C156: =OFFSET(InputPriceData!G$15,CalculationsAndCharts!$A156+$A$11,IF($C$7,8,0),1,1) -> 1495700000 | D156: =OFFSET(InputPriceData!C$15,CalculationsAndCharts!$A156+$A$11,IF($C$7,8,0),1,1) -> 1140.84 | E156: =OFFSET(InputPriceData!D$15,CalculationsAndCharts!$A156+$A$11,IF($C$7,8,0),1,1) -> 1140.84 | F156: =OFFSET(InputPriceData!E$15,CalculationsAndCharts!$A156+$A$11,IF($C$7,8,0),1,1) -> 1123.06 | G156: =OFFSET(InputPriceData!F$15,CalculationsAndCharts!$A156+$A$11,IF($C$7,8,0),1,1) -> 1128.94 | H156: 1134.138059 | I156: 1129.390812 | J156: 4.747246932 | K156: 1124.338652 | L156: 1111.515044 | M156: 12.82360782 | N156: 17.57085476 | O156: 0 | T156: 4.747246932 | U156: 12.82360782 | V156: 17.57085476 | AP156: 1495700000
A157: 125 | B157: =OFFSET(InputPriceData!B$15,CalculationsAndCharts!$A157+$A$11,0,1,1) -> 2004-06-30 | C157: =OFFSET(InputPriceData!G$15,CalculationsAndCharts!$A157+$A$11,IF($C$7,8,0),1,1) -> 1473800000 | D157: =OFFSET(InputPriceData!C$15,CalculationsAndCharts!$A157+$A$11,IF($C$7,8,0),1,1) -> 1136.2 | E157: =OFFSET(InputPriceData!D$15,CalculationsAndCharts!$A157+$A$11,IF($C$7,8,0),1,1) -> 1144.2 | F157: =OFFSET(InputPriceData!E$15,CalculationsAndCharts!$A157+$A$11,IF($C$7,8,0),1,1) -> 1133.62 | G157: =OFFSET(InputPriceData!F$15,CalculationsAndCharts!$A157+$A$11,IF($C$7,8,0),1,1) -> 1140.84 | H157: 1135.083161 | I157: 1129.426877 | J157: 5.656283621 | K157: 1124.182674 | L157: 1111.24489 | M157: 12.93778428 | N157: 18.59406791 | O157: 0 | T157: 5.656283621 | U157: 12.93778428 | V157: 18.59406791 | AO157: 1473800000
A158: 126 | B158: =OFFSET(InputPriceData!B$15,CalculationsAndCharts!$A158+$A$11,0,1,1) -> 2004-06-29 | C158: =OFFSET(InputPriceData!G$15,CalculationsAndCharts!$A158+$A$11,IF($C$7,8,0),1,1) -> 1375000000 | D158: =OFFSET(InputPriceData!C$15,CalculationsAndCharts!$A158+$A$11,IF($C$7,8,0),1,1) -> 1133.35 | E158: =OFFSET(InputPriceData!D$15,CalculationsAndCharts!$A158+$A$11,IF($C$7,8,0),1,1) -> 1138.26 | F158: =OFFSET(InputPriceData!E$15,CalculationsAndCharts!$A158+$A$11,IF($C$7,8,0),1,1) -> 1131.81 | G158: =OFFSET(InputPriceData!F$15,CalculationsAndCharts!$A158+$A$11,IF($C$7,8,0),1,1) -> 1136.2 | H158: 1134.036463 | I158: 1128.513827 | J158: 5.522635415 | K158: 1123.618019 | L158: 1110.786051 | M158: 12.83196809 | N158: 18.35460351 | O158: 0 | T158: 5.522635415 | U158: 12.83196809 | V158: 18.35460351 | AO158: 1375000000
A159: 127 | B159: =OFFSET(InputPriceData!B$15,CalculationsAndCharts!$A159+$A$11,0,1,1) -> 2004-06-28 | C159: =OFFSET(InputPriceData!G$15,CalculationsAndCharts!$A159+$A$11,IF($C$7,8,0),1,1) -> 1354600000 | D159: =OFFSET(InputPriceData!C$15,CalculationsAndCharts!$A159+$A$11,IF($C$7,8,0),1,1) -> 1134.43 | E159: =OFFSET(InputPriceData!D$15,CalculationsAndCharts!$A159+$A$11,IF($C$7,8,0),1,1) -> 1142.6 | F159: =OFFSET(InputPriceData!E$15,CalculationsAndCharts!$A159+$A$11,IF($C$7,8,0),1,1) -> 1131.72 | G159: =OFFSET(InputPriceData!F$15,CalculationsAndCharts!$A159+$A$11,IF($C$7,8,0),1,1) -> 1133.35 | H159: 1133.643092 | I159: 1127.898934 | J159: 5.744158826 | K159: 1123.191511 | L159: 1110.392036 | M159: 12.79947498 | N159: 18.54363381 | O159: 0 | T159: 5.744158826 | U159: 12.79947498 | V159: 18.54363381 | AP159: 1354600000
A160: 128 | B160: =OFFSET(InputPriceData!B$15,CalculationsAndCharts!$A160+$A$11,0,1,1) -> 2004-06-25 | C160: =OFFSET(InputPriceData!G$15,CalculationsAndCharts!$A160+$A$11,IF($C$7,8,0),1,1) -> 1812900000 | D160: =OFFSET(InputPriceData!C$15,CalculationsAndCharts!$A160+$A$11,IF($C$7,8,0),1,1) -> 1140.65 | E160: =OFFSET(InputPriceData!D$15,CalculationsAndCharts!$A160+$A$11,IF($C$7,8,0),1,1) -> 1145.97 | F160: =OFFSET(InputPriceData!E$15,CalculationsAndCharts!$A160+$A$11,IF($C$7,8,0),1,1) -> 1134.24 | G160: =OFFSET(InputPriceData!F$15,CalculationsAndCharts!$A160+$A$11,IF($C$7,8,0),1,1) -> 1134.43 | H160: 1133.696382 | I160: 1127.462848 | J160: 6.23353367 | K160: 1122.847156 | L160: 1110.036099 | M160: 12.81105685 | N160: 19.04459052 | O160: 0 | T160: 6.23353367 | U160: 12.81105685 | V160: 19.04459052 | AP160: 1812900000
A161: 129 | B161: =OFFSET(InputPriceData!B$15,CalculationsAndCharts!$A161+$A$11,0,1,1) -> 2004-06-24 | C161: =OFFSET(InputPriceData!G$15,CalculationsAndCharts!$A161+$A$11,IF($C$7,8,0),1,1) -> 1394900000 | D161: =OFFSET(InputPriceData!C$15,CalculationsAndCharts!$A161+$A$11,IF($C$7,8,0),1,1) -> 1144.06 | E161: =OFFSET(InputPriceData!D$15,CalculationsAndCharts!$A161+$A$11,IF($C$7,8,0),1,1) -> 1146.34 | F161: =OFFSET(InputPriceData!E$15,CalculationsAndCharts!$A161+$A$11,IF($C$7,8,0),1,1) -> 1139.94 | G161: =OFFSET(InputPriceData!F$15,CalculationsAndCharts!$A161+$A$11,IF($C$7,8,0),1,1) -> 1140.65 | H161: 1133.562997 | I161: 1126.905476 | J161: 6.657520708 | K161: 1122.454517 | L161: 1109.657899 | M161: 12.79661809 | N161: 19.45413879 | O161: 0 | T161: 6.657520708 | U161: 12.79661809 | V161: 19.45413879 | AO161: =IF(G161>=D161,C161,NA()) ->  | AP161: =IF(G161<D161,C161,NA()) -> 1394900000
A162: 130 | B162: =OFFSET(InputPriceData!B$15,CalculationsAndCharts!$A162+$A$11,0,1,1) -> 2004-06-23 | C162: =OFFSET(InputPriceData!G$15,CalculationsAndCharts!$A162+$A$11,IF($C$7,8,0),1,1) -> 1444200000 | D162: =OFFSET(InputPriceData!C$15,CalculationsAndCharts!$A162+$A$11,IF($C$7,8,0),1,1) -> 1134.41 | E162: =OFFSET(InputPriceData!D$15,CalculationsAndCharts!$A162+$A$11,IF($C$7,8,0),1,1) -> 1145.15 | F162: =OFFSET(InputPriceData!E$15,CalculationsAndCharts!$A162+$A$11,IF($C$7,8,0),1,1) -> 1131.73 | G162: =OFFSET(InputPriceData!F$15,CalculationsAndCharts!$A162+$A$11,IF($C$7,8,0),1,1) -> 1144.06 | H162: 1132.274451 | I162: 1125.805914 | J162: 6.46853659 | K162: =IF($A162>$A$8,NA(),IF($A162=$A$8,$G162,$G162*$C$20+K163*$D$20)) -> 1121.837721 | L162: =IF($A162>$A$8,NA(),IF($A162=$A$8,$G162,$G162*$C$21+L163*$D$21)) -> 1109.177401 | M162: =K162-L162 -> 12.66031974 | N162: =J162+M162 -> 19.12885633 | O162: 0 | T162: =IF($R$4,J162,NA()) -> 6.46853659 | U162: =IF($R$5,M162,NA()) -> 12.66031974 | V162: =IF($R$6,N162,NA()) -> 19.12885633 | AO162: 1444200000
A163: 131 | B163: =OFFSET(InputPriceData!B$15,CalculationsAndCharts!$A163+$A$11,0,1,1) -> 2004-06-22 | C163: =OFFSET(InputPriceData!G$15,CalculationsAndCharts!$A163+$A$11,IF($C$7,8,0),1,1) -> 1382300000 | D163: =OFFSET(InputPriceData!C$15,CalculationsAndCharts!$A163+$A$11,IF($C$7,8,0),1,1) -> 1130.3 | E163: =OFFSET(InputPriceData!D$15,CalculationsAndCharts!$A163+$A$11,IF($C$7,8,0),1,1) -> 1135.05 | F163: =OFFSET(InputPriceData!E$15,CalculationsAndCharts!$A163+$A$11,IF($C$7,8,0),1,1) -> 1124.37 | G163: =OFFSET(InputPriceData!F$15,CalculationsAndCharts!$A163+$A$11,IF($C$7,8,0),1,1) -> 1134.41 | H163: 1130.131624 | I163: 1124.345587 | J163: 5.786036329 | K163: 1121.084423 | L163: 1108.636586 | M163: 12.44783764 | N163: 18.23387397 | O163: 0 | T163: 5.786036329 | U163: 12.44783764 | V163: 18.23387397 | AO163: 1382300000
A164: 132 | B164: =OFFSET(InputPriceData!B$15,CalculationsAndCharts!$A164+$A$11,0,1,1) -> 2004-06-21 | C164: =OFFSET(InputPriceData!G$15,CalculationsAndCharts!$A164+$A$11,IF($C$7,8,0),1,1) -> 1123900000 | D164: =OFFSET(InputPriceData!C$15,CalculationsAndCharts!$A164+$A$11,IF($C$7,8,0),1,1) -> 1135.02 | E164: =OFFSET(InputPriceData!D$15,CalculationsAndCharts!$A164+$A$11,IF($C$7,8,0),1,1) -> 1138.05 | F164: =OFFSET(InputPriceData!E$15,CalculationsAndCharts!$A164+$A$11,IF($C$7,8,0),1,1) -> 1129.64 | G164: =OFFSET(InputPriceData!F$15,CalculationsAndCharts!$A164+$A$11,IF($C$7,8,0),1,1) -> 1130.3 | H164: 1129.353737 | I164: 1123.540434 | J164: 5.81330274 | K164: 1120.632709 | L164: 1108.236998 | M164: 12.39571099 | N164: 18.20901373 | O164: 0 | T164: 5.81330274 | U164: 12.39571099 | V164: 18.20901373 | AP164: 1123900000
A165: 133 | B165: =OFFSET(InputPriceData!B$15,CalculationsAndCharts!$A165+$A$11,0,1,1) -> 2004-06-18 | C165: =OFFSET(InputPriceData!G$15,CalculationsAndCharts!$A165+$A$11,IF($C$7,8,0),1,1) -> 1500600000 | D165: =OFFSET(InputPriceData!C$15,CalculationsAndCharts!$A165+$A$11,IF($C$7,8,0),1,1) -> 1132.05 | E165: =OFFSET(InputPriceData!D$15,CalculationsAndCharts!$A165+$A$11,IF($C$7,8,0),1,1) -> 1138.96 | F165: =OFFSET(InputPriceData!E$15,CalculationsAndCharts!$A165+$A$11,IF($C$7,8,0),1,1) -> 1129.83 | G165: =OFFSET(InputPriceData!F$15,CalculationsAndCharts!$A165+$A$11,IF($C$7,8,0),1,1) -> 1135.02 | H165: 1129.181689 | I165: 1122.999669 | J165: 6.182020192 | K165: 1120.305004 | L165: 1107.894936 | M165: 12.41006826 | N165: 18.59208845 | O165: 0 | T165: 6.182020192 | U165: 12.41006826 | V165: 18.59208845 | AO165: 1500600000
A166: 134 | B166: =OFFSET(InputPriceData!B$15,CalculationsAndCharts!$A166+$A$11,0,1,1) -> 2004-06-17 | C166: =OFFSET(InputPriceData!G$15,CalculationsAndCharts!$A166+$A$11,IF($C$7,8,0),1,1) -> 1296700000 | D166: =OFFSET(InputPriceData!C$15,CalculationsAndCharts!$A166+$A$11,IF($C$7,8,0),1,1) -> 1133.56 | E166: =OFFSET(InputPriceData!D$15,CalculationsAndCharts!$A166+$A$11,IF($C$7,8,0),1,1) -> 1133.56 | F166: =OFFSET(InputPriceData!E$15,CalculationsAndCharts!$A166+$A$11,IF($C$7,8,0),1,1) -> 1126.89 | G166: =OFFSET(InputPriceData!F$15,CalculationsAndCharts!$A166+$A$11,IF($C$7,8,0),1,1) -> 1132.05 | H166: 1128.120178 | I166: 1122.038043 | J166: 6.082135628 | K166: 1119.806191 | L166: 1107.474392 | M166: 12.33179847 | N166: 18.4139341 | O166: 0 | T166: 6.082135628 | U166: 12.33179847 | V166: 18.4139341 | AP166: 1296700000
A167: 135 | B167: =OFFSET(InputPriceData!B$15,CalculationsAndCharts!$A167+$A$11,0,1,1) -> 2004-06-16 | C167: =OFFSET(InputPriceData!G$15,CalculationsAndCharts!$A167+$A$11,IF($C$7,8,0),1,1) -> 1168400000 | D167: =OFFSET(InputPriceData!C$15,CalculationsAndCharts!$A167+$A$11,IF($C$7,8,0),1,1) -> 1132.01 | E167: =OFFSET(InputPriceData!D$15,CalculationsAndCharts!$A167+$A$11,IF($C$7,8,0),1,1) -> 1135.28 | F167: =OFFSET(InputPriceData!E$15,CalculationsAndCharts!$A167+$A$11,IF($C$7,8,0),1,1) -> 1130.55 | G167: =OFFSET(InputPriceData!F$15,CalculationsAndCharts!$A167+$A$11,IF($C$7,8,0),1,1) -> 1133.56 | H167: 1127.405665 | I167: 1121.237086 | J167: 6.168579176 | K167: 1119.391146 | L167: 1107.093375 | M167: 12.29777127 | N167: 18.46635044 | O167: 0 | T167: 6.168579176 | U167: 12.29777127 | V167: 18.46635044 | AO167: 1168400000
A168: 136 | B168: =OFFSET(InputPriceData!B$15,CalculationsAndCharts!$A168+$A$11,0,1,1) -> 2004-06-15 | C168: =OFFSET(InputPriceData!G$15,CalculationsAndCharts!$A168+$A$11,IF($C$7,8,0),1,1) -> 1345900000 | D168: =OFFSET(InputPriceData!C$15,CalculationsAndCharts!$A168+$A$11,IF($C$7,8,0),1,1) -> 1125.29 | E168: =OFFSET(InputPriceData!D$15,CalculationsAndCharts!$A168+$A$11,IF($C$7,8,0),1,1) -> 1137.36 | F168: =OFFSET(InputPriceData!E$15,CalculationsAndCharts!$A168+$A$11,IF($C$7,8,0),1,1) -> 1125.29 | G168: =OFFSET(InputPriceData!F$15,CalculationsAndCharts!$A168+$A$11,IF($C$7,8,0),1,1) -> 1132.01 | H168: 1126.286695 | I168: 1120.251253 | J168: 6.035442334 | K168: 1118.910846 | L168: 1106.68304 | M168: 12.22780641 | N168: 18.26324875 | O168: 0 | T168: 6.035442334 | U168: 12.22780641 | V168: 18.26324875 | AO168: 1345900000
A169: 137 | B169: =OFFSET(InputPriceData!B$15,CalculationsAndCharts!$A169+$A$11,0,1,1) -> 2004-06-14 | C169: =OFFSET(InputPriceData!G$15,CalculationsAndCharts!$A169+$A$11,IF($C$7,8,0),1,1) -> 1179400000 | D169: =OFFSET(InputPriceData!C$15,CalculationsAndCharts!$A169+$A$11,IF($C$7,8,0),1,1) -> 1136.47 | E169: =OFFSET(InputPriceData!D$15,CalculationsAndCharts!$A169+$A$11,IF($C$7,8,0),1,1) -> 1136.47 | F169: =OFFSET(InputPriceData!E$15,CalculationsAndCharts!$A169+$A$11,IF($C$7,8,0),1,1) -> 1122.16 | G169: =OFFSET(InputPriceData!F$15,CalculationsAndCharts!$A169+$A$11,IF($C$7,8,0),1,1) -> 1125.29 | H169: 1125.246094 | I169: 1119.310553 | J169: 5.93554124 | K169: 1118.466807 | L169: 1106.290374 | M169: 12.17643335 | N169: 18.11197459 | O169: 0 | T169: 5.93554124 | U169: 12.17643335 | V169: 18.11197459 | AP169: 1179400000
A170: 138 | B170: =OFFSET(InputPriceData!B$15,CalculationsAndCharts!$A170+$A$11,0,1,1) -> 2004-06-10 | C170: =OFFSET(InputPriceData!G$15,CalculationsAndCharts!$A170+$A$11,IF($C$7,8,0),1,1) -> 1160600000 | D170: =OFFSET(InputPriceData!C$15,CalculationsAndCharts!$A170+$A$11,IF($C$7,8,0),1,1) -> 1131.33 | E170: =OFFSET(InputPriceData!D$15,CalculationsAndCharts!$A170+$A$11,IF($C$7,8,0),1,1) -> 1136.47 | F170: =OFFSET(InputPriceData!E$15,CalculationsAndCharts!$A170+$A$11,IF($C$7,8,0),1,1) -> 1131.33 | G170: =OFFSET(InputPriceData!F$15,CalculationsAndCharts!$A170+$A$11,IF($C$7,8,0),1,1) -> 1136.47 | H170: 1125.238112 | I170: 1118.832197 | J170: 6.405914153 | K170: 1118.235513 | L170: 1105.995806 | M170: 12.23970653 | N170: 18.64562068 | O170: 0 | T170: 6.405914153 | U170: 12.23970653 | V170: 18.64562068 | AO170: 1160600000
A171: 139 | B171: =OFFSET(InputPriceData!B$15,CalculationsAndCharts!$A171+$A$11,0,1,1) -> 2004-06-09 | C171: =OFFSET(InputPriceData!G$15,CalculationsAndCharts!$A171+$A$11,IF($C$7,8,0),1,1) -> 1276800000 | D171: =OFFSET(InputPriceData!C$15,CalculationsAndCharts!$A171+$A$11,IF($C$7,8,0),1,1) -> 1142.18 | E171: =OFFSET(InputPriceData!D$15,CalculationsAndCharts!$A171+$A$11,IF($C$7,8,0),1,1) -> 1142.18 | F171: =OFFSET(InputPriceData!E$15,CalculationsAndCharts!$A171+$A$11,IF($C$7,8,0),1,1) -> 1131.17 | G171: =OFFSET(InputPriceData!F$15,CalculationsAndCharts!$A171+$A$11,IF($C$7,8,0),1,1) -> 1131.33 | H171: =IF($A171>$A$8,NA(),IF(A171=$A$8,G171,G171*$C$18+H172*$D$18)) -> 1123.19595 | I171: =IF($A171>$A$8,NA(),IF($A171=$A$8,$G171,$G171*$C$19+I172*$D$19)) -> 1117.421173 | J171: =H171-I171 -> 5.774776828 | K171: 1117.617394 | L171: 1105.523338 | M171: 12.09405643 | N171: 17.86883326 | O171: 0 | T171: 5.774776828 | U171: 12.09405643 | V171: 17.86883326 | AP171: 1276800000
A172: 140 | B172: =OFFSET(InputPriceData!B$15,CalculationsAndCharts!$A172+$A$11,0,1,1) -> 2004-06-08 | C172: =OFFSET(InputPriceData!G$15,CalculationsAndCharts!$A172+$A$11,IF($C$7,8,0),1,1) -> 1190300000 | D172: =OFFSET(InputPriceData!C$15,CalculationsAndCharts!$A172+$A$11,IF($C$7,8,0),1,1) -> 1140.42 | E172: =OFFSET(InputPriceData!D$15,CalculationsAndCharts!$A172+$A$11,IF($C$7,8,0),1,1) -> 1142.18 | F172: =OFFSET(InputPriceData!E$15,CalculationsAndCharts!$A172+$A$11,IF($C$7,8,0),1,1) -> 1135.45 | G172: =OFFSET(InputPriceData!F$15,CalculationsAndCharts!$A172+$A$11,IF($C$7,8,0),1,1) -> 1142.18 | H172: 1121.717032 | I172: 1116.308467 | J172: 5.408564799 | K172: 1117.15256 | L172: 1105.123235 | M172: 12.02932563 | N172: 17.43789043 | O172: 0 | T172: 5.408564799 | U172: 12.02932563 | V172: 17.43789043 | AO172: 1190300000
A173: 141 | B173: =OFFSET(InputPriceData!B$15,CalculationsAndCharts!$A173+$A$11,0,1,1) -> 2004-06-07 | C173: =OFFSET(InputPriceData!G$15,CalculationsAndCharts!$A173+$A$11,IF($C$7,8,0),1,1) -> 1211800000 | D173: =OFFSET(InputPriceData!C$15,CalculationsAndCharts!$A173+$A$11,IF($C$7,8,0),1,1) -> 1122.5 | E173: =OFFSET(InputPriceData!D$15,CalculationsAndCharts!$A173+$A$11,IF($C$7,8,0),1,1) -> 1140.54 | F173: =OFFSET(InputPriceData!E$15,CalculationsAndCharts!$A173+$A$11,IF($C$7,8,0),1,1) -> 1122.5 | G173: =OFFSET(InputPriceData!F$15,CalculationsAndCharts!$A173+$A$11,IF($C$7,8,0),1,1) -> 1140.42 | H173: 1117.996492 | I173: 1114.238744 | J173: 3.757747775 | K173: 1116.304172 | L173: 1104.548711 | M173: 11.75546134 | N173: 15.51320911 | O173: 0 | T173: 3.757747775 | U173: 11.75546134 | V173: 15.51320911 | AO173: 1211800000
A174: 142 | B174: =OFFSET(InputPriceData!B$15,CalculationsAndCharts!$A174+$A$11,0,1,1) -> 2004-06-04 | C174: =OFFSET(InputPriceData!G$15,CalculationsAndCharts!$A174+$A$11,IF($C$7,8,0),1,1) -> 1115300000 | D174: =OFFSET(InputPriceData!C$15,CalculationsAndCharts!$A174+$A$11,IF($C$7,8,0),1,1) -> 1116.64 | E174: =OFFSET(InputPriceData!D$15,CalculationsAndCharts!$A174+$A$11,IF($C$7,8,0),1,1) -> 1129.17 | F174: =OFFSET(InputPriceData!E$15,CalculationsAndCharts!$A174+$A$11,IF($C$7,8,0),1,1) -> 1116.64 | G174: =OFFSET(InputPriceData!F$15,CalculationsAndCharts!$A174+$A$11,IF($C$7,8,0),1,1) -> 1122.5 | H174: 1113.919491 | I174: 1112.144244 | J174: 1.775246806 | K174: 1115.486687 | L174: 1103.992567 | M174: 11.49411967 | N174: 13.26936648 | O174: 0 | T174: 1.775246806 | U174: 11.49411967 | V174: 13.26936648 | AO174: 1115300000
A175: 143 | B175: =OFFSET(InputPriceData!B$15,CalculationsAndCharts!$A175+$A$11,0,1,1) -> 2004-06-03 | C175: =OFFSET(InputPriceData!G$15,CalculationsAndCharts!$A175+$A$11,IF($C$7,8,0),1,1) -> 1232400000 | D175: =OFFSET(InputPriceData!C$15,CalculationsAndCharts!$A175+$A$11,IF($C$7,8,0),1,1) -> 1124.99 | E175: =OFFSET(InputPriceData!D$15,CalculationsAndCharts!$A175+$A$11,IF($C$7,8,0),1,1) -> 1125.31 | F175: =OFFSET(InputPriceData!E$15,CalculationsAndCharts!$A175+$A$11,IF($C$7,8,0),1,1) -> 1116.57 | G175: =OFFSET(InputPriceData!F$15,CalculationsAndCharts!$A175+$A$11,IF($C$7,8,0),1,1) -> 1116.64 | H175: 1112.359398 | I175: 1111.315784 | J175: 1.043614706 | K175: 1115.248947 | L175: 1103.70563 | M175: 11.54331718 | N175: 12.58693189 | O175: 0 | T175: 1.043614706 | U175: 11.54331718 | V175: 12.58693189 | AP175: 1232400000
A176: 144 | B176: =OFFSET(InputPriceData!B$15,CalculationsAndCharts!$A176+$A$11,0,1,1) -> 2004-06-02 | C176: =OFFSET(InputPriceData!G$15,CalculationsAndCharts!$A176+$A$11,IF($C$7,8,0),1,1) -> 1251700000 | D176: =OFFSET(InputPriceData!C$15,CalculationsAndCharts!$A176+$A$11,IF($C$7,8,0),1,1) -> 1121.2 | E176: =OFFSET(InputPriceData!D$15,CalculationsAndCharts!$A176+$A$11,IF($C$7,8,0),1,1) -> 1128.1 | F176: =OFFSET(InputPriceData!E$15,CalculationsAndCharts!$A176+$A$11,IF($C$7,8,0),1,1) -> 1118.64 | G176: =OFFSET(InputPriceData!F$15,CalculationsAndCharts!$A176+$A$11,IF($C$7,8,0),1,1) -> 1124.99 | H176: 1111.581107 | I176: 1110.889846 | J176: 0.6912607941 | K176: 1115.201793 | L176: 1103.505097 | M176: 11.69669572 | N176: 12.38795652 | O176: 0 | T176: 0.6912607941 | U176: 11.69669572 | V176: 12.38795652 | AO176: 1251700000
A177: 145 | B177: =OFFSET(InputPriceData!B$15,CalculationsAndCharts!$A177+$A$11,0,1,1) -> 2004-06-01 | C177: =OFFSET(InputPriceData!G$15,CalculationsAndCharts!$A177+$A$11,IF($C$7,8,0),1,1) -> 1238000000 | D177: =OFFSET(InputPriceData!C$15,CalculationsAndCharts!$A177+$A$11,IF($C$7,8,0),1,1) -> 1120.68 | E177: =OFFSET(InputPriceData!D$15,CalculationsAndCharts!$A177+$A$11,IF($C$7,8,0),1,1) -> 1122.7 | F177: =OFFSET(InputPriceData!E$15,CalculationsAndCharts!$A177+$A$11,IF($C$7,8,0),1,1) -> 1113.32 | G177: =OFFSET(InputPriceData!F$15,CalculationsAndCharts!$A177+$A$11,IF($C$7,8,0),1,1) -> 1121.2 | H177: 1109.143126 | I177: 1109.761834 | J177: -0.6187074469 | K177: 1114.869989 | L177: 1103.171998 | M177: 11.69799136 | N177: 11.07928391 | O177: 0 | T177: -0.6187074469 | U177: 11.69799136 | V177: 11.07928391 | AO177: 1238000000
A178: 146 | B178: =OFFSET(InputPriceData!B$15,CalculationsAndCharts!$A178+$A$11,0,1,1) -> 2004-05-28 | C178: =OFFSET(InputPriceData!G$15,CalculationsAndCharts!$A178+$A$11,IF($C$7,8,0),1,1) -> 1172600000 | D178: =OFFSET(InputPriceData!C$15,CalculationsAndCharts!$A178+$A$11,IF($C$7,8,0),1,1) -> 1121.28 | E178: =OFFSET(InputPriceData!D$15,CalculationsAndCharts!$A178+$A$11,IF($C$7,8,0),1,1) -> 1122.69 | F178: =OFFSET(InputPriceData!E$15,CalculationsAndCharts!$A178+$A$11,IF($C$7,8,0),1,1) -> 1118.1 | G178: =OFFSET(InputPriceData!F$15,CalculationsAndCharts!$A178+$A$11,IF($C$7,8,0),1,1) -> 1120.68 | H178: 1106.950968 | I178: 1108.846781 | J178: -1.895812984 | K178: 1114.655413 | L178: 1102.892494 | M178: 11.76291864 | N178: 9.867105652 | O178: 0 | T178: -1.895812984 | U178: 11.76291864 | V178: 9.867105652 | AP178: 1172600000
A179: 147 | B179: =OFFSET(InputPriceData!B$15,CalculationsAndCharts!$A179+$A$11,0,1,1) -> 2004-05-27 | C179: =OFFSET(InputPriceData!G$15,CalculationsAndCharts!$A179+$A$11,IF($C$7,8,0),1,1) -> 1447500000 | D179: =OFFSET(InputPriceData!C$15,CalculationsAndCharts!$A179+$A$11,IF($C$7,8,0),1,1) -> 1114.94 | E179: =OFFSET(InputPriceData!D$15,CalculationsAndCharts!$A179+$A$11,IF($C$7,8,0),1,1) -> 1123.95 | F179: =OFFSET(InputPriceData!E$15,CalculationsAndCharts!$A179+$A$11,IF($C$7,8,0),1,1) -> 1114.86 | G179: =OFFSET(InputPriceData!F$15,CalculationsAndCharts!$A179+$A$11,IF($C$7,8,0),1,1) -> 1121.28 | H179: 1104.45478 | I179: 1107.900123 | J179: -3.445343136 | K179: 1114.451189 | L179: 1102.616719 | M179: 11.83447062 | N179: 8.389127488 | O179: 0 | T179: -3.445343136 | U179: 11.83447062 | V179: 8.389127488 | AO179: 1447500000
A180: 148 | B180: =OFFSET(InputPriceData!B$15,CalculationsAndCharts!$A180+$A$11,0,1,1) -> 2004-05-26 | C180: =OFFSET(InputPriceData!G$15,CalculationsAndCharts!$A180+$A$11,IF($C$7,8,0),1,1) -> 1369400000 | D180: =OFFSET(InputPriceData!C$15,CalculationsAndCharts!$A180+$A$11,IF($C$7,8,0),1,1) -> 1113.05 | E180: =OFFSET(InputPriceData!D$15,CalculationsAndCharts!$A180+$A$11,IF($C$7,8,0),1,1) -> 1116.71 | F180: =OFFSET(InputPriceData!E$15,CalculationsAndCharts!$A180+$A$11,IF($C$7,8,0),1,1) -> 1109.91 | G180: =OFFSET(InputPriceData!F$15,CalculationsAndCharts!$A180+$A$11,IF($C$7,8,0),1,1) -> 1114.94 | H180: 1101.395649 | I180: 1106.829733 | J180: -5.434083902 | K180: 1114.219704 | L180: 1102.327366 | M180: 11.89233872 | N180: 6.458254815 | O180: 0 | T180: -5.434083902 | U180: 11.89233872 | V180: 6.458254815 | AO180: 1369400000
A181: 149 | B181: =OFFSET(InputPriceData!B$15,CalculationsAndCharts!$A181+$A$11,0,1,1) -> 2004-05-25 | C181: =OFFSET(InputPriceData!G$15,CalculationsAndCharts!$A181+$A$11,IF($C$7,8,0),1,1) -> 1545700000 | D181: =OFFSET(InputPriceData!C$15,CalculationsAndCharts!$A181+$A$11,IF($C$7,8,0),1,1) -> 1095.41 | E181: =OFFSET(InputPriceData!D$15,CalculationsAndCharts!$A181+$A$11,IF($C$7,8,0),1,1) -> 1113.8 | F181: =OFFSET(InputPriceData!E$15,CalculationsAndCharts!$A181+$A$11,IF($C$7,8,0),1,1) -> 1090.74 | G181: =OFFSET(InputPriceData!F$15,CalculationsAndCharts!$A181+$A$11,IF($C$7,8,0),1,1) -> 1113.05 | H181: 1098.93304 | I181: 1106.180912 | J181: -7.247871805 | K181: 1114.195288 | L181: 1102.131821 | M181: 12.06346663 | N181: 4.815594829 | O181: 0 | T181: -7.247871805 | U181: 12.06346663 | V181: 4.815594829 | AO181: 1545700000
A182: 150 | B182: =OFFSET(InputPriceData!B$15,CalculationsAndCharts!$A182+$A$11,0,1,1) -> 2004-05-24 | C182: =OFFSET(InputPriceData!G$15,CalculationsAndCharts!$A182+$A$11,IF($C$7,8,0),1,1) -> 1227500000 | D182: =OFFSET(InputPriceData!C$15,CalculationsAndCharts!$A182+$A$11,IF($C$7,8,0),1,1) -> 1093.56 | E182: =OFFSET(InputPriceData!D$15,CalculationsAndCharts!$A182+$A$11,IF($C$7,8,0),1,1) -> 1101.28 | F182: =OFFSET(InputPriceData!E$15,CalculationsAndCharts!$A182+$A$11,IF($C$7,8,0),1,1) -> 1091.77 | G182: =OFFSET(InputPriceData!F$15,CalculationsAndCharts!$A182+$A$11,IF($C$7,8,0),1,1) -> 1095.41 | H182: 1096.36632 | I182: 1105.631384 | J182: -9.265064775 | K182: 1114.234111 | L182: 1101.962547 | M182: 12.27156403 | N182: 3.006499259 | O182: 0 | T182: -9.265064775 | U182: 12.27156403 | V182: 3.006499259 | AO182: 1227500000
A183: 151 | B183: =OFFSET(InputPriceData!B$15,CalculationsAndCharts!$A183+$A$11,0,1,1) -> 2004-05-21 | C183: =OFFSET(InputPriceData!G$15,CalculationsAndCharts!$A183+$A$11,IF($C$7,8,0),1,1) -> 1258600000 | D183: =OFFSET(InputPriceData!C$15,CalculationsAndCharts!$A183+$A$11,IF($C$7,8,0),1,1) -> 1089.19 | E183: =OFFSET(InputPriceData!D$15,CalculationsAndCharts!$A183+$A$11,IF($C$7,8,0),1,1) -> 1099.64 | F183: =OFFSET(InputPriceData!E$15,CalculationsAndCharts!$A183+$A$11,IF($C$7,8,0),1,1) -> 1089.19 | G183: =OFFSET(InputPriceData!F$15,CalculationsAndCharts!$A183+$A$11,IF($C$7,8,0),1,1) -> 1093.56 | H183: 1096.540196 | I183: 1106.449095 | J183: -9.908899223 | K183: 1114.872216 | L183: 1102.064137 | M183: 12.80807961 | N183: 2.89918039 | O183: 0 | T183: -9.908899223 | U183: 12.80807961 | V183: 2.89918039 | AO183: 1258600000
A184: 152 | B184: =OFFSET(InputPriceData!B$15,CalculationsAndCharts!$A184+$A$11,0,1,1) -> 2004-05-20 | C184: =OFFSET(InputPriceData!G$15,CalculationsAndCharts!$A184+$A$11,IF($C$7,8,0),1,1) -> 1211000000 | D184: =OFFSET(InputPriceData!C$15,CalculationsAndCharts!$A184+$A$11,IF($C$7,8,0),1,1) -> 1088.68 | E184: =OFFSET(InputPriceData!D$15,CalculationsAndCharts!$A184+$A$11,IF($C$7,8,0),1,1) -> 1092.62 | F184: =OFFSET(InputPriceData!E$15,CalculationsAndCharts!$A184+$A$11,IF($C$7,8,0),1,1) -> 1085.43 | G184: =OFFSET(InputPriceData!F$15,CalculationsAndCharts!$A184+$A$11,IF($C$7,8,0),1,1) -> 1089.19 | H184: 1097.08205 | I184: 1107.480223 | J184: -10.39817302 | K184: 1115.594664 | L184: 1102.195984 | M184: 13.39868054 | N184: 3.000507521 | O184: 0 | T184: -10.39817302 | U184: 13.39868054 | V184: 3.000507521 | AO184: 1211000000
A185: 153 | B185: =OFFSET(InputPriceData!B$15,CalculationsAndCharts!$A185+$A$11,0,1,1) -> 2004-05-19 | C185: =OFFSET(InputPriceData!G$15,CalculationsAndCharts!$A185+$A$11,IF($C$7,8,0),1,1) -> 1548600000 | D185: =OFFSET(InputPriceData!C$15,CalculationsAndCharts!$A185+$A$11,IF($C$7,8,0),1,1) -> 1091.49 | E185: =OFFSET(InputPriceData!D$15,CalculationsAndCharts!$A185+$A$11,IF($C$7,8,0),1,1) -> 1105.93 | F185: =OFFSET(InputPriceData!E$15,CalculationsAndCharts!$A185+$A$11,IF($C$7,8,0),1,1) -> 1088.49 | G185: =OFFSET(InputPriceData!F$15,CalculationsAndCharts!$A185+$A$11,IF($C$7,8,0),1,1) -> 1088.68 | H185: 1098.516968 | I185: 1108.943441 | J185: -10.4264727 | K185: 1116.489738 | L185: 1102.397627 | M185: 14.09211075 | N185: 3.665638051 | O185: 0 | T185: -10.4264727 | U185: 14.09211075 | V185: 3.665638051 | AP185: 1548600000
A186: 154 | B186: =OFFSET(InputPriceData!B$15,CalculationsAndCharts!$A186+$A$11,0,1,1) -> 2004-05-18 | C186: =OFFSET(InputPriceData!G$15,CalculationsAndCharts!$A186+$A$11,IF($C$7,8,0),1,1) -> 1353000000 | D186: =OFFSET(InputPriceData!C$15,CalculationsAndCharts!$A186+$A$11,IF($C$7,8,0),1,1) -> 1084.1 | E186: =OFFSET(InputPriceData!D$15,CalculationsAndCharts!$A186+$A$11,IF($C$7,8,0),1,1) -> 1094.1 | F186: =OFFSET(InputPriceData!E$15,CalculationsAndCharts!$A186+$A$11,IF($C$7,8,0),1,1) -> 1084.1 | G186: =OFFSET(InputPriceData!F$15,CalculationsAndCharts!$A186+$A$11,IF($C$7,8,0),1,1) -> 1091.49 | H186: 1100.305508 | I186: 1110.564516 | J186: -10.25900832 | K186: 1117.432441 | L186: 1102.610303 | M186: 14.82213733 | N186: 4.563129015 | O186: 0 | T186: -10.25900832 | U186: 14.82213733 | V186: 4.563129015 | AO186: 1353000000
A187: 155 | B187: =OFFSET(InputPriceData!B$15,CalculationsAndCharts!$A187+$A$11,0,1,1) -> 2004-05-17 | C187: =OFFSET(InputPriceData!G$15,CalculationsAndCharts!$A187+$A$11,IF($C$7,8,0),1,1) -> 1430100000 | D187: =OFFSET(InputPriceData!C$15,CalculationsAndCharts!$A187+$A$11,IF($C$7,8,0),1,1) -> 1095.7 | E187: =OFFSET(InputPriceData!D$15,CalculationsAndCharts!$A187+$A$11,IF($C$7,8,0),1,1) -> 1095.7 | F187: =OFFSET(InputPriceData!E$15,CalculationsAndCharts!$A187+$A$11,IF($C$7,8,0),1,1) -> 1079.36 | G187: =OFFSET(InputPriceData!F$15,CalculationsAndCharts!$A187+$A$11,IF($C$7,8,0),1,1) -> 1084.1 | H187: 1101.908327 | I187: 1112.090477 | J187: -10.18215003 | K187: 1118.311845 | L187: 1102.782711 | M187: 15.5291343 | N187: 5.346984272 | O187: 0 | T187: -10.18215003 | U187: 15.5291343 | V187: 5.346984272 | AP187: 1430100000
A188: 156 | B188: =OFFSET(InputPriceData!B$15,CalculationsAndCharts!$A188+$A$11,0,1,1) -> 2004-05-14 | C188: =OFFSET(InputPriceData!G$15,CalculationsAndCharts!$A188+$A$11,IF($C$7,8,0),1,1) -> 1335900000 | D188: =OFFSET(InputPriceData!C$15,CalculationsAndCharts!$A188+$A$11,IF($C$7,8,0),1,1) -> 1096.44 | E188: =OFFSET(InputPriceData!D$15,CalculationsAndCharts!$A188+$A$11,IF($C$7,8,0),1,1) -> 1102.1 | F188: =OFFSET(InputPriceData!E$15,CalculationsAndCharts!$A188+$A$11,IF($C$7,8,0),1,1) -> 1088.24 | G188: =OFFSET(InputPriceData!F$15,CalculationsAndCharts!$A188+$A$11,IF($C$7,8,0),1,1) -> 1095.7 | H188: 1105.146205 | I188: 1114.329715 | J188: -9.183510534 | K188: 1119.471569 | L188: 1103.072366 | M188: 16.39920344 | N188: 7.215692902 | O188: 0 | T188: -9.183510534 | U188: 16.39920344 | V188: 7.215692902 | AP188: 1335900000
A189: 157 | B189: =OFFSET(InputPriceData!B$15,CalculationsAndCharts!$A189+$A$11,0,1,1) -> 2004-05-13 | C189: =OFFSET(InputPriceData!G$15,CalculationsAndCharts!$A189+$A$11,IF($C$7,8,0),1,1) -> 1411100000 | D189: =OFFSET(InputPriceData!C$15,CalculationsAndCharts!$A189+$A$11,IF($C$7,8,0),1,1) -> 1097.28 | E189: =OFFSET(InputPriceData!D$15,CalculationsAndCharts!$A189+$A$11,IF($C$7,8,0),1,1) -> 1102.77 | F189: =OFFSET(InputPriceData!E$15,CalculationsAndCharts!$A189+$A$11,IF($C$7,8,0),1,1) -> 1091.76 | G189: =OFFSET(InputPriceData!F$15,CalculationsAndCharts!$A189+$A$11,IF($C$7,8,0),1,1) -> 1096.44 | H189: 1106.863697 | I189: 1115.820093 | J189: -8.956395972 | K189: 1120.277385 | L189: 1103.186666 | M189: 17.09071909 | N189: 8.13432312 | O189: 0 | T189: -8.956395972 | U189: 17.09071909 | V189: 8.13432312 | AP189: 1411100000
A190: 158 | B190: =OFFSET(InputPriceData!B$15,CalculationsAndCharts!$A190+$A$11,0,1,1) -> 2004-05-12 | C190: =OFFSET(InputPriceData!G$15,CalculationsAndCharts!$A190+$A$11,IF($C$7,8,0),1,1) -> 1697600000 | D190: =OFFSET(InputPriceData!C$15,CalculationsAndCharts!$A190+$A$11,IF($C$7,8,0),1,1) -> 1095.45 | E190: =OFFSET(InputPriceData!D$15,CalculationsAndCharts!$A190+$A$11,IF($C$7,8,0),1,1) -> 1097.55 | F190: =OFFSET(InputPriceData!E$15,CalculationsAndCharts!$A190+$A$11,IF($C$7,8,0),1,1) -> 1076.32 | G190: =OFFSET(InputPriceData!F$15,CalculationsAndCharts!$A190+$A$11,IF($C$7,8,0),1,1) -> 1097.28 | H190: 1108.758914 | I190: 1117.3705 | J190: -8.611585809 | K190: 1121.085432 | L190: 1103.291265 | M190: 17.79416657 | N190: 9.182580758 | O190: 0 | T190: -8.611585809 | U190: 17.79416657 | V190: 9.182580758 | AO190: 1697600000
A191: 159 | B191: =OFFSET(InputPriceData!B$15,CalculationsAndCharts!$A191+$A$11,0,1,1) -> 2004-05-11 | C191: =OFFSET(InputPriceData!G$15,CalculationsAndCharts!$A191+$A$11,IF($C$7,8,0),1,1) -> 1533800000 | D191: =OFFSET(InputPriceData!C$15,CalculationsAndCharts!$A191+$A$11,IF($C$7,8,0),1,1) -> 1087.12 | E191: =OFFSET(InputPriceData!D$15,CalculationsAndCharts!$A191+$A$11,IF($C$7,8,0),1,1) -> 1095.69 | F191: =OFFSET(InputPriceData!E$15,CalculationsAndCharts!$A191+$A$11,IF($C$7,8,0),1,1) -> 1087.12 | G191: =OFFSET(InputPriceData!F$15,CalculationsAndCharts!$A191+$A$11,IF($C$7,8,0),1,1) -> 1095.45 | H191: 1110.84599 | I191: 1118.97774 | J191: -8.131750499 | K191: 1121.892396 | L191: 1103.384463 | M191: 18.50793245 | N191: 10.37618195 | O191: 0 | T191: -8.131750499 | U191: 18.50793245 | V191: 10.37618195 | AO191: 1533800000
A192: 160 | B192: =OFFSET(InputPriceData!B$15,CalculationsAndCharts!$A192+$A$11,0,1,1) -> 2004-05-10 | C192: =OFFSET(InputPriceData!G$15,CalculationsAndCharts!$A192+$A$11,IF($C$7,8,0),1,1) -> 1918400000 | D192: =OFFSET(InputPriceData!C$15,CalculationsAndCharts!$A192+$A$11,IF($C$7,8,0),1,1) -> 1098.7 | E192: =OFFSET(InputPriceData!D$15,CalculationsAndCharts!$A192+$A$11,IF($C$7,8,0),1,1) -> 1098.7 | F192: =OFFSET(InputPriceData!E$15,CalculationsAndCharts!$A192+$A$11,IF($C$7,8,0),1,1) -> 1079.63 | G192: =OFFSET(InputPriceData!F$15,CalculationsAndCharts!$A192+$A$11,IF($C$7,8,0),1,1) -> 1087.12 | H192: 1113.64526 | I192: 1120.859959 | J192: -7.214698876 | K192: 1122.788748 | L192: 1103.507478 | M192: 19.28126991 | N192: 12.06657103 | O192: 0 | T192: -7.214698876 | U192: 19.28126991 | V192: 12.06657103 | AP192: 1918400000
A193: 161 | B193: =OFFSET(InputPriceData!B$15,CalculationsAndCharts!$A193+$A$11,0,1,1) -> 2004-05-07 | C193: =OFFSET(InputPriceData!G$15,CalculationsAndCharts!$A193+$A$11,IF($C$7,8,0),1,1) -> 1653600000 | D193: =OFFSET(InputPriceData!C$15,CalculationsAndCharts!$A193+$A$11,IF($C$7,8,0),1,1) -> 1113.99 | E193: =OFFSET(InputPriceData!D$15,CalculationsAndCharts!$A193+$A$11,IF($C$7,8,0),1,1) -> 1117.3 | F193: =OFFSET(InputPriceData!E$15,CalculationsAndCharts!$A193+$A$11,IF($C$7,8,0),1,1) -> 1098.63 | G193: =OFFSET(InputPriceData!F$15,CalculationsAndCharts!$A193+$A$11,IF($C$7,8,0),1,1) -> 1098.7 | H193: 1118.468035 | I193: 1123.559156 | J193: -5.091121004 | K193: 1123.997858 | L193: 1103.761548 | M193: 20.23631058 | N193: 15.14518958 | O193: 0 | T193: -5.091121004 | U193: 20.23631058 | V193: 15.14518958 | AP193: 1653600000
A194: 162 | B194: =OFFSET(InputPriceData!B$15,CalculationsAndCharts!$A194+$A$11,0,1,1) -> 2004-05-06 | C194: =OFFSET(InputPriceData!G$15,CalculationsAndCharts!$A194+$A$11,IF($C$7,8,0),1,1) -> 1509300000 | D194: =OFFSET(InputPriceData!C$15,CalculationsAndCharts!$A194+$A$11,IF($C$7,8,0),1,1) -> 1121.53 | E194: =OFFSET(InputPriceData!D$15,CalculationsAndCharts!$A194+$A$11,IF($C$7,8,0),1,1) -> 1121.53 | F194: =OFFSET(InputPriceData!E$15,CalculationsAndCharts!$A194+$A$11,IF($C$7,8,0),1,1) -> 1106.3 | G194: =OFFSET(InputPriceData!F$15,CalculationsAndCharts!$A194+$A$11,IF($C$7,8,0),1,1) -> 1113.99 | H194: 1122.062223 | I194: 1125.547888 | J194: -3.485665305 | K194: 1124.855413 | L194: 1103.840021 | M194: 21.01539149 | N194: 17.52972618 | O194: 0 | T194: -3.485665305 | U194: 21.01539149 | V194: 17.52972618 | AP194: 1509300000
A195: 163 | B195: =OFFSET(InputPriceData!B$15,CalculationsAndCharts!$A195+$A$11,0,1,1) -> 2004-05-05 | C195: =OFFSET(InputPriceData!G$15,CalculationsAndCharts!$A195+$A$11,IF($C$7,8,0),1,1) -> 1469000000 | D195: =OFFSET(InputPriceData!C$15,CalculationsAndCharts!$A195+$A$11,IF($C$7,8,0),1,1) -> 1119.55 | E195: =OFFSET(InputPriceData!D$15,CalculationsAndCharts!$A195+$A$11,IF($C$7,8,0),1,1) -> 1125.07 | F195: =OFFSET(InputPriceData!E$15,CalculationsAndCharts!$A195+$A$11,IF($C$7,8,0),1,1) -> 1117.9 | G195: =OFFSET(InputPriceData!F$15,CalculationsAndCharts!$A195+$A$11,IF($C$7,8,0),1,1) -> 1121.53 | H195: 1123.5299 | I195: 1126.47252 | J195: -2.942619445 | K195: 1125.223732 | L195: 1103.682657 | M195: 21.54107457 | N195: 18.59845513 | O195: 0 | T195: -2.942619445 | U195: 21.54107457 | V195: 18.59845513 | AO195: 1469000000
A196: 164 | B196: =OFFSET(InputPriceData!B$15,CalculationsAndCharts!$A196+$A$11,0,1,1) -> 2004-05-04 | C196: =OFFSET(InputPriceData!G$15,CalculationsAndCharts!$A196+$A$11,IF($C$7,8,0),1,1) -> 1662100000 | D196: =OFFSET(InputPriceData!C$15,CalculationsAndCharts!$A196+$A$11,IF($C$7,8,0),1,1) -> 1117.49 | E196: =OFFSET(InputPriceData!D$15,CalculationsAndCharts!$A196+$A$11,IF($C$7,8,0),1,1) -> 1127.74 | F196: =OFFSET(InputPriceData!E$15,CalculationsAndCharts!$A196+$A$11,IF($C$7,8,0),1,1) -> 1112.89 | G196: =OFFSET(InputPriceData!F$15,CalculationsAndCharts!$A196+$A$11,IF($C$7,8,0),1,1) -> 1119.55 | H196: 1123.893518 | I196: 1126.867921 | J196: -2.97440281 | K196: 1125.348943 | L196: 1103.405954 | M196: 21.94298881 | N196: 18.968586 | O196: 0 | T196: -2.97440281 | U196: 21.94298881 | V196: 18.968586 | AO196: 1662100000
A197: 165 | B197: =OFFSET(InputPriceData!B$15,CalculationsAndCharts!$A197+$A$11,0,1,1) -> 2004-05-03 | C197: =OFFSET(InputPriceData!G$15,CalculationsAndCharts!$A197+$A$11,IF($C$7,8,0),1,1) -> 1571600000 | D197: =OFFSET(InputPriceData!C$15,CalculationsAndCharts!$A197+$A$11,IF($C$7,8,0),1,1) -> 1107.3 | E197: =OFFSET(InputPriceData!D$15,CalculationsAndCharts!$A197+$A$11,IF($C$7,8,0),1,1) -> 1118.72 | F197: =OFFSET(InputPriceData!E$15,CalculationsAndCharts!$A197+$A$11,IF($C$7,8,0),1,1) -> 1107.3 | G197: =OFFSET(InputPriceData!F$15,CalculationsAndCharts!$A197+$A$11,IF($C$7,8,0),1,1) -> 1117.49 | H197: 1124.683249 | I197: 1127.453355 | J197: -2.7701059 | K197: 1125.545517 | L197: 1103.155659 | M197: 22.38985843 | N197: 19.61975253 | O197: 0 | T197: -2.7701059 | U197: 22.38985843 | V197: 19.61975253 | AO197: 1571600000
A198: 166 | B198: =OFFSET(InputPriceData!B$15,CalculationsAndCharts!$A198+$A$11,0,1,1) -> 2004-04-30 | C198: =OFFSET(InputPriceData!G$15,CalculationsAndCharts!$A198+$A$11,IF($C$7,8,0),1,1) -> 1634700000 | D198: =OFFSET(InputPriceData!C$15,CalculationsAndCharts!$A198+$A$11,IF($C$7,8,0),1,1) -> 1113.89 | E198: =OFFSET(InputPriceData!D$15,CalculationsAndCharts!$A198+$A$11,IF($C$7,8,0),1,1) -> 1119.26 | F198: =OFFSET(InputPriceData!E$15,CalculationsAndCharts!$A198+$A$11,IF($C$7,8,0),1,1) -> 1107.23 | G198: =OFFSET(InputPriceData!F$15,CalculationsAndCharts!$A198+$A$11,IF($C$7,8,0),1,1) -> 1107.3 | H198: 1125.991112 | I198: 1128.250423 | J198: -2.259310849 | K198: 1125.818586 | L198: 1102.933421 | M198: 22.88516466 | N198: 20.62585381 | O198: 0 | T198: -2.259310849 | U198: 22.88516466 | V198: 20.62585381 | AP198: 1634700000
A199: 167 | B199: =OFFSET(InputPriceData!B$15,CalculationsAndCharts!$A199+$A$11,0,1,1) -> 2004-04-29 | C199: =OFFSET(InputPriceData!G$15,CalculationsAndCharts!$A199+$A$11,IF($C$7,8,0),1,1) -> 1859000000 | D199: =OFFSET(InputPriceData!C$15,CalculationsAndCharts!$A199+$A$11,IF($C$7,8,0),1,1) -> 1122.41 | E199: =OFFSET(InputPriceData!D$15,CalculationsAndCharts!$A199+$A$11,IF($C$7,8,0),1,1) -> 1128.8 | F199: =OFFSET(InputPriceData!E$15,CalculationsAndCharts!$A199+$A$11,IF($C$7,8,0),1,1) -> 1108.04 | G199: =OFFSET(InputPriceData!F$15,CalculationsAndCharts!$A199+$A$11,IF($C$7,8,0),1,1) -> 1113.89 | H199: 1129.389496 | I199: 1129.926457 | J199: -0.536960645 | K199: 1126.446334 | L199: 1102.865722 | M199: 23.58061222 | N199: 23.04365158 | O199: 0 | T199: -0.536960645 | U199: 23.58061222 | V199: 23.04365158 | AP199: 1859000000
A200: 168 | B200: =OFFSET(InputPriceData!B$15,CalculationsAndCharts!$A200+$A$11,0,1,1) -> 2004-04-28 | C200: =OFFSET(InputPriceData!G$15,CalculationsAndCharts!$A200+$A$11,IF($C$7,8,0),1,1) -> 1855600000 | D200: =OFFSET(InputPriceData!C$15,CalculationsAndCharts!$A200+$A$11,IF($C$7,8,0),1,1) -> 1138.11 | E200: =OFFSET(InputPriceData!D$15,CalculationsAndCharts!$A200+$A$11,IF($C$7,8,0),1,1) -> 1138.11 | F200: =OFFSET(InputPriceData!E$15,CalculationsAndCharts!$A200+$A$11,IF($C$7,8,0),1,1) -> 1121.7 | G200: =OFFSET(InputPriceData!F$15,CalculationsAndCharts!$A200+$A$11,IF($C$7,8,0),1,1) -> 1122.41 | H200: 1132.207587 | I200: 1131.209374 | J200: 0.9982130434 | K200: 1126.871973 | L200: 1102.694803 | M200: 24.17716971 | N200: 25.17538275 | O200: 0 | T200: 0.9982130434 | U200: 24.17716971 | V200: 25.17538275 | AP200: 1855600000
A201: 169 | B201: =OFFSET(InputPriceData!B$15,CalculationsAndCharts!$A201+$A$11,0,1,1) -> 2004-04-27 | C201: =OFFSET(InputPriceData!G$15,CalculationsAndCharts!$A201+$A$11,IF($C$7,8,0),1,1) -> 1518000000 | D201: =OFFSET(InputPriceData!C$15,CalculationsAndCharts!$A201+$A$11,IF($C$7,8,0),1,1) -> 1135.53 | E201: =OFFSET(InputPriceData!D$15,CalculationsAndCharts!$A201+$A$11,IF($C$7,8,0),1,1) -> 1146.56 | F201: =OFFSET(InputPriceData!E$15,CalculationsAndCharts!$A201+$A$11,IF($C$7,8,0),1,1) -> 1135.53 | G201: =OFFSET(InputPriceData!F$15,CalculationsAndCharts!$A201+$A$11,IF($C$7,8,0),1,1) -> 1138.11 | H201: 1133.988966 | I201: 1131.913323 | J201: 2.075642543 | K201: 1127.023226 | L201: 1102.389141 | M201: 24.63408499 | N201: 26.70972754 | O201: 0 | T201: 2.075642543 | U201: 24.63408499 | V201: 26.70972754 | AO201: 1518000000
A202: 170 | B202: =OFFSET(InputPriceData!B$15,CalculationsAndCharts!$A202+$A$11,0,1,1) -> 2004-04-26 | C202: =OFFSET(InputPriceData!G$15,CalculationsAndCharts!$A202+$A$11,IF($C$7,8,0),1,1) -> 1290600000 | D202: =OFFSET(InputPriceData!C$15,CalculationsAndCharts!$A202+$A$11,IF($C$7,8,0),1,1) -> 1140.6 | E202: =OFFSET(InputPriceData!D$15,CalculationsAndCharts!$A202+$A$11,IF($C$7,8,0),1,1) -> 1145.08 | F202: =OFFSET(InputPriceData!E$15,CalculationsAndCharts!$A202+$A$11,IF($C$7,8,0),1,1) -> 1132.91 | G202: =OFFSET(InputPriceData!F$15,CalculationsAndCharts!$A202+$A$11,IF($C$7,8,0),1,1) -> 1135.53 | H202: 1133.239687 | I202: 1131.417589 | J202: 1.822097759 | K202: 1126.647403 | L202: 1101.835329 | M202: 24.81207391 | N202: 26.63417167 | O202: 0 | T202: 1.822097759 | U202: 24.81207391 | V202: 26.63417167 | AP202: 1290600000
A203: 171 | B203: =OFFSET(InputPriceData!B$15,CalculationsAndCharts!$A203+$A$11,0,1,1) -> 2004-04-23 | C203: =OFFSET(InputPriceData!G$15,CalculationsAndCharts!$A203+$A$11,IF($C$7,8,0),1,1) -> 1396100000 | D203: =OFFSET(InputPriceData!C$15,CalculationsAndCharts!$A203+$A$11,IF($C$7,8,0),1,1) -> 1139.93 | E203: =OFFSET(InputPriceData!D$15,CalculationsAndCharts!$A203+$A$11,IF($C$7,8,0),1,1) -> 1141.92 | F203: =OFFSET(InputPriceData!E$15,CalculationsAndCharts!$A203+$A$11,IF($C$7,8,0),1,1) -> 1134.81 | G203: =OFFSET(InputPriceData!F$15,CalculationsAndCharts!$A203+$A$11,IF($C$7,8,0),1,1) -> 1140.6 | H203: 1132.823267 | I203: 1131.088596 | J203: 1.734670085 | K203: 1126.346298 | L203: 1101.312931 | M203: 25.03336693 | N203: 26.76803702 | O203: 0 | T203: 1.734670085 | U203: 25.03336693 | V203: 26.76803702 | AO203: 1396100000
A204: 172 | B204: =OFFSET(InputPriceData!B$15,CalculationsAndCharts!$A204+$A$11,0,1,1) -> 2004-04-22 | C204: =OFFSET(InputPriceData!G$15,CalculationsAndCharts!$A204+$A$11,IF($C$7,8,0),1,1) -> 1826700000 | D204: =OFFSET(InputPriceData!C$15,CalculationsAndCharts!$A204+$A$11,IF($C$7,8,0),1,1) -> 1124.09 | E204: =OFFSET(InputPriceData!D$15,CalculationsAndCharts!$A204+$A$11,IF($C$7,8,0),1,1) -> 1142.77 | F204: =OFFSET(InputPriceData!E$15,CalculationsAndCharts!$A204+$A$11,IF($C$7,8,0),1,1) -> 1121.95 | G204: =OFFSET(InputPriceData!F$15,CalculationsAndCharts!$A204+$A$11,IF($C$7,8,0),1,1) -> 1139.93 | H204: 1131.409315 | I204: 1130.327684 | J204: 1.081630834 | K204: 1125.863122 | L204: 1100.703829 | M204: 25.15929244 | N204: 26.24092328 | O204: 0 | T204: 1.081630834 | U204: 25.15929244 | V204: 26.24092328 | AO204: 1826700000
... 2046 more rows

Sheet Follow
A1: Stocks and Indexes I wish to follow
A3: To ease following a stock, enter a Yahoo Finance acceptable symbol in column "A" anywhere below cell "A9".
A4: Thereafter you may doubleclick the cell containing a symbol of interest to initiate data retrieval and charting for that symbol.
A7: Symbol
A8: To | B8: Description | C8: Last Trade as of most recent check
A9: Follow | C9: Date | D9: Time | E9: Open | F9: High | G9: Low | H9: Close | I9: Volume | J9: Change
A10: A | B10: Agilent Technolog (A) -NYSE (Daily) | C10: 2015-02-02 | D10: 16:03:00 | E10: 37.9 | F10: 38.76 | G10: 37.71 | H10: 38.69 | I10: 2508493 | J10: 0.92
A11: AAL | B11: American Airlines (AAL) -NasdaqNM (Daily) | C11: 2015-02-19 | D11: 16:00:00 | E11: 50.73 | F11: 50.8 | G11: 49.59 | H11: 49.78 | I11: 11462722 | J11: 0.47
A12: ADM | B12: Archer-Daniels-Midland Company (ADM) -NYQ (Daily) | C12: 2016-03-07 | D12: 13:18:00 | E12: 37.17 | F12: 37.29 | G12: 36.85 | H12: 37.09 | I12: 2069198 | J12: -0.56
A13: AMC | B13: AMC Entertainment Holdings, Inc (AMC) -NYQ (Daily) | C13: 2015-09-04 | D13: 16:00:00 | E13: 27.14 | F13: 27.95 | G13: 26.99 | H13: 27.71 | I13: 167990 | J13: 0.28
A14: BSX | B14: Boston Scientific Corporation C (BSX) -NYQ (Daily) | C14: 2015-03-13 | D14: 16:01:00 | E14: 16.84 | F14: 16.91 | G14: 16.44 | H14: 16.61 | I14: 7262460 | J14: -0.28
A15: CASY | B15: Casey&#x27;s General Stores, Inc. (CASY) -NasdaqGS (Daily) | C15: 2017-10-13 | D15: 16:00:00 | E15: 113.339996 | F15: 115.339996 | G15: 112.93 | H15: 114.400002 | I15: 460800 | J15: 1.680001
A16: CSCO | B16: Cisco Systems, In (CSCO) -NasdaqNM (Daily) | C16: 2015-02-19 | D16: 16:00:00 | E16: 29.32 | F16: 29.39 | G16: 29.13 | H16: 29.31 | I16: 21469012 | J16: -0.18
A17: CVS | B17: CVS Health Corpor (CVS) -NYSE (Daily) | C17: 2015-02-02 | D17: 16:01:00 | E17: 98.34 | F17: 99.22 | G17: 97.06 | H17: 99.11 | I17: 4416094 | J17: 0.95
A18: DIS | B18: Walt Disney Compa (DIS) -NYSE (Daily) | C18: 2015-02-26 | D18: 16:00:00 | E18: 105.5 | F18: 105.71 | G18: 104.14 | H18: 104.56 | I18: 5044969 | J18: -1.01
A19: EMC | B19: EMC Corporation C (EMC) -NYSE (Daily) | C19: 2015-02-19 | D19: 16:00:00 | E19: 28.26 | F19: 28.83 | G19: 28.19 | H19: 28.72 | I19: 11049079 | J19: 0.52
A20: F | B20: Ford Motor Company (F) -NYSE (Daily) | C20: 2017-10-13 | D20: 16:01:00 | E20: 12.06 | F20: 12.17 | G20: 11.87 | H20: 12.05 | I20: 44563400 | J20: -0.07
A21: FAS | B21: Direxion Daily Financial Bull 3X ETF (FAS) -NYSEArca (Daily) | C21: 2017-10-13 | D21: 16:00:00 | E21: 58.099998 | F21: 58.939999 | G21: 57.43 | H21: 58.450001 | I21: 1709300 | J21: 0.07
A22: GSK | B22: GlaxoSmithKline P (GSK) -NYSE (Daily) | C22: 2015-02-02 | D22: 16:01:00 | E22: 44.11 | F22: 44.12 | G22: 43.71 | H22: 43.96 | I22: 3654466 | J22: -0.04
A23: GDX | B23: VanEck Vectors Gold Miners ETF (GDX) -PCX (Daily) | C23: 2017-02-10 | D23: 20:00:00 | E23: 24.67 | F23: 25.36 | G23: 24.6 | H23: 25.29 | I23: 65396107 | J23: 0.38
A24: HSY | B24: The Hershey Compa (HSY) -NYSE (Daily) | C24: 2015-02-19 | D24: 16:02:00 | E24: 106.97 | F24: 107.31 | G24: 105.42 | H24: 105.95 | I24: 1448321 | J24: -1
A25: HTLD | B25: Heartland Express (HTLD) -NasdaqNM (Daily) | C25: 2015-02-02 | D25: 16:00:00 | E25: 25.68 | F25: 25.81 | G25: 25.36 | H25: 25.62 | I25: 542510 | J25: -0.07
A26: IBM | B26: International Bus (IBM) -NYSE (Daily) | C26: 2015-02-02 | D26: 16:01:00 | E26: 154 | F26: 154.66 | G26: 151.51 | H26: 154.66 | I26: 4712247 | J26: 1.35
A27: INTC | B27: Intel Corporation (INTC) -NasdaqNM (Daily) | C27: 2015-02-19 | D27: 16:00:00 | E27: 34.25 | F27: 34.42 | G27: 34.05 | H27: 34.21 | I27: 11017541 | J27: -0.055
A28: JAH | B28: Jarden Corporation Common Stock (JAH) -NYQ (Daily) | C28: 2016-01-08 | D28: 16:02:00 | E28: 53.82 | F28: 53.88 | G28: 52.65 | H28: 52.73 | I28: 4519480 | J28: -0.81
A29: JNJ | B29: Johnson & Johnson Common Stock (JNJ) -NYQ (Daily) | C29: 2016-01-08 | D29: 11:37:00 | E29: 99.88 | F29: 99.94 | G29: 98.87 | H29: 98.88 | I29: 2448879 | J29: -0.34
A30: KO | B30: Coca-Cola Company (The) Common (KO) -NYQ (Daily) | C30: 2015-08-10 | D30: 16:00:00 | E30: 41.89 | F30: 41.99 | G30: 41.58 | H30: 41.68 | I30: 9501875 | J30: -0.09
A31: LHO | B31: LaSalle Hotel Pro (LHO) -NYSE (Daily) | C31: 2015-02-02 | D31: 16:06:00 | E31: 40.51 | F31: 40.74 | G31: 39.46 | H31: 40.26 | I31: 1034675 | J31: -0.2
A32: LINE | B32: Linn Energy, LLC (LINE) -NasdaqNM (Daily) | C32: 2015-02-02 | D32: 16:00:00 | E32: 10.4 | F32: 10.78 | G32: 10.25 | H32: 10.77 | I32: 3766537 | J32: 0.51
A33: LO | B33: Lorillard, Inc Co (LO) -NYSE (Daily) | C33: 2015-02-02 | D33: 16:03:00 | E33: 65.71 | F33: 66.29 | G33: 65.43 | H33: 66.29 | I33: 1563618 | J33: 0.68
A34: MCD | B34: McDonald's Corporation Common S (MCD) -NYQ (Daily) | C34: 2016-04-07 | D34: 16:10:00 | E34: 127.37 | F34: 128.52 | G34: 127.02 | H34: 128.14 | I34: 4720711 | J34: 0.62
A35: MDT | B35: Medtronic plc. Or (MDT) -NYSE (Daily) | C35: 2015-02-19 | D35: 16:01:00 | E35: 78.59 | F35: 78.59 | G35: 77.85 | H35: 78.13 | I35: 6900528 | J35: -0.37
A36: MGM | B36: MGM Resorts Inter (MGM) -NYSE (Daily) | C36: 2015-02-02 | D36: 16:00:00 | E36: 19.44 | F36: 19.75 | G36: 19.12 | H36: 19.74 | I36: 7570281 | J36: 0.26
A37: MO | B37: Altria Group, Inc (MO) -NYSE (Daily) | C37: 2015-02-02 | D37: 16:01:00 | E37: 53.25 | F37: 53.84 | G37: 52.98 | H37: 53.8 | I37: 9183582 | J37: 0.7
A38: MSFT | B38: Microsoft Corpora (MSFT) -NasdaqNM (Daily) | C38: 2015-02-20 | D38: 16:00:00 | E38: 43.51 | F38: 43.88 | G38: 43.29 | H38: 43.855 | I38: 29721132 | J38: 0.355
A39: NUGT | B39: Direxion Daily Gold Miners Inde (NUGT) -PCX (Daily) | C39: 2016-04-13 | D39: 14:18:00 | E39: 81.48 | F39: 84.97 | G39: 79.59 | H39: 80.5352 | I39: 4380827 | J39: -5.6148
A40: NVS | B40: Novartis AG Common Stock (NVS) -NYQ (Daily) | C40: 2016-01-08 | D40: 11:38:00 | E40: 83.38 | F40: 83.5 | G40: 82.37 | H40: 82.42 | I40: 979446 | J40: -1.52
A41: NVDA | B41: NVIDIA Corporation (NVDA) -NasdaqGS (Daily) | C41: 2017-10-13 | D41: 16:00:00 | E41: 193.550003 | F41: 195 | G41: 191.649994 | H41: 194.589996 | I41: 15674800 | J41: 3.559997
A42: PRU | B42: Prudential Financ (PRU) -NYSE (Daily) | C42: 2015-02-23 | D42: 12:22:00 | E42: 80.25 | F42: 80.4499 | G42: 79.8 | H42: 80.12 | I42: 1604052 | J42: -0.69
A43: PSEC | B43: Prospect Capital Corporation (PSEC) -NMS (Daily) | C43: 2016-04-07 | D43: 16:00:00 | E43: 7.18 | F43: 7.25 | G43: 7.15 | H43: 7.21 | I43: 1116195 | J43: 0.02
A44: RAI | B44: Reynolds American (RAI) -NYSE (Daily) | C44: 2015-02-02 | D44: 16:03:00 | E44: 68.12 | F44: 69.06 | G44: 67.4346 | H44: 69.05 | I44: 1822013 | J44: 1.1
A45: RPM | B45: RPM International Inc. Common S (RPM) -NYQ (Daily) | C45: 2016-04-13 | D45: 12:43:00 | E45: 49.9 | F45: 50.21 | G45: 49.71 | H45: 49.97 | I45: 408337 | J45: 0.19 | K45: Owns the Rust-Oleum brand
A46: RSP | B46: Guggenheim S&P 500 Equal Weight (RSP) -PCX (Daily) | C46: 2016-01-08 | D46: 11:33:00 | E46: 73.24 | F46: 73.47 | G46: 72.41 | H46: 72.41 | I46: 754279 | J46: -0.48
A47: SONC | B47: Sonic Corp. (SONC) -NMS (Daily) | C47: 2017-02-08 | D47: 16:00:00 | E47: 25.15 | F47: 25.44 | G47: 24.91 | H47: 25.35 | I47: 397007 | J47: 0.18
A48: SPR | B48: Spirit Aerosystems Holdings, In (SPR) -NYQ (Daily) | C48: 2017-02-08 | D48: 16:02:00 | E48: 56.31 | F48: 56.53 | G48: 55.13 | H48: 56.41 | I48: 849196 | J48: 0.06
A49: SWKS | B49: Skyworks Solution (SWKS) -NasdaqNM (Daily) | C49: 2015-02-02 | D49: 16:00:00 | E49: 83.07 | F49: 83.73 | G49: 80.15 | H49: 82.02 | I49: 4119001 | J49: -1.03
A50: TOL | B50: Toll Brothers Inc (TOL) -NYSE (Daily) | C50: 2015-02-23 | D50: 12:23:00 | E50: 37.56 | F50: 37.77 | G50: 37.1 | H50: 37.36 | I50: 1521944 | J50: -0.29
A51: UNP | B51: Union Pacific Cor (UNP) -NYSE (Daily) | C51: 2015-02-02 | D51: 16:10:00 | E51: 118.13 | F51: 119.06 | G51: 116.7 | H51: 119.01 | I51: 3259594 | J51: 1.8
A52: VZ | B52: Verizon Communica (VZ) -NYSE (Daily) | C52: 2015-02-23 | D52: 12:22:00 | E52: 48.94 | F52: 49 | G52: 48.54 | H52: 48.825 | I52: 4204644 | J52: -0.145
A53: WBA | B53: (WBA) -NasdaqNM (Daily) | C53: 2015-02-02 | D53: 16:00:00 | E53: 73.06 | F53: 74.98 | G53: 73 | H53: 74.89 | I53: 4247395 | J53: 1.14
A54: WMT | B54: Wal-Mart Stores, Inc. (WMT) -NYSE (Daily) | C54: 2017-10-13 | D54: 16:00:00 | E54: 86.239998 | F54: 86.949997 | G54: 86.239998 | H54: 86.620003 | I54: 9382000 | J54: 0.520005
A56: ^NDX | B56: NASDAQ-100 (^NDX) -NIM (Daily) | C56: 2015-08-10 | D56: 17:15:00 | E56: 4558.68 | F56: 4583.63 | G56: 4554.63 | H56: 4573.11 | I56: 0 | J56: 53.03
A57: ^DJI | B57: Dow Jones Industrial Average (^DJI) -DJI (Daily) | C57: 2017-10-13 | D57: 16:55:00 | E57: 22876.42969 | F57: 22905.33008 | G57: 22855.92969 | H57: 22871.7207 | I57: 259560000 | J57: 30.710937
A58: SPY | B58: SPDR S&P 500 (SPY) -PCX (Daily) | C58: 2016-05-05 | D58: 16:00:00 | E58: 205.56 | F58: 205.98 | G58: 204.47 | H58: 204.97 | I58: 67619222 | J58: -0.04
A59: ^GSPC | B59: S&P 500 (^GSPC) -SNP (Daily) | C59: 2017-10-13 | D59: 16:55:00 | E59: 2555.659912 | F59: 2557.649902 | G59: 2552.090088 | H59: 2553.169922 | I59: 3149440000 | J59: 2.23999
A60: ^RUT | B60: RUSSELL 2000 INDEX (^RUT) -Chicago Options (Daily) | C60: 2017-10-13 | D60: 16:30:00 | E60: 1505.459961 | F60: 1508.219971 | G60: 1502.22998 | H60: 1502.660034 | I60: 31494400 | J60: -2.5
A61: ^VIX | B61: VOLATILITY S&P 500 (^VIX) -WCB (Daily) | C61: 2015-12-04 | D61: 16:14:00 | E61: 17.43 | F61: 17.65 | G61: 14.69 | H61: 14.81 | I61: 0 | J61: -3.3
A62: ^NYA | B62: NYSE COMPOSITE (DJ) (^NYA) -NYSE (Daily) | C62: 2017-10-13 | D62: 17:38:00 | E62: 12360.87012 | F62: 12377.88965 | G62: 12350.03027 | H62: 12352.01953 | I62: 3149440000 | J62: 13.279297
A64: ACAD | B64: ACADIA Pharmaceut (ACAD) -NasdaqNM (Daily) | C64: 2014-07-21 | D64: 16:00:00 | E64: 20.13 | F64: 20.55 | G64: 19.8101 | H64: 20.31 | I64: 691016
A65: CLDX | B65: Celldex Therapeut (CLDX) -NasdaqNM (Daily) | C65: 2015-02-02 | D65: 16:00:00 | E65: 21.47 | F65: 21.69 | G65: 20.11 | H65: 21.02 | I65: 1570418 | J65: -0.4
A66: ICPT | B66: Intercept Pharmac (ICPT) -NasdaqNM (Daily) | C66: 2014-07-21 | D66: 16:00:00 | E66: 215.97 | F66: 218.43 | G66: 213.05 | H66: 218.14 | I66: 191276
A67: INO | B67: Inovio Pharmaceut (INO) -AMEX (Daily) | C67: 2014-07-21 | D67: 16:00:00 | E67: 10.3 | F67: 11.08 | G67: 10.1 | H67: 11.01 | I67: 1800796
A68: JCP | B68: J.C. Penney Compa (JCP) -NYSE (Daily) | C68: 2015-02-02 | D68: 16:01:00 | E68: 7.16 | F68: 7.44 | G68: 7.01 | H68: 7.43 | I68: 12772679 | J68: 0.16
A69: LCI | B69: Lannett Co Inc Co (LCI) -NYSE (Daily) | C69: 2014-07-21 | D69: 16:02:00 | E69: 38.09 | F69: 38.803 | G69: 36.5101 | H69: 37.76 | I69: 611367
A70: NPSP | B70: NPS Pharmaceutica (NPSP) -NasdaqNM (Daily) | C70: 2014-07-21 | D70: 15:59:00 | E70: 28.75 | F70: 29.43 | G70: 28.31 | H70: 29.29 | I70: 1126758
A71: PBYI | B71: Puma Biotechnolog (PBYI) -NYSE (Daily) | C71: 2014-07-21 | D71: 16:02:00 | E71: 58.27 | F71: 59.46 | G71: 57.39 | H71: 58.98 | I71: 348030
